{"text_format":"3","workbook":"xlsx","n_sheets":5,"sheets":["Contractor Baseline template.","Consequence rating","Likelihood rating","Risk control effectiveness","Risk matrix"],"not_rendered":{"external_links":2,"defined_names":4},"read":"whole","date_system":"1900"}

{"sheet":"Contractor Baseline template.","index":0,"n_rows":171,"n_cols":32,"rows_kept":171,"merged":[[2,0,2,11],[3,1,3,3],[3,4,3,6],[4,0,4,11],[5,0,7,0],[5,1,7,3],[5,4,7,4],[5,5,7,6],[5,7,5,9],[6,7,6,9],[7,7,7,9],[8,0,8,11],[9,8,10,8],[10,17,15,17],[17,19,17,23],[39,19,39,23]]}
[]
[]
["Occupational Health and Safety Baseline risk assessment template"]
["Business/Operating unit:","Kusile Power Station",{"$nulls":8},"Next Review Date \n(every 2 years):  ","Template identifier: "]
[]
[" Date:    ",{"$nulls":4},"Authorised by:   ",null,"Name:  ",null,null,"Document identifier",{"$nulls":15},"R","Safety",1,"A","Fully effective","I"]
[{"$nulls":7},"Designation:",null,null,"Revision number:",5,{"$nulls":14},"N","Health",2,"B","Mostly effective","II"]
[{"$nulls":7},"Signed:",null,null,"Revision date: ","2025-04-30",{"$nulls":16},3,"C","Mostly ineffective","III"]
["Refer to Occupational Health and Safety Risk assessment procedure 32-520",{"$nulls":27},5,"E"]
["List activity","Hazard Identification","Associated risk","Risk type","What are the possible consequences?","Existing Controls"," ",null,"Risk Priority Rating",null,"Control Owner","Legal and Other Requirements",{"$nulls":16},6]
["List specific activities to be performed taking into consideration the equipment to be used, the personnel involved in the task.","Anything  with potential to cause  of harm. \nNote: A hazard can pose more than one risk.","A chance that injury , ill health or damage could occur as a result of uncontrolled hazard.","Safety or health","Consider the worse case scenario without controls?","Include:\n- Preventative Controls\n(controls implemented to eliminate hazards or reduce the likelihood of the risk occurring), and\n- Reactive Controls \n(controls implemented to reduce the immediate impact of the risk occurring)    \n\nElimination\nSubstitution \nEngineering controls \nAdministrative controls \nPersonal protective equipment (PPE)","Consequence","Likelihood",null,"RCE\nRisk Control Effectiveness","Person allocated the responsibility for implementing the agreed controls ","Where relevant, list the relevant legislative and or Eskom requirements that prescribe the control."]
[{"$f":"IF(#REF!=\"\",\"\",#REF!)","v":{"$error":"#REF!"}},{"$f":"IF(#REF!=\"\",\"\",#REF!)","v":{"$error":"#REF!"}},{"$f":"IF(#REF!=\"\",\"\",#REF!)","v":{"$error":"#REF!"}},null,{"$f":"IF(#REF!=\"\",\"\",#REF!)","v":{"$error":"#REF!"}},{"$f":"IF(#REF!=\"\",\"\",#REF!)","v":{"$error":"#REF!"}},{"$nulls":4},{"$f":"IF(#REF!=\"\",\"\",#REF!)","v":{"$error":"#REF!"}},{"$f":"IF(#REF!=\"\",\"\",#REF!)","v":{"$error":"#REF!"}}]
[{"$f":"IF(#REF!=\"\",\"\",#REF!)","v":{"$error":"#REF!"}},{"$f":"IF(#REF!=\"\",\"\",#REF!)","v":{"$error":"#REF!"}},{"$f":"IF(#REF!=\"\",\"\",#REF!)","v":{"$error":"#REF!"}},null,{"$f":"IF(#REF!=\"\",\"\",#REF!)","v":{"$error":"#REF!"}},{"$f":"IF(#REF!=\"\",\"\",#REF!)","v":{"$error":"#REF!"}},{"$nulls":4},{"$f":"IF(#REF!=\"\",\"\",#REF!)","v":{"$error":"#REF!"}},{"$f":"IF(#REF!=\"\",\"\",#REF!)","v":{"$error":"#REF!"}}]
[{"$f":"IF(#REF!=\"\",\"\",#REF!)","v":{"$error":"#REF!"}},{"$f":"IF(#REF!=\"\",\"\",#REF!)","v":{"$error":"#REF!"}},{"$f":"IF(#REF!=\"\",\"\",#REF!)","v":{"$error":"#REF!"}},null,{"$f":"IF(#REF!=\"\",\"\",#REF!)","v":{"$error":"#REF!"}},{"$f":"IF(#REF!=\"\",\"\",#REF!)","v":{"$error":"#REF!"}},{"$nulls":4},{"$f":"IF(#REF!=\"\",\"\",#REF!)","v":{"$error":"#REF!"}},{"$f":"IF(#REF!=\"\",\"\",#REF!)","v":{"$error":"#REF!"}}]
[{"$f":"IF(#REF!=\"\",\"\",#REF!)","v":{"$error":"#REF!"}},{"$f":"IF(#REF!=\"\",\"\",#REF!)","v":{"$error":"#REF!"}},{"$f":"IF(#REF!=\"\",\"\",#REF!)","v":{"$error":"#REF!"}},null,{"$f":"IF(#REF!=\"\",\"\",#REF!)","v":{"$error":"#REF!"}},{"$f":"IF(#REF!=\"\",\"\",#REF!)","v":{"$error":"#REF!"}},{"$nulls":4},{"$f":"IF(#REF!=\"\",\"\",#REF!)","v":{"$error":"#REF!"}},{"$f":"IF(#REF!=\"\",\"\",#REF!)","v":{"$error":"#REF!"}}]
[{"$f":"IF(#REF!=\"\",\"\",#REF!)","v":{"$error":"#REF!"}},{"$f":"IF(#REF!=\"\",\"\",#REF!)","v":{"$error":"#REF!"}},{"$f":"IF(#REF!=\"\",\"\",#REF!)","v":{"$error":"#REF!"}},null,{"$f":"IF(#REF!=\"\",\"\",#REF!)","v":{"$error":"#REF!"}},{"$f":"IF(#REF!=\"\",\"\",#REF!)","v":{"$error":"#REF!"}},{"$nulls":4},{"$f":"IF(#REF!=\"\",\"\",#REF!)","v":{"$error":"#REF!"}},{"$f":"IF(#REF!=\"\",\"\",#REF!)","v":{"$error":"#REF!"}}]
[{"$f":"IF(#REF!=\"\",\"\",#REF!)","v":{"$error":"#REF!"}},{"$f":"IF(#REF!=\"\",\"\",#REF!)","v":{"$error":"#REF!"}},{"$f":"IF(#REF!=\"\",\"\",#REF!)","v":{"$error":"#REF!"}},null,{"$f":"IF(#REF!=\"\",\"\",#REF!)","v":{"$error":"#REF!"}},{"$f":"IF(#REF!=\"\",\"\",#REF!)","v":{"$error":"#REF!"}},{"$nulls":4},{"$f":"IF(#REF!=\"\",\"\",#REF!)","v":{"$error":"#REF!"}},{"$f":"IF(#REF!=\"\",\"\",#REF!)","v":{"$error":"#REF!"}}]
[{"$f":"IF(#REF!=\"\",\"\",#REF!)","v":{"$error":"#REF!"}},{"$f":"IF(#REF!=\"\",\"\",#REF!)","v":{"$error":"#REF!"}},{"$f":"IF(#REF!=\"\",\"\",#REF!)","v":{"$error":"#REF!"}},null,{"$f":"IF(#REF!=\"\",\"\",#REF!)","v":{"$error":"#REF!"}},{"$f":"IF(#REF!=\"\",\"\",#REF!)","v":{"$error":"#REF!"}},{"$nulls":4},{"$f":"IF(#REF!=\"\",\"\",#REF!)","v":{"$error":"#REF!"}},{"$f":"IF(#REF!=\"\",\"\",#REF!)","v":{"$error":"#REF!"}}]
[{"$f":"IF(#REF!=\"\",\"\",#REF!)","v":{"$error":"#REF!"}},{"$f":"IF(#REF!=\"\",\"\",#REF!)","v":{"$error":"#REF!"}},{"$f":"IF(#REF!=\"\",\"\",#REF!)","v":{"$error":"#REF!"}},null,{"$f":"IF(#REF!=\"\",\"\",#REF!)","v":{"$error":"#REF!"}},{"$f":"IF(#REF!=\"\",\"\",#REF!)","v":{"$error":"#REF!"}},{"$nulls":4},{"$f":"IF(#REF!=\"\",\"\",#REF!)","v":{"$error":"#REF!"}},{"$f":"IF(#REF!=\"\",\"\",#REF!)","v":{"$error":"#REF!"}}]
[{"$f":"IF(#REF!=\"\",\"\",#REF!)","v":{"$error":"#REF!"}},{"$f":"IF(#REF!=\"\",\"\",#REF!)","v":{"$error":"#REF!"}},{"$f":"IF(#REF!=\"\",\"\",#REF!)","v":{"$error":"#REF!"}},null,{"$f":"IF(#REF!=\"\",\"\",#REF!)","v":{"$error":"#REF!"}},{"$f":"IF(#REF!=\"\",\"\",#REF!)","v":{"$error":"#REF!"}},{"$nulls":4},{"$f":"IF(#REF!=\"\",\"\",#REF!)","v":{"$error":"#REF!"}},{"$f":"IF(#REF!=\"\",\"\",#REF!)","v":{"$error":"#REF!"}}]
[{"$f":"IF(#REF!=\"\",\"\",#REF!)","v":{"$error":"#REF!"}},{"$f":"IF(#REF!=\"\",\"\",#REF!)","v":{"$error":"#REF!"}},{"$f":"IF(#REF!=\"\",\"\",#REF!)","v":{"$error":"#REF!"}},null,{"$f":"IF(#REF!=\"\",\"\",#REF!)","v":{"$error":"#REF!"}},{"$f":"IF(#REF!=\"\",\"\",#REF!)","v":{"$error":"#REF!"}},{"$nulls":4},{"$f":"IF(#REF!=\"\",\"\",#REF!)","v":{"$error":"#REF!"}},{"$f":"IF(#REF!=\"\",\"\",#REF!)","v":{"$error":"#REF!"}}]
[{"$f":"IF(#REF!=\"\",\"\",#REF!)","v":{"$error":"#REF!"}},{"$f":"IF(#REF!=\"\",\"\",#REF!)","v":{"$error":"#REF!"}},{"$f":"IF(#REF!=\"\",\"\",#REF!)","v":{"$error":"#REF!"}},null,{"$f":"IF(#REF!=\"\",\"\",#REF!)","v":{"$error":"#REF!"}},{"$f":"IF(#REF!=\"\",\"\",#REF!)","v":{"$error":"#REF!"}},{"$nulls":4},{"$f":"IF(#REF!=\"\",\"\",#REF!)","v":{"$error":"#REF!"}},{"$f":"IF(#REF!=\"\",\"\",#REF!)","v":{"$error":"#REF!"}}]
[{"$f":"IF(#REF!=\"\",\"\",#REF!)","v":{"$error":"#REF!"}},{"$f":"IF(#REF!=\"\",\"\",#REF!)","v":{"$error":"#REF!"}},{"$f":"IF(#REF!=\"\",\"\",#REF!)","v":{"$error":"#REF!"}},null,{"$f":"IF(#REF!=\"\",\"\",#REF!)","v":{"$error":"#REF!"}},{"$f":"IF(#REF!=\"\",\"\",#REF!)","v":{"$error":"#REF!"}},{"$nulls":4},{"$f":"IF(#REF!=\"\",\"\",#REF!)","v":{"$error":"#REF!"}},{"$f":"IF(#REF!=\"\",\"\",#REF!)","v":{"$error":"#REF!"}}]
[{"$f":"IF(#REF!=\"\",\"\",#REF!)","v":{"$error":"#REF!"}},{"$f":"IF(#REF!=\"\",\"\",#REF!)","v":{"$error":"#REF!"}},{"$f":"IF(#REF!=\"\",\"\",#REF!)","v":{"$error":"#REF!"}},null,{"$f":"IF(#REF!=\"\",\"\",#REF!)","v":{"$error":"#REF!"}},{"$f":"IF(#REF!=\"\",\"\",#REF!)","v":{"$error":"#REF!"}},{"$nulls":4},{"$f":"IF(#REF!=\"\",\"\",#REF!)","v":{"$error":"#REF!"}},{"$f":"IF(#REF!=\"\",\"\",#REF!)","v":{"$error":"#REF!"}}]
[{"$f":"IF(#REF!=\"\",\"\",#REF!)","v":{"$error":"#REF!"}},{"$f":"IF(#REF!=\"\",\"\",#REF!)","v":{"$error":"#REF!"}},{"$f":"IF(#REF!=\"\",\"\",#REF!)","v":{"$error":"#REF!"}},null,{"$f":"IF(#REF!=\"\",\"\",#REF!)","v":{"$error":"#REF!"}},{"$f":"IF(#REF!=\"\",\"\",#REF!)","v":{"$error":"#REF!"}},{"$nulls":4},{"$f":"IF(#REF!=\"\",\"\",#REF!)","v":{"$error":"#REF!"}},{"$f":"IF(#REF!=\"\",\"\",#REF!)","v":{"$error":"#REF!"}}]
[{"$f":"IF(#REF!=\"\",\"\",#REF!)","v":{"$error":"#REF!"}},{"$f":"IF(#REF!=\"\",\"\",#REF!)","v":{"$error":"#REF!"}},{"$f":"IF(#REF!=\"\",\"\",#REF!)","v":{"$error":"#REF!"}},null,{"$f":"IF(#REF!=\"\",\"\",#REF!)","v":{"$error":"#REF!"}},{"$f":"IF(#REF!=\"\",\"\",#REF!)","v":{"$error":"#REF!"}},{"$nulls":4},{"$f":"IF(#REF!=\"\",\"\",#REF!)","v":{"$error":"#REF!"}},{"$f":"IF(#REF!=\"\",\"\",#REF!)","v":{"$error":"#REF!"}}]
[{"$f":"IF(#REF!=\"\",\"\",#REF!)","v":{"$error":"#REF!"}},{"$f":"IF(#REF!=\"\",\"\",#REF!)","v":{"$error":"#REF!"}},{"$f":"IF(#REF!=\"\",\"\",#REF!)","v":{"$error":"#REF!"}},null,{"$f":"IF(#REF!=\"\",\"\",#REF!)","v":{"$error":"#REF!"}},{"$f":"IF(#REF!=\"\",\"\",#REF!)","v":{"$error":"#REF!"}},{"$nulls":4},{"$f":"IF(#REF!=\"\",\"\",#REF!)","v":{"$error":"#REF!"}},{"$f":"IF(#REF!=\"\",\"\",#REF!)","v":{"$error":"#REF!"}}]
[{"$f":"IF(#REF!=\"\",\"\",#REF!)","v":{"$error":"#REF!"}},{"$f":"IF(#REF!=\"\",\"\",#REF!)","v":{"$error":"#REF!"}},{"$f":"IF(#REF!=\"\",\"\",#REF!)","v":{"$error":"#REF!"}},null,{"$f":"IF(#REF!=\"\",\"\",#REF!)","v":{"$error":"#REF!"}},{"$f":"IF(#REF!=\"\",\"\",#REF!)","v":{"$error":"#REF!"}},{"$nulls":4},{"$f":"IF(#REF!=\"\",\"\",#REF!)","v":{"$error":"#REF!"}},{"$f":"IF(#REF!=\"\",\"\",#REF!)","v":{"$error":"#REF!"}}]
[{"$f":"IF(#REF!=\"\",\"\",#REF!)","v":{"$error":"#REF!"}},{"$f":"IF(#REF!=\"\",\"\",#REF!)","v":{"$error":"#REF!"}},{"$f":"IF(#REF!=\"\",\"\",#REF!)","v":{"$error":"#REF!"}},null,{"$f":"IF(#REF!=\"\",\"\",#REF!)","v":{"$error":"#REF!"}},{"$f":"IF(#REF!=\"\",\"\",#REF!)","v":{"$error":"#REF!"}},{"$nulls":4},{"$f":"IF(#REF!=\"\",\"\",#REF!)","v":{"$error":"#REF!"}},{"$f":"IF(#REF!=\"\",\"\",#REF!)","v":{"$error":"#REF!"}}]
[{"$f":"IF(#REF!=\"\",\"\",#REF!)","v":{"$error":"#REF!"}},{"$f":"IF(#REF!=\"\",\"\",#REF!)","v":{"$error":"#REF!"}},{"$f":"IF(#REF!=\"\",\"\",#REF!)","v":{"$error":"#REF!"}},null,{"$f":"IF(#REF!=\"\",\"\",#REF!)","v":{"$error":"#REF!"}},{"$f":"IF(#REF!=\"\",\"\",#REF!)","v":{"$error":"#REF!"}},{"$nulls":4},{"$f":"IF(#REF!=\"\",\"\",#REF!)","v":{"$error":"#REF!"}},{"$f":"IF(#REF!=\"\",\"\",#REF!)","v":{"$error":"#REF!"}}]
[{"$f":"IF(#REF!=\"\",\"\",#REF!)","v":{"$error":"#REF!"}},{"$f":"IF(#REF!=\"\",\"\",#REF!)","v":{"$error":"#REF!"}},{"$f":"IF(#REF!=\"\",\"\",#REF!)","v":{"$error":"#REF!"}},null,{"$f":"IF(#REF!=\"\",\"\",#REF!)","v":{"$error":"#REF!"}},{"$f":"IF(#REF!=\"\",\"\",#REF!)","v":{"$error":"#REF!"}},{"$nulls":4},{"$f":"IF(#REF!=\"\",\"\",#REF!)","v":{"$error":"#REF!"}},{"$f":"IF(#REF!=\"\",\"\",#REF!)","v":{"$error":"#REF!"}}]
[{"$f":"IF(#REF!=\"\",\"\",#REF!)","v":{"$error":"#REF!"}},{"$f":"IF(#REF!=\"\",\"\",#REF!)","v":{"$error":"#REF!"}},{"$f":"IF(#REF!=\"\",\"\",#REF!)","v":{"$error":"#REF!"}},null,{"$f":"IF(#REF!=\"\",\"\",#REF!)","v":{"$error":"#REF!"}},{"$f":"IF(#REF!=\"\",\"\",#REF!)","v":{"$error":"#REF!"}},{"$nulls":4},{"$f":"IF(#REF!=\"\",\"\",#REF!)","v":{"$error":"#REF!"}},{"$f":"IF(#REF!=\"\",\"\",#REF!)","v":{"$error":"#REF!"}}]
[{"$f":"IF(#REF!=\"\",\"\",#REF!)","v":{"$error":"#REF!"}},{"$f":"IF(#REF!=\"\",\"\",#REF!)","v":{"$error":"#REF!"}},{"$f":"IF(#REF!=\"\",\"\",#REF!)","v":{"$error":"#REF!"}},null,{"$f":"IF(#REF!=\"\",\"\",#REF!)","v":{"$error":"#REF!"}},{"$f":"IF(#REF!=\"\",\"\",#REF!)","v":{"$error":"#REF!"}},{"$nulls":4},{"$f":"IF(#REF!=\"\",\"\",#REF!)","v":{"$error":"#REF!"}},{"$f":"IF(#REF!=\"\",\"\",#REF!)","v":{"$error":"#REF!"}}]
[]
[{"$f":"IF('[2]Coal management '!A35=\"\",\"\",'[2]Coal management '!A35)","v":"Cleaning of conveyors and chutes"},{"$f":"IF('[2]Coal management '!A35=\"\",\"\",'[2]Coal management '!D35)","v":"Fly ash"},{"$f":"IF('[2]Coal management '!A35=\"\",\"\",'[2]Coal management '!F35)","v":"Inhalation, ingestion  and eye irritation. "},{"$f":"IF('[2]Coal management '!A35=\"\",\"\",'[2]Coal management '!G35)","v":"Health "},{"$f":"IF('[2]Coal management '!A35=\"\",\"\",'[2]Coal management '!L35)","v":"Daily"},{"$f":"IF('[2]Coal management '!A35=\"\",\"\",'[2]Coal management '!M35)","v":"Damage to eye sight and lungs"},{"$f":"IF('[2]Coal management '!A35=\"\",\"\",'[2]Coal management '!N35)","v":"PPE(dust mask, hearing protection), safety signs"},{"$f":"IF('[2]Coal management '!A35=\"\",\"\",'[2]Coal management '!O35)","v":1},{"$f":"IF('[2]Coal management '!A35=\"\",\"\",'[2]Coal management '!P35)","v":"A"},{"$f":"IF('[2]Coal management '!A35=\"\",\"\",'[2]Coal management '!Q35)","v":"IV"},{"$f":"IF('[2]Coal management '!A35=\"\",\"\",'[2]Coal management '!T35)","v":"Plant Inspections, Medical Surveillance Procedure 32-285,  Deffects Reporting, Tool Box Talks"},{"$f":"IF('[2]Coal management '!A35=\"\",\"\",'[2]Coal management '!U35)","v":"Responsible manager"},{"$nulls":6},4,"IV","III","II","I","I"]
[{"$f":"IF('[2]Coal management '!A36=\"\",\"\",'[2]Coal management '!A36)","v":"Cleaning of conveyors and chutes"},{"$f":"IF('[2]Coal management '!A36=\"\",\"\",'[2]Coal management '!D36)","v":"Defective hand tools"},{"$f":"IF('[2]Coal management '!A36=\"\",\"\",'[2]Coal management '!F36)","v":"pinch/nip point"},{"$f":"IF('[2]Coal management '!A36=\"\",\"\",'[2]Coal management '!G36)","v":"Safety "},{"$f":"IF('[2]Coal management '!A36=\"\",\"\",'[2]Coal management '!L36)","v":"Daily"},{"$f":"IF('[2]Coal management '!A36=\"\",\"\",'[2]Coal management '!M36)","v":"hands Injury"},{"$f":"IF('[2]Coal management '!A36=\"\",\"\",'[2]Coal management '!N36)","v":"Pre-job inspection, PPE(gloves)"},{"$f":"IF('[2]Coal management '!A36=\"\",\"\",'[2]Coal management '!O36)","v":2},{"$f":"IF('[2]Coal management '!A36=\"\",\"\",'[2]Coal management '!P36)","v":"B"},{"$f":"IF('[2]Coal management '!A36=\"\",\"\",'[2]Coal management '!Q36)","v":"IV"},{"$f":"IF('[2]Coal management '!A36=\"\",\"\",'[2]Coal management '!T36)","v":"Plant Inspections, SMAT, Planned Task Observations, Incident reporting, Medical Surveillance Procedure 32-285,  Deffects Reporting,  Equipment Inspection, Tool Box Talks, "},{"$f":"IF('[2]Coal management '!A36=\"\",\"\",'[2]Coal management '!U36)","v":"Responsible manager"},{"$nulls":6},3,"IV","III","II","II","I"]
[{"$f":"IF('[2]Coal management '!A37=\"\",\"\",'[2]Coal management '!A37)","v":"Cleaning of conveyors and chutes"},{"$f":"IF('[2]Coal management '!A37=\"\",\"\",'[2]Coal management '!D37)","v":"Inaccessible areas/walkways"},{"$f":"IF('[2]Coal management '!A37=\"\",\"\",'[2]Coal management '!F37)","v":"Ergonomics "},{"$f":"IF('[2]Coal management '!A37=\"\",\"\",'[2]Coal management '!G37)","v":"Safety "},{"$f":"IF('[2]Coal management '!A37=\"\",\"\",'[2]Coal management '!L37)","v":"Daily"},{"$f":"IF('[2]Coal management '!A37=\"\",\"\",'[2]Coal management '!M37)","v":"Minor injuries requiring medical treatment "},{"$f":"IF('[2]Coal management '!A37=\"\",\"\",'[2]Coal management '!N37)","v":"Prohibitory signs"},{"$f":"IF('[2]Coal management '!A37=\"\",\"\",'[2]Coal management '!O37)","v":4},{"$f":"IF('[2]Coal management '!A37=\"\",\"\",'[2]Coal management '!P37)","v":"B"},{"$f":"IF('[2]Coal management '!A37=\"\",\"\",'[2]Coal management '!Q37)","v":"III"},{"$f":"IF('[2]Coal management '!A37=\"\",\"\",'[2]Coal management '!T37)","v":"Incident reporting, Defects Reporting, Plant Inspections"},{"$f":"IF('[2]Coal management '!A37=\"\",\"\",'[2]Coal management '!U37)","v":"Responsible manager"},{"$nulls":6},2,"IV","IV","III","II","II"]
[{"$f":"IF('[2]Coal management '!A38=\"\",\"\",'[2]Coal management '!A38)","v":"Cleaning of conveyors and chutes"},{"$f":"IF('[2]Coal management '!A38=\"\",\"\",'[2]Coal management '!D38)","v":"slippery surfaces"},{"$f":"IF('[2]Coal management '!A38=\"\",\"\",'[2]Coal management '!F38)","v":"Slips, trips and falls"},{"$f":"IF('[2]Coal management '!A38=\"\",\"\",'[2]Coal management '!G38)","v":"Safety "},{"$f":"IF('[2]Coal management '!A38=\"\",\"\",'[2]Coal management '!L38)","v":"Daily"},{"$f":"IF('[2]Coal management '!A38=\"\",\"\",'[2]Coal management '!M38)","v":"Minor Injuries requiring Medical treatment "},{"$f":"IF('[2]Coal management '!A38=\"\",\"\",'[2]Coal management '!N38)","v":"Safety signs, PPE(safety boots)"},{"$f":"IF('[2]Coal management '!A38=\"\",\"\",'[2]Coal management '!O38)","v":2},{"$f":"IF('[2]Coal management '!A38=\"\",\"\",'[2]Coal management '!P38)","v":"B"},{"$f":"IF('[2]Coal management '!A38=\"\",\"\",'[2]Coal management '!Q38)","v":"IV"},{"$f":"IF('[2]Coal management '!A38=\"\",\"\",'[2]Coal management '!T38)","v":"Job observation, incident reporting"},{"$f":"IF('[2]Coal management '!A38=\"\",\"\",'[2]Coal management '!U38)","v":"Responsible manager"},{"$nulls":6},1,"IV","IV","III","III","III"]
[{"$f":"IF('[2]Coal management '!A39=\"\",\"\",'[2]Coal management '!A39)","v":"Cleaning of conveyors and chutes"},{"$f":"IF('[2]Coal management '!A39=\"\",\"\",'[2]Coal management '!D39)","v":"uneven surfaces"},{"$f":"IF('[2]Coal management '!A39=\"\",\"\",'[2]Coal management '!F39)","v":"Slips, trips and falls"},{"$f":"IF('[2]Coal management '!A39=\"\",\"\",'[2]Coal management '!G39)","v":"Safety "},{"$f":"IF('[2]Coal management '!A39=\"\",\"\",'[2]Coal management '!L39)","v":"Daily"},{"$f":"IF('[2]Coal management '!A39=\"\",\"\",'[2]Coal management '!M39)","v":"Minor Injuries requiring Medical treatment "},{"$f":"IF('[2]Coal management '!A39=\"\",\"\",'[2]Coal management '!N39)","v":"Safety signs, PPE(safety boots)"},{"$f":"IF('[2]Coal management '!A39=\"\",\"\",'[2]Coal management '!O39)","v":4},{"$f":"IF('[2]Coal management '!A39=\"\",\"\",'[2]Coal management '!P39)","v":"B"},{"$f":"IF('[2]Coal management '!A39=\"\",\"\",'[2]Coal management '!Q39)","v":"III"},{"$f":"IF('[2]Coal management '!A39=\"\",\"\",'[2]Coal management '!T39)","v":"Incident reporting, Defects Reporting, Plant Inspections"},{"$f":"IF('[2]Coal management '!A39=\"\",\"\",'[2]Coal management '!U39)","v":"Responsible manager"},{"$nulls":7},"A","B","C","D","E"]
[{"$f":"IF('[2]Coal management '!A40=\"\",\"\",'[2]Coal management '!A40)","v":"Cleaning of conveyors and chutes"},{"$f":"IF('[2]Coal management '!A40=\"\",\"\",'[2]Coal management '!D40)","v":"Unsecured tools"},{"$f":"IF('[2]Coal management '!A40=\"\",\"\",'[2]Coal management '!F40)","v":"struck by handtools"},{"$f":"IF('[2]Coal management '!A40=\"\",\"\",'[2]Coal management '!G40)","v":"Safety "},{"$f":"IF('[2]Coal management '!A40=\"\",\"\",'[2]Coal management '!L40)","v":"Daily"},{"$f":"IF('[2]Coal management '!A40=\"\",\"\",'[2]Coal management '!M40)","v":"Serious injury requiring medical treatment "},{"$f":"IF('[2]Coal management '!A40=\"\",\"\",'[2]Coal management '!N40)","v":"Pre-job binspection, PPE(gloves)"},{"$f":"IF('[2]Coal management '!A40=\"\",\"\",'[2]Coal management '!O40)","v":4},{"$f":"IF('[2]Coal management '!A40=\"\",\"\",'[2]Coal management '!P40)","v":"B"},{"$f":"IF('[2]Coal management '!A40=\"\",\"\",'[2]Coal management '!Q40)","v":"III"},{"$f":"IF('[2]Coal management '!A40=\"\",\"\",'[2]Coal management '!T40)","v":"Incident reporting, Defects Reporting, Plant Inspections"},{"$f":"IF('[2]Coal management '!A40=\"\",\"\",'[2]Coal management '!U40)","v":"Responsible manager"},{"$nulls":7},"Likelihood"]
[{"$f":"IF('[2]Coal management '!A41=\"\",\"\",'[2]Coal management '!A41)","v":"Cleaning of conveyors and chutes"},{"$f":"IF('[2]Coal management '!A41=\"\",\"\",'[2]Coal management '!D41)","v":"Elevated positions"},{"$f":"IF('[2]Coal management '!A41=\"\",\"\",'[2]Coal management '!F41)","v":"falling from heights"},{"$f":"IF('[2]Coal management '!A41=\"\",\"\",'[2]Coal management '!G41)","v":"Safety "},{"$f":"IF('[2]Coal management '!A41=\"\",\"\",'[2]Coal management '!L41)","v":"Daily"},{"$f":"IF('[2]Coal management '!A41=\"\",\"\",'[2]Coal management '!M41)","v":"Fatality, serious injury requiring medical treatment "},{"$f":"IF('[2]Coal management '!A41=\"\",\"\",'[2]Coal management '!N41)","v":"Pre-job brief, PPE(full body harness)"},{"$f":"IF('[2]Coal management '!A41=\"\",\"\",'[2]Coal management '!O41)","v":4},{"$f":"IF('[2]Coal management '!A41=\"\",\"\",'[2]Coal management '!P41)","v":"A"},{"$f":"IF('[2]Coal management '!A41=\"\",\"\",'[2]Coal management '!Q41)","v":"III"},{"$f":"IF('[2]Coal management '!A41=\"\",\"\",'[2]Coal management '!T41)","v":"Fall Protection Plan, Planned Task Observation, SMAT, Inspections"},{"$f":"IF('[2]Coal management '!A41=\"\",\"\",'[2]Coal management '!U41)","v":"Responsible manager"}]
[{"$f":"IF('[2]Coal management '!A42=\"\",\"\",'[2]Coal management '!A42)","v":"Cleaning of conveyors and chutes"},{"$f":"IF('[2]Coal management '!A42=\"\",\"\",'[2]Coal management '!D42)","v":"Restricted workspaces"},{"$f":"IF('[2]Coal management '!A42=\"\",\"\",'[2]Coal management '!F42)","v":"Musco-skeletal injuries."},{"$f":"IF('[2]Coal management '!A42=\"\",\"\",'[2]Coal management '!G42)","v":"Safety "},{"$f":"IF('[2]Coal management '!A42=\"\",\"\",'[2]Coal management '!L42)","v":"Daily"},{"$f":"IF('[2]Coal management '!A42=\"\",\"\",'[2]Coal management '!M42)","v":"Minor injuries requiring medical treatment "},{"$f":"IF('[2]Coal management '!A42=\"\",\"\",'[2]Coal management '!N42)","v":"Pre-job brief, pre-job inspection"},{"$f":"IF('[2]Coal management '!A42=\"\",\"\",'[2]Coal management '!O42)","v":1},{"$f":"IF('[2]Coal management '!A42=\"\",\"\",'[2]Coal management '!P42)","v":"A"},{"$f":"IF('[2]Coal management '!A42=\"\",\"\",'[2]Coal management '!Q42)","v":"IV"},{"$f":"IF('[2]Coal management '!A42=\"\",\"\",'[2]Coal management '!T42)","v":"Medical Surveillance Procedure 32-285, Ergonomic Surveys,  Tool Box Talks"},{"$f":"IF('[2]Coal management '!A42=\"\",\"\",'[2]Coal management '!U42)","v":"Responsible manager"}]
[{"$f":"IF('[2]Coal management '!A43=\"\",\"\",'[2]Coal management '!A43)","v":"Cleaning of conveyors and chutes"},{"$f":"IF('[2]Coal management '!A43=\"\",\"\",'[2]Coal management '!D43)","v":"Manual handling"},{"$f":"IF('[2]Coal management '!A43=\"\",\"\",'[2]Coal management '!F43)","v":"Muscle strain/back trauma, hand injuries"},{"$f":"IF('[2]Coal management '!A43=\"\",\"\",'[2]Coal management '!G43)","v":"Health "},{"$f":"IF('[2]Coal management '!A43=\"\",\"\",'[2]Coal management '!L43)","v":"Daily"},{"$f":"IF('[2]Coal management '!A43=\"\",\"\",'[2]Coal management '!M43)","v":"Serious injury requiring medical treatment "},{"$f":"IF('[2]Coal management '!A43=\"\",\"\",'[2]Coal management '!N43)","v":"Pre-job brief, pre-job inspection"},{"$f":"IF('[2]Coal management '!A43=\"\",\"\",'[2]Coal management '!O43)","v":2},{"$f":"IF('[2]Coal management '!A43=\"\",\"\",'[2]Coal management '!P43)","v":"B"},{"$f":"IF('[2]Coal management '!A43=\"\",\"\",'[2]Coal management '!Q43)","v":"IV"},{"$f":"IF('[2]Coal management '!A43=\"\",\"\",'[2]Coal management '!T43)","v":"Incident reporting, Medical Surveillance Procedure 32-285,Supervision, Tool Box Talks"},{"$f":"IF('[2]Coal management '!A43=\"\",\"\",'[2]Coal management '!U43)","v":"Responsible manager"}]
[{"$f":"IF('[2]Coal management '!A44=\"\",\"\",'[2]Coal management '!A44)","v":"Cleaning of conveyors and chutes"},{"$f":"IF('[2]Coal management '!A44=\"\",\"\",'[2]Coal management '!D44)","v":"moving conveyors"},{"$f":"IF('[2]Coal management '!A44=\"\",\"\",'[2]Coal management '!F44)","v":"Entanglement, caught between\nNip points"},{"$f":"IF('[2]Coal management '!A44=\"\",\"\",'[2]Coal management '!G44)","v":"Safety "},{"$f":"IF('[2]Coal management '!A44=\"\",\"\",'[2]Coal management '!L44)","v":"Daily"},{"$f":"IF('[2]Coal management '!A44=\"\",\"\",'[2]Coal management '!M44)","v":"Serious injury requiring medical treatment , fatality"},{"$f":"IF('[2]Coal management '!A44=\"\",\"\",'[2]Coal management '!N44)","v":"Warning signs, No loose clothing/hair, PPE(overalls,3-point anchor hard hat, gloves)"},{"$f":"IF('[2]Coal management '!A44=\"\",\"\",'[2]Coal management '!O44)","v":4},{"$f":"IF('[2]Coal management '!A44=\"\",\"\",'[2]Coal management '!P44)","v":"C"},{"$f":"IF('[2]Coal management '!A44=\"\",\"\",'[2]Coal management '!Q44)","v":"II"},{"$f":"IF('[2]Coal management '!A44=\"\",\"\",'[2]Coal management '!T44)","v":"Job observation"},{"$f":"IF('[2]Coal management '!A44=\"\",\"\",'[2]Coal management '!U44)","v":"Responsible manager"}]
[{"$f":"IF('[2]Coal management '!A45=\"\",\"\",'[2]Coal management '!A45)","v":"Cleaning of conveyors and chutes"},{"$f":"IF('[2]Coal management '!A45=\"\",\"\",'[2]Coal management '!D45)","v":"Rotating equipment"},{"$f":"IF('[2]Coal management '!A45=\"\",\"\",'[2]Coal management '!F45)","v":"Entanglement, caught between\nNip points"},{"$f":"IF('[2]Coal management '!A45=\"\",\"\",'[2]Coal management '!G45)","v":"Safety "},{"$f":"IF('[2]Coal management '!A45=\"\",\"\",'[2]Coal management '!L45)","v":"Daily"},{"$f":"IF('[2]Coal management '!A45=\"\",\"\",'[2]Coal management '!M45)","v":"Serious injury requiring medical treatment, fatality "},{"$f":"IF('[2]Coal management '!A45=\"\",\"\",'[2]Coal management '!N45)","v":"Warning signs, No loose clothing/hair, PPE(overalls,3-point anchor hard hat, gloves)"},{"$f":"IF('[2]Coal management '!A45=\"\",\"\",'[2]Coal management '!O45)","v":3},{"$f":"IF('[2]Coal management '!A45=\"\",\"\",'[2]Coal management '!P45)","v":"D"},{"$f":"IF('[2]Coal management '!A45=\"\",\"\",'[2]Coal management '!Q45)","v":"II"},{"$f":"IF('[2]Coal management '!A45=\"\",\"\",'[2]Coal management '!T45)","v":"LAR System, Planned Task Observation, SMAT, Defects Reporting"},{"$f":"IF('[2]Coal management '!A45=\"\",\"\",'[2]Coal management '!U45)","v":"Responsible manager"}]
[{"$f":"IF('[2]Coal management '!A46=\"\",\"\",'[2]Coal management '!A46)","v":"Cleaning of conveyors and chutes"},{"$f":"IF('[2]Coal management '!A46=\"\",\"\",'[2]Coal management '!D46)","v":"Vibrations"},{"$f":"IF('[2]Coal management '!A46=\"\",\"\",'[2]Coal management '!F46)","v":"Internal organ damage. Hand Arm vibration syndrome"},{"$f":"IF('[2]Coal management '!A46=\"\",\"\",'[2]Coal management '!G46)","v":"Safety "},{"$f":"IF('[2]Coal management '!A46=\"\",\"\",'[2]Coal management '!L46)","v":"Daily"},{"$f":"IF('[2]Coal management '!A46=\"\",\"\",'[2]Coal management '!M46)","v":"Injury, long term-health complications"},{"$f":"IF('[2]Coal management '!A46=\"\",\"\",'[2]Coal management '!N46)","v":"Warning signs, pre-job brief, pre-job inspection"},{"$f":"IF('[2]Coal management '!A46=\"\",\"\",'[2]Coal management '!O46)","v":2},{"$f":"IF('[2]Coal management '!A46=\"\",\"\",'[2]Coal management '!P46)","v":"B"},{"$f":"IF('[2]Coal management '!A46=\"\",\"\",'[2]Coal management '!Q46)","v":"IV"},{"$f":"IF('[2]Coal management '!A46=\"\",\"\",'[2]Coal management '!T46)","v":"LAR System, Defects reporting, Barricading, Vibration Surveys"},{"$f":"IF('[2]Coal management '!A46=\"\",\"\",'[2]Coal management '!U46)","v":"Responsible manager"}]
[{"$f":"IF('[2]Coal management '!A47=\"\",\"\",'[2]Coal management '!A47)","v":"Cleaning of conveyors and chutes"},{"$f":"IF('[2]Coal management '!A47=\"\",\"\",'[2]Coal management '!D47)","v":"extreme weather conditions "},{"$f":"IF('[2]Coal management '!A47=\"\",\"\",'[2]Coal management '!F47)","v":"hear stress, heat stroke, cold stress"},{"$f":"IF('[2]Coal management '!A47=\"\",\"\",'[2]Coal management '!G47)","v":"Health "},{"$f":"IF('[2]Coal management '!A47=\"\",\"\",'[2]Coal management '!L47)","v":"Daily"},{"$f":"IF('[2]Coal management '!A47=\"\",\"\",'[2]Coal management '!M47)","v":"Long term health complications"},{"$f":"IF('[2]Coal management '!A47=\"\",\"\",'[2]Coal management '!N47)","v":"Appropreate clothing, rest periods"},{"$f":"IF('[2]Coal management '!A47=\"\",\"\",'[2]Coal management '!O47)","v":4},{"$f":"IF('[2]Coal management '!A47=\"\",\"\",'[2]Coal management '!P47)","v":"C"},{"$f":"IF('[2]Coal management '!A47=\"\",\"\",'[2]Coal management '!Q47)","v":"II"},{"$f":"IF('[2]Coal management '!A47=\"\",\"\",'[2]Coal management '!T47)","v":"Periodic medical screening"},{"$f":"IF('[2]Coal management '!A47=\"\",\"\",'[2]Coal management '!U47)","v":"Responsible manager"}]
[{"$f":"IF('[2]Coal management '!A48=\"\",\"\",'[2]Coal management '!A48)","v":"Cleaning inside the conditioners"},{"$f":"IF('[2]Coal management '!A48=\"\",\"\",'[2]Coal management '!D48)","v":0},{"$f":"IF('[2]Coal management '!A48=\"\",\"\",'[2]Coal management '!F48)","v":0},{"$f":"IF('[2]Coal management '!A48=\"\",\"\",'[2]Coal management '!G48)","v":0},{"$f":"IF('[2]Coal management '!A48=\"\",\"\",'[2]Coal management '!L48)","v":0},{"$f":"IF('[2]Coal management '!A48=\"\",\"\",'[2]Coal management '!M48)","v":0},{"$f":"IF('[2]Coal management '!A48=\"\",\"\",'[2]Coal management '!N48)","v":0},{"$f":"IF('[2]Coal management '!A48=\"\",\"\",'[2]Coal management '!O48)","v":0},{"$f":"IF('[2]Coal management '!A48=\"\",\"\",'[2]Coal management '!P48)","v":0},{"$f":"IF('[2]Coal management '!A48=\"\",\"\",'[2]Coal management '!Q48)","v":0},{"$f":"IF('[2]Coal management '!A48=\"\",\"\",'[2]Coal management '!T48)","v":0},{"$f":"IF('[2]Coal management '!A48=\"\",\"\",'[2]Coal management '!U48)","v":0}]
[{"$f":"IF('[2]Coal management '!A50=\"\",\"\",'[2]Coal management '!A50)","v":"conditioner unblocking"},{"$f":"IF('[2]Coal management '!A50=\"\",\"\",'[2]Coal management '!D50)","v":"Vibration"},{"$f":"IF('[2]Coal management '!A50=\"\",\"\",'[2]Coal management '!F50)","v":"Internal organ damage. Hand Arm vibration syndrome"},{"$f":"IF('[2]Coal management '!A50=\"\",\"\",'[2]Coal management '!G50)","v":"Safety "},{"$f":"IF('[2]Coal management '!A50=\"\",\"\",'[2]Coal management '!L50)","v":"Daily"},{"$f":"IF('[2]Coal management '!A50=\"\",\"\",'[2]Coal management '!M50)","v":"Injury, long term-health complications"},{"$f":"IF('[2]Coal management '!A50=\"\",\"\",'[2]Coal management '!N50)","v":"Warning signs, pre-job brief, pre-job inspection"},{"$f":"IF('[2]Coal management '!A50=\"\",\"\",'[2]Coal management '!O50)","v":1},{"$f":"IF('[2]Coal management '!A50=\"\",\"\",'[2]Coal management '!P50)","v":"A"},{"$f":"IF('[2]Coal management '!A50=\"\",\"\",'[2]Coal management '!Q50)","v":"IV"},{"$f":"IF('[2]Coal management '!A50=\"\",\"\",'[2]Coal management '!T50)","v":"LAR System, Defects reporting, Barricading, Vibration Surveys"},{"$f":"IF('[2]Coal management '!A50=\"\",\"\",'[2]Coal management '!U50)","v":"Responsible manager"}]
[{"$f":"IF('[2]Coal management '!A51=\"\",\"\",'[2]Coal management '!A51)","v":"conditioner unblocking"},{"$f":"IF('[2]Coal management '!A51=\"\",\"\",'[2]Coal management '!D51)","v":"Noise"},{"$f":"IF('[2]Coal management '!A51=\"\",\"\",'[2]Coal management '!F51)","v":"NIHL"},{"$f":"IF('[2]Coal management '!A51=\"\",\"\",'[2]Coal management '!G51)","v":"Health "},{"$f":"IF('[2]Coal management '!A51=\"\",\"\",'[2]Coal management '!L51)","v":"Daily"},{"$f":"IF('[2]Coal management '!A51=\"\",\"\",'[2]Coal management '!M51)","v":"Noise induced Hearing Loss, Occupational disease with non reversible consequence "},{"$f":"IF('[2]Coal management '!A51=\"\",\"\",'[2]Coal management '!N51)","v":"Safety signs, PPE(hearing protection)"},{"$f":"IF('[2]Coal management '!A51=\"\",\"\",'[2]Coal management '!O51)","v":2},{"$f":"IF('[2]Coal management '!A51=\"\",\"\",'[2]Coal management '!P51)","v":"B"},{"$f":"IF('[2]Coal management '!A51=\"\",\"\",'[2]Coal management '!Q51)","v":"IV"},{"$f":"IF('[2]Coal management '!A51=\"\",\"\",'[2]Coal management '!T51)","v":" noise survey, Plant Inspections,  Medical Surveillance Procedure 32-285, Deffects Reporting,tool box talks "},{"$f":"IF('[2]Coal management '!A51=\"\",\"\",'[2]Coal management '!U51)","v":"Responsible manager"}]
[{"$f":"IF('[2]Coal management '!A52=\"\",\"\",'[2]Coal management '!A52)","v":"conditioner unblocking"},{"$f":"IF('[2]Coal management '!A52=\"\",\"\",'[2]Coal management '!D52)","v":"Sharp rotating equipment"},{"$f":"IF('[2]Coal management '!A52=\"\",\"\",'[2]Coal management '!F52)","v":"Entanglement, caught between\nNip points"},{"$f":"IF('[2]Coal management '!A52=\"\",\"\",'[2]Coal management '!G52)","v":"Safety "},{"$f":"IF('[2]Coal management '!A52=\"\",\"\",'[2]Coal management '!L52)","v":"Daily"},{"$f":"IF('[2]Coal management '!A52=\"\",\"\",'[2]Coal management '!M52)","v":"Serious injury requiring medical treatment, fatality "},{"$f":"IF('[2]Coal management '!A52=\"\",\"\",'[2]Coal management '!N52)","v":"Warning signs, No loose clothing/hair, PPE(overalls,3-point anchor hard hat, gloves)"},{"$f":"IF('[2]Coal management '!A52=\"\",\"\",'[2]Coal management '!O52)","v":4},{"$f":"IF('[2]Coal management '!A52=\"\",\"\",'[2]Coal management '!P52)","v":"B"},{"$f":"IF('[2]Coal management '!A52=\"\",\"\",'[2]Coal management '!Q52)","v":"III"},{"$f":"IF('[2]Coal management '!A52=\"\",\"\",'[2]Coal management '!T52)","v":"LAR System, Planned Task Observation, SMAT, Defects Reporting"},"OHS Act s8(2)(c)\nOHS Act s8(2)e\nGSR 2\nERW 3 & 4\nIllumination stress Management work instruction 240-85246142\nErgonomics Management work instruction 240-85428463"]
[{"$f":"IF('[2]Coal management '!A53=\"\",\"\",'[2]Coal management '!A53)","v":"conditioner unblocking"},{"$f":"IF('[2]Coal management '!A53=\"\",\"\",'[2]Coal management '!D53)","v":"inaccessible work areas"},{"$f":"IF('[2]Coal management '!A53=\"\",\"\",'[2]Coal management '!F53)","v":"slip,trip and fall"},{"$f":"IF('[2]Coal management '!A53=\"\",\"\",'[2]Coal management '!G53)","v":"Safety "},{"$f":"IF('[2]Coal management '!A53=\"\",\"\",'[2]Coal management '!L53)","v":"Daily"},{"$f":"IF('[2]Coal management '!A53=\"\",\"\",'[2]Coal management '!M53)","v":"Minor Injuries requiring Medical treatment "},{"$f":"IF('[2]Coal management '!A53=\"\",\"\",'[2]Coal management '!N53)","v":"Pre-job brief, pre-job inspection, 3-point contact"},{"$f":"IF('[2]Coal management '!A53=\"\",\"\",'[2]Coal management '!O53)","v":2},{"$f":"IF('[2]Coal management '!A53=\"\",\"\",'[2]Coal management '!P53)","v":"B"},{"$f":"IF('[2]Coal management '!A53=\"\",\"\",'[2]Coal management '!Q53)","v":"IV"},{"$f":"IF('[2]Coal management '!A53=\"\",\"\",'[2]Coal management '!T53)","v":"Job observation"},{"$f":"IF('[2]Coal management '!A53=\"\",\"\",'[2]Coal management '!U53)","v":"Responsible manager"}]
[{"$f":"IF('[2]Coal management '!A54=\"\",\"\",'[2]Coal management '!A54)","v":"conditioner unblocking"},{"$f":"IF('[2]Coal management '!A54=\"\",\"\",'[2]Coal management '!D54)","v":"Restricted work areas"},{"$f":"IF('[2]Coal management '!A54=\"\",\"\",'[2]Coal management '!F54)","v":"Musco-skeletal injuries."},{"$f":"IF('[2]Coal management '!A54=\"\",\"\",'[2]Coal management '!G54)","v":"Safety "},{"$f":"IF('[2]Coal management '!A54=\"\",\"\",'[2]Coal management '!L54)","v":"Daily"},{"$f":"IF('[2]Coal management '!A54=\"\",\"\",'[2]Coal management '!M54)","v":"Minor injuries requiring medical treatment "},{"$f":"IF('[2]Coal management '!A54=\"\",\"\",'[2]Coal management '!N54)","v":"Prohibitory signs"},{"$f":"IF('[2]Coal management '!A54=\"\",\"\",'[2]Coal management '!O54)","v":4},{"$f":"IF('[2]Coal management '!A54=\"\",\"\",'[2]Coal management '!P54)","v":"B"},{"$f":"IF('[2]Coal management '!A54=\"\",\"\",'[2]Coal management '!Q54)","v":"III"},{"$f":"IF('[2]Coal management '!A54=\"\",\"\",'[2]Coal management '!T54)","v":"Medical Surveillance Procedure 32-285, Ergonomic Surveys,  Tool Box Talks"},{"$f":"IF('[2]Coal management '!A54=\"\",\"\",'[2]Coal management '!U54)","v":"Responsible manager"}]
[{"$f":"IF('[2]Coal management '!A55=\"\",\"\",'[2]Coal management '!A55)","v":"conditioner unblocking"},{"$f":"IF('[2]Coal management '!A55=\"\",\"\",'[2]Coal management '!D55)","v":"defected hand tools"},{"$f":"IF('[2]Coal management '!A55=\"\",\"\",'[2]Coal management '!F55)","v":"hand injuries, nip point/pinch point"},{"$f":"IF('[2]Coal management '!A55=\"\",\"\",'[2]Coal management '!G55)","v":"Safety "},{"$f":"IF('[2]Coal management '!A55=\"\",\"\",'[2]Coal management '!L55)","v":"Daily"},{"$f":"IF('[2]Coal management '!A55=\"\",\"\",'[2]Coal management '!M55)","v":"Serious injury requiring medical treatment"},{"$f":"IF('[2]Coal management '!A55=\"\",\"\",'[2]Coal management '!N55)","v":"Pre-job inspection, toolbox talk, PPE(gloves)"},{"$f":"IF('[2]Coal management '!A55=\"\",\"\",'[2]Coal management '!O55)","v":4},{"$f":"IF('[2]Coal management '!A55=\"\",\"\",'[2]Coal management '!P55)","v":"B"},{"$f":"IF('[2]Coal management '!A55=\"\",\"\",'[2]Coal management '!Q55)","v":"III"},{"$f":"IF('[2]Coal management '!A55=\"\",\"\",'[2]Coal management '!T55)","v":"Plant Inspections, SMAT, Planned Task Observations, Incident reporting, Medical Surveillance Procedure 32-285,  Deffects Reporting,  Equipment Inspection, Tool Box Talks, "},{"$f":"IF('[2]Coal management '!A55=\"\",\"\",'[2]Coal management '!U55)","v":"Responsible manager"}]
[{"$f":"IF('[2]Coal management '!A56=\"\",\"\",'[2]Coal management '!A56)","v":"conditioner unblocking"},{"$f":"IF('[2]Coal management '!A56=\"\",\"\",'[2]Coal management '!D56)","v":"vibrating handtools"},{"$f":"IF('[2]Coal management '!A56=\"\",\"\",'[2]Coal management '!F56)","v":"Internal organ damage. Hand Arm vibration syndrome"},{"$f":"IF('[2]Coal management '!A56=\"\",\"\",'[2]Coal management '!G56)","v":"Safety "},{"$f":"IF('[2]Coal management '!A56=\"\",\"\",'[2]Coal management '!L56)","v":"Daily"},{"$f":"IF('[2]Coal management '!A56=\"\",\"\",'[2]Coal management '!M56)","v":"Serious injury requiring medical treatment, fatality "},{"$f":"IF('[2]Coal management '!A56=\"\",\"\",'[2]Coal management '!N56)","v":"Pre-job inspection, pre-job brief, Warning signs"},{"$f":"IF('[2]Coal management '!A56=\"\",\"\",'[2]Coal management '!O56)","v":4},{"$f":"IF('[2]Coal management '!A56=\"\",\"\",'[2]Coal management '!P56)","v":"A"},{"$f":"IF('[2]Coal management '!A56=\"\",\"\",'[2]Coal management '!Q56)","v":"III"},{"$f":"IF('[2]Coal management '!A56=\"\",\"\",'[2]Coal management '!T56)","v":"Job observation, toolbox talks"},{"$f":"IF('[2]Coal management '!A56=\"\",\"\",'[2]Coal management '!U56)","v":"Responsible manager"}]
[{"$f":"IF('[2]Coal management '!A57=\"\",\"\",'[2]Coal management '!A57)","v":"conditioner unblocking"},{"$f":"IF('[2]Coal management '!A57=\"\",\"\",'[2]Coal management '!D57)","v":"Suspended material/equipment"},{"$f":"IF('[2]Coal management '!A57=\"\",\"\",'[2]Coal management '!F57)","v":"struck by "},{"$f":"IF('[2]Coal management '!A57=\"\",\"\",'[2]Coal management '!G57)","v":"Safety "},{"$f":"IF('[2]Coal management '!A57=\"\",\"\",'[2]Coal management '!L57)","v":"Daily"},{"$f":"IF('[2]Coal management '!A57=\"\",\"\",'[2]Coal management '!M57)","v":"Serious injury requiring medical treatment, fatality "},{"$f":"IF('[2]Coal management '!A57=\"\",\"\",'[2]Coal management '!N57)","v":"Pre-job brief, PPE(3-point anchor hard hat,safety goggles)"},{"$f":"IF('[2]Coal management '!A57=\"\",\"\",'[2]Coal management '!O57)","v":1},{"$f":"IF('[2]Coal management '!A57=\"\",\"\",'[2]Coal management '!P57)","v":"A"},{"$f":"IF('[2]Coal management '!A57=\"\",\"\",'[2]Coal management '!Q57)","v":"IV"},{"$f":"IF('[2]Coal management '!A57=\"\",\"\",'[2]Coal management '!T57)","v":"Job observation, toolbox talks"},{"$f":"IF('[2]Coal management '!A57=\"\",\"\",'[2]Coal management '!U57)","v":"Responsible manager"}]
[{"$f":"IF('[2]Coal management '!A58=\"\",\"\",'[2]Coal management '!A58)","v":"conditioner unblocking"},{"$f":"IF('[2]Coal management '!A58=\"\",\"\",'[2]Coal management '!D58)","v":"Tight locking pins"},{"$f":"IF('[2]Coal management '!A58=\"\",\"\",'[2]Coal management '!F58)","v":"Nip/pinch point"},{"$f":"IF('[2]Coal management '!A58=\"\",\"\",'[2]Coal management '!G58)","v":"Safety "},{"$f":"IF('[2]Coal management '!A58=\"\",\"\",'[2]Coal management '!L58)","v":"Daily"},{"$f":"IF('[2]Coal management '!A58=\"\",\"\",'[2]Coal management '!M58)","v":"hands Injury"},{"$f":"IF('[2]Coal management '!A58=\"\",\"\",'[2]Coal management '!N58)","v":"PPE(gloves)"},{"$f":"IF('[2]Coal management '!A58=\"\",\"\",'[2]Coal management '!O58)","v":2},{"$f":"IF('[2]Coal management '!A58=\"\",\"\",'[2]Coal management '!P58)","v":"B"},{"$f":"IF('[2]Coal management '!A58=\"\",\"\",'[2]Coal management '!Q58)","v":"IV"},{"$f":"IF('[2]Coal management '!A58=\"\",\"\",'[2]Coal management '!T58)","v":"Plant Inspections, SMAT, Planned Task Observations, Incident reporting, Medical Surveillance Procedure 32-285,  Deffects Reporting,  Equipment Inspection, Tool Box Talks, "},{"$f":"IF('[2]Coal management '!A58=\"\",\"\",'[2]Coal management '!U58)","v":"Responsible manager"}]
[{"$f":"IF('[2]Coal management '!A59=\"\",\"\",'[2]Coal management '!A59)","v":"conditioner unblocking"},{"$f":"IF('[2]Coal management '!A59=\"\",\"\",'[2]Coal management '!D59)","v":"vibration"},{"$f":"IF('[2]Coal management '!A59=\"\",\"\",'[2]Coal management '!F59)","v":"Internal organ damage. Hand Arm vibration syndrome"},{"$f":"IF('[2]Coal management '!A59=\"\",\"\",'[2]Coal management '!G59)","v":"Safety "},{"$f":"IF('[2]Coal management '!A59=\"\",\"\",'[2]Coal management '!L59)","v":"Daily"},{"$f":"IF('[2]Coal management '!A59=\"\",\"\",'[2]Coal management '!M59)","v":"serious injury"},{"$f":"IF('[2]Coal management '!A59=\"\",\"\",'[2]Coal management '!N59)","v":"Pre-job inspection, pre-job brief, Warning signs"},{"$f":"IF('[2]Coal management '!A59=\"\",\"\",'[2]Coal management '!O59)","v":2},{"$f":"IF('[2]Coal management '!A59=\"\",\"\",'[2]Coal management '!P59)","v":"B"},{"$f":"IF('[2]Coal management '!A59=\"\",\"\",'[2]Coal management '!Q59)","v":"IV"},{"$f":"IF('[2]Coal management '!A59=\"\",\"\",'[2]Coal management '!T59)","v":"LAR System, Defects reporting, Barricading, Vibration Surveys"},{"$f":"IF('[2]Coal management '!A59=\"\",\"\",'[2]Coal management '!U59)","v":"Responsible manager"}]
[{"$f":"IF('[2]Coal management '!A61=\"\",\"\",'[2]Coal management '!A61)","v":"Moving of the ash from CAC by conveyor belt up to radial stacker"},{"$f":"IF('[2]Coal management '!A61=\"\",\"\",'[2]Coal management '!D61)","v":"Fly ash"},{"$f":"IF('[2]Coal management '!A61=\"\",\"\",'[2]Coal management '!F61)","v":"Exposure to ash dust  "},{"$f":"IF('[2]Coal management '!A61=\"\",\"\",'[2]Coal management '!G61)","v":"Health "},{"$f":"IF('[2]Coal management '!A61=\"\",\"\",'[2]Coal management '!L61)","v":"Daily"},{"$f":"IF('[2]Coal management '!A61=\"\",\"\",'[2]Coal management '!M61)","v":"Damage to eye sight "},{"$f":"IF('[2]Coal management '!A61=\"\",\"\",'[2]Coal management '!N61)","v":"PPE(dust mask, hearing protection), safety signs"},{"$f":"IF('[2]Coal management '!A61=\"\",\"\",'[2]Coal management '!O61)","v":4},{"$f":"IF('[2]Coal management '!A61=\"\",\"\",'[2]Coal management '!P61)","v":"B"},{"$f":"IF('[2]Coal management '!A61=\"\",\"\",'[2]Coal management '!Q61)","v":"III"},{"$f":"IF('[2]Coal management '!A61=\"\",\"\",'[2]Coal management '!T61)","v":"Plant Inspections, Medical Surveillance Procedure 32-285,  Deffects Reporting, Tool Box Talks"},{"$f":"IF('[2]Coal management '!A61=\"\",\"\",'[2]Coal management '!U61)","v":"Responsible manager"}]
[{"$f":"IF('[2]Coal management '!A62=\"\",\"\",'[2]Coal management '!A62)","v":"Moving of the ash from CAC by conveyor belt up to radial stacker"},{"$f":"IF('[2]Coal management '!A62=\"\",\"\",'[2]Coal management '!D62)","v":"Moving conveyor belt "},{"$f":"IF('[2]Coal management '!A62=\"\",\"\",'[2]Coal management '!F62)","v":"Becoming entangled in the conveyor belt "},{"$f":"IF('[2]Coal management '!A62=\"\",\"\",'[2]Coal management '!G62)","v":"Safety "},{"$f":"IF('[2]Coal management '!A62=\"\",\"\",'[2]Coal management '!L62)","v":"Daily"},{"$f":"IF('[2]Coal management '!A62=\"\",\"\",'[2]Coal management '!M62)","v":"medical injury, fatality"},{"$f":"IF('[2]Coal management '!A62=\"\",\"\",'[2]Coal management '!N62)","v":"Warning signs, No loose clothing/hair, PPE(overalls,3-point anchor hard hat, gloves)"},{"$f":"IF('[2]Coal management '!A62=\"\",\"\",'[2]Coal management '!O62)","v":4},{"$f":"IF('[2]Coal management '!A62=\"\",\"\",'[2]Coal management '!P62)","v":"B"},{"$f":"IF('[2]Coal management '!A62=\"\",\"\",'[2]Coal management '!Q62)","v":"III"},{"$f":"IF('[2]Coal management '!A62=\"\",\"\",'[2]Coal management '!T62)","v":"Plant Inspections, Medical Surveillance Procedure 32-285,  Deffects Reporting, Tool Box Talks"},{"$f":"IF('[2]Coal management '!A62=\"\",\"\",'[2]Coal management '!U62)","v":"Responsible manager"}]
[{"$f":"IF('[2]Coal management '!A63=\"\",\"\",'[2]Coal management '!A63)","v":"Moving of the ash from CAC by conveyor belt up to radial stacker"},{"$f":"IF('[2]Coal management '!A63=\"\",\"\",'[2]Coal management '!D63)","v":"Ash dust"},{"$f":"IF('[2]Coal management '!A63=\"\",\"\",'[2]Coal management '!F63)","v":"Inhalation of ash dust"},{"$f":"IF('[2]Coal management '!A63=\"\",\"\",'[2]Coal management '!G63)","v":"Health "},{"$f":"IF('[2]Coal management '!A63=\"\",\"\",'[2]Coal management '!L63)","v":"Daily"},{"$f":"IF('[2]Coal management '!A63=\"\",\"\",'[2]Coal management '!M63)","v":"Lung disease, silicosis"},{"$f":"IF('[2]Coal management '!A63=\"\",\"\",'[2]Coal management '!N63)","v":"Toolbox talk,Pre-job brief, PPE(dust mask)"},{"$f":"IF('[2]Coal management '!A63=\"\",\"\",'[2]Coal management '!O63)","v":4},{"$f":"IF('[2]Coal management '!A63=\"\",\"\",'[2]Coal management '!P63)","v":"A"},{"$f":"IF('[2]Coal management '!A63=\"\",\"\",'[2]Coal management '!Q63)","v":"III"},{"$f":"IF('[2]Coal management '!A63=\"\",\"\",'[2]Coal management '!T63)","v":"Plant Inspections, Medical Surveillance Procedure 32-285,  Deffects Reporting, Tool Box Talks"},{"$f":"IF('[2]Coal management '!A63=\"\",\"\",'[2]Coal management '!U63)","v":"Responsible manager"}]
[{"$f":"IF('[2]Coal management '!A64=\"\",\"\",'[2]Coal management '!A64)","v":"Use of moving vehicles to transport Ash to Dump"},{"$f":"IF('[2]Coal management '!A64=\"\",\"\",'[2]Coal management '!D64)","v":"Ash dust"},{"$f":"IF('[2]Coal management '!A64=\"\",\"\",'[2]Coal management '!F64)","v":"Eye contact with ash dust"},{"$f":"IF('[2]Coal management '!A64=\"\",\"\",'[2]Coal management '!G64)","v":"Safety "},{"$f":"IF('[2]Coal management '!A64=\"\",\"\",'[2]Coal management '!L64)","v":"Daily"},{"$f":"IF('[2]Coal management '!A64=\"\",\"\",'[2]Coal management '!M64)","v":"Eye irritation or infection"},{"$f":"IF('[2]Coal management '!A64=\"\",\"\",'[2]Coal management '!N64)","v":"Toolbox talk, PPE(safety goggles)"},{"$f":"IF('[2]Coal management '!A64=\"\",\"\",'[2]Coal management '!O64)","v":1},{"$f":"IF('[2]Coal management '!A64=\"\",\"\",'[2]Coal management '!P64)","v":"A"},{"$f":"IF('[2]Coal management '!A64=\"\",\"\",'[2]Coal management '!Q64)","v":"IV"},{"$f":"IF('[2]Coal management '!A64=\"\",\"\",'[2]Coal management '!T64)","v":"Plant Inspections, Medical Surveillance Procedure 32-285,  Deffects Reporting, Tool Box Talks"},{"$f":"IF('[2]Coal management '!A64=\"\",\"\",'[2]Coal management '!U64)","v":"Responsible manager"}]
[{"$f":"IF('[2]Coal management '!A65=\"\",\"\",'[2]Coal management '!A65)","v":"Loading mixed ash using FEL "},{"$f":"IF('[2]Coal management '!A65=\"\",\"\",'[2]Coal management '!D65)","v":"faulty machinery"},{"$f":"IF('[2]Coal management '!A65=\"\",\"\",'[2]Coal management '!F65)","v":"burried alive"},{"$f":"IF('[2]Coal management '!A65=\"\",\"\",'[2]Coal management '!G65)","v":"Safety "},{"$f":"IF('[2]Coal management '!A65=\"\",\"\",'[2]Coal management '!L65)","v":"Daily"},{"$f":"IF('[2]Coal management '!A65=\"\",\"\",'[2]Coal management '!M65)","v":"fatality"},{"$f":"IF('[2]Coal management '!A65=\"\",\"\",'[2]Coal management '!N65)","v":"Radio/cellphone contact, Pre-job brief, pre-job instpection, machine checksheets"},{"$f":"IF('[2]Coal management '!A65=\"\",\"\",'[2]Coal management '!O65)","v":2},{"$f":"IF('[2]Coal management '!A65=\"\",\"\",'[2]Coal management '!P65)","v":"B"},{"$f":"IF('[2]Coal management '!A65=\"\",\"\",'[2]Coal management '!Q65)","v":"IV"},{"$f":"IF('[2]Coal management '!A65=\"\",\"\",'[2]Coal management '!T65)","v":"Job observation"},{"$f":"IF('[2]Coal management '!A65=\"\",\"\",'[2]Coal management '!U65)","v":"Responsible manager"}]
[{"$f":"IF('[2]Coal management '!A66=\"\",\"\",'[2]Coal management '!A66)","v":"Loading mixed ash using FEL "},{"$f":"IF('[2]Coal management '!A66=\"\",\"\",'[2]Coal management '!D66)","v":"limited space"},{"$f":"IF('[2]Coal management '!A66=\"\",\"\",'[2]Coal management '!F66)","v":"property damage/motor vehicle incident"},{"$f":"IF('[2]Coal management '!A66=\"\",\"\",'[2]Coal management '!G66)","v":"Safety "},{"$f":"IF('[2]Coal management '!A66=\"\",\"\",'[2]Coal management '!L66)","v":"Daily"},{"$f":"IF('[2]Coal management '!A66=\"\",\"\",'[2]Coal management '!M66)","v":"MVA, fatality"},{"$f":"IF('[2]Coal management '!A66=\"\",\"\",'[2]Coal management '!N66)","v":"5m following distance, 2m clearence from machines"},{"$f":"IF('[2]Coal management '!A66=\"\",\"\",'[2]Coal management '!O66)","v":2},{"$f":"IF('[2]Coal management '!A66=\"\",\"\",'[2]Coal management '!P66)","v":"B"},{"$f":"IF('[2]Coal management '!A66=\"\",\"\",'[2]Coal management '!Q66)","v":"IV"},{"$f":"IF('[2]Coal management '!A66=\"\",\"\",'[2]Coal management '!T66)","v":"Medical Surveillance Procedure 32-285,, Tool Box Talks"},{"$f":"IF('[2]Coal management '!A66=\"\",\"\",'[2]Coal management '!U66)","v":"Responsible manager"}]
[{"$f":"IF('[2]Coal management '!A67=\"\",\"\",'[2]Coal management '!A67)","v":"Loading mixed ash using FEL "},{"$f":"IF('[2]Coal management '!A67=\"\",\"\",'[2]Coal management '!D67)","v":"wet material "},{"$f":"IF('[2]Coal management '!A67=\"\",\"\",'[2]Coal management '!F67)","v":"machine overturning"},{"$f":"IF('[2]Coal management '!A67=\"\",\"\",'[2]Coal management '!G67)","v":"Safety "},{"$f":"IF('[2]Coal management '!A67=\"\",\"\",'[2]Coal management '!L67)","v":"Daily"},{"$f":"IF('[2]Coal management '!A67=\"\",\"\",'[2]Coal management '!M67)","v":"fatality, serious injury requiring medical treatment , MVA, property damage"},{"$f":"IF('[2]Coal management '!A67=\"\",\"\",'[2]Coal management '!N67)","v":"Pre-job brief, pre-job inspection"},{"$f":"IF('[2]Coal management '!A67=\"\",\"\",'[2]Coal management '!O67)","v":3},{"$f":"IF('[2]Coal management '!A67=\"\",\"\",'[2]Coal management '!P67)","v":"C"},{"$f":"IF('[2]Coal management '!A67=\"\",\"\",'[2]Coal management '!Q67)","v":"II"},{"$f":"IF('[2]Coal management '!A67=\"\",\"\",'[2]Coal management '!T67)","v":"Job observation"},{"$f":"IF('[2]Coal management '!A67=\"\",\"\",'[2]Coal management '!U67)","v":"Responsible manager"}]
[{"$f":"IF('[2]Coal management '!A69=\"\",\"\",'[2]Coal management '!A69)","v":"Driving in the premises of the Power Station"},{"$f":"IF('[2]Coal management '!A69=\"\",\"\",'[2]Coal management '!D69)","v":"driving over the speed limit"},{"$f":"IF('[2]Coal management '!A69=\"\",\"\",'[2]Coal management '!F69)","v":"Collision with moving machinery ,equipment, structures and other vehicles"},{"$f":"IF('[2]Coal management '!A69=\"\",\"\",'[2]Coal management '!G69)","v":"Safety "},{"$f":"IF('[2]Coal management '!A69=\"\",\"\",'[2]Coal management '!L69)","v":"Daily"},{"$f":"IF('[2]Coal management '!A69=\"\",\"\",'[2]Coal management '!M69)","v":"fatality, serious injury requiring medical treatment , MVA, property damage"},{"$f":"IF('[2]Coal management '!A69=\"\",\"\",'[2]Coal management '!N69)","v":"Road signs"},{"$f":"IF('[2]Coal management '!A69=\"\",\"\",'[2]Coal management '!O69)","v":4},{"$f":"IF('[2]Coal management '!A69=\"\",\"\",'[2]Coal management '!P69)","v":"A"},{"$f":"IF('[2]Coal management '!A69=\"\",\"\",'[2]Coal management '!Q69)","v":"III"},{"$f":"IF('[2]Coal management '!A69=\"\",\"\",'[2]Coal management '!T69)","v":"Job observation, incident reporting"},{"$f":"IF('[2]Coal management '!A69=\"\",\"\",'[2]Coal management '!U69)","v":"Responsible manager"}]
[{"$f":"IF('[2]Coal management '!A70=\"\",\"\",'[2]Coal management '!A70)","v":"Driving on ash dump"},{"$f":"IF('[2]Coal management '!A70=\"\",\"\",'[2]Coal management '!D70)","v":"axcesive dust"},{"$f":"IF('[2]Coal management '!A70=\"\",\"\",'[2]Coal management '!F70)","v":"Collision with moving machinery ,equipment, structures and other vehicles"},{"$f":"IF('[2]Coal management '!A70=\"\",\"\",'[2]Coal management '!G70)","v":"Safety "},{"$f":"IF('[2]Coal management '!A70=\"\",\"\",'[2]Coal management '!L70)","v":"Daily"},{"$f":"IF('[2]Coal management '!A70=\"\",\"\",'[2]Coal management '!M70)","v":"fatality, serious injury requiring medical treatment , MVA, property damage"},{"$f":"IF('[2]Coal management '!A70=\"\",\"\",'[2]Coal management '!N70)","v":"Dust suppression at intervals, PPE(dust mask, goggles)"},{"$f":"IF('[2]Coal management '!A70=\"\",\"\",'[2]Coal management '!O70)","v":1},{"$f":"IF('[2]Coal management '!A70=\"\",\"\",'[2]Coal management '!P70)","v":"A"},{"$f":"IF('[2]Coal management '!A70=\"\",\"\",'[2]Coal management '!Q70)","v":"IV"},{"$f":"IF('[2]Coal management '!A70=\"\",\"\",'[2]Coal management '!T70)","v":"Plant Inspections, Medical Surveillance Procedure 32-285,  Deffects Reporting, Tool Box Talks"},{"$f":"IF('[2]Coal management '!A70=\"\",\"\",'[2]Coal management '!U70)","v":"Responsible manager"}]
[{"$f":"IF('[2]Coal management '!A71=\"\",\"\",'[2]Coal management '!A71)","v":"Driving on ash dump"},{"$f":"IF('[2]Coal management '!A71=\"\",\"\",'[2]Coal management '!D71)","v":"Moving machinery"},{"$f":"IF('[2]Coal management '!A71=\"\",\"\",'[2]Coal management '!F71)","v":"Collision with moving machinery ,equipment, structures and other vehicles and personel"},{"$f":"IF('[2]Coal management '!A71=\"\",\"\",'[2]Coal management '!G71)","v":"Safety "},{"$f":"IF('[2]Coal management '!A71=\"\",\"\",'[2]Coal management '!L71)","v":"Daily"},{"$f":"IF('[2]Coal management '!A71=\"\",\"\",'[2]Coal management '!M71)","v":"fatality, serious injury requiring medical treatment , MVA, property damage"},{"$f":"IF('[2]Coal management '!A71=\"\",\"\",'[2]Coal management '!N71)","v":"5m following distance, 2m clearence from machines"},{"$f":"IF('[2]Coal management '!A71=\"\",\"\",'[2]Coal management '!O71)","v":2},{"$f":"IF('[2]Coal management '!A71=\"\",\"\",'[2]Coal management '!P71)","v":"B"},{"$f":"IF('[2]Coal management '!A71=\"\",\"\",'[2]Coal management '!Q71)","v":"IV"},{"$f":"IF('[2]Coal management '!A71=\"\",\"\",'[2]Coal management '!T71)","v":"Plant Inspections, Medical Surveillance Procedure 32-285,  , Tool Box Talks"},{"$f":"IF('[2]Coal management '!A71=\"\",\"\",'[2]Coal management '!U71)","v":"Responsible manager"}]
[{"$f":"IF('[2]Coal management '!A72=\"\",\"\",'[2]Coal management '!A72)","v":"Driving on ash dump"},{"$f":"IF('[2]Coal management '!A72=\"\",\"\",'[2]Coal management '!D72)","v":"wet, slipery surfaces"},{"$f":"IF('[2]Coal management '!A72=\"\",\"\",'[2]Coal management '!F72)","v":"Overturning"},{"$f":"IF('[2]Coal management '!A72=\"\",\"\",'[2]Coal management '!G72)","v":"Safety "},{"$f":"IF('[2]Coal management '!A72=\"\",\"\",'[2]Coal management '!L72)","v":"Daily"},{"$f":"IF('[2]Coal management '!A72=\"\",\"\",'[2]Coal management '!M72)","v":"fatality, serious injury requiring medical treatment , MVA, property damage"},{"$f":"IF('[2]Coal management '!A72=\"\",\"\",'[2]Coal management '!N72)","v":"Continiuos assessment of working area, and re-routing of traffic, Work stoppage"},{"$f":"IF('[2]Coal management '!A72=\"\",\"\",'[2]Coal management '!O72)","v":4},{"$f":"IF('[2]Coal management '!A72=\"\",\"\",'[2]Coal management '!P72)","v":"B"},{"$f":"IF('[2]Coal management '!A72=\"\",\"\",'[2]Coal management '!Q72)","v":"III"},{"$f":"IF('[2]Coal management '!A72=\"\",\"\",'[2]Coal management '!T72)","v":" Medical Surveillance Procedure 32-285,  , Tool Box Talks"},{"$f":"IF('[2]Coal management '!A72=\"\",\"\",'[2]Coal management '!U72)","v":"Responsible manager"}]
[{"$f":"IF('[2]Coal management '!A73=\"\",\"\",'[2]Coal management '!A73)","v":"Driving on ash dump"},{"$f":"IF('[2]Coal management '!A73=\"\",\"\",'[2]Coal management '!D73)","v":"water seepage under ash layer"},{"$f":"IF('[2]Coal management '!A73=\"\",\"\",'[2]Coal management '!F73)","v":"machine sinking"},{"$f":"IF('[2]Coal management '!A73=\"\",\"\",'[2]Coal management '!G73)","v":"Safety "},{"$f":"IF('[2]Coal management '!A73=\"\",\"\",'[2]Coal management '!L73)","v":"Daily"},{"$f":"IF('[2]Coal management '!A73=\"\",\"\",'[2]Coal management '!M73)","v":"medical injury, MVA"},{"$f":"IF('[2]Coal management '!A73=\"\",\"\",'[2]Coal management '!N73)","v":"Continiuos assessment of working area, and re-routing of traffic"},{"$f":"IF('[2]Coal management '!A73=\"\",\"\",'[2]Coal management '!O73)","v":2},{"$f":"IF('[2]Coal management '!A73=\"\",\"\",'[2]Coal management '!P73)","v":"B"},{"$f":"IF('[2]Coal management '!A73=\"\",\"\",'[2]Coal management '!Q73)","v":"IV"},{"$f":"IF('[2]Coal management '!A73=\"\",\"\",'[2]Coal management '!T73)","v":"Job observation"},{"$f":"IF('[2]Coal management '!A73=\"\",\"\",'[2]Coal management '!U73)","v":"Responsible manager"}]
[{"$f":"IF('[2]Coal management '!A74=\"\",\"\",'[2]Coal management '!A74)","v":"Driving on ash dump"},{"$f":"IF('[2]Coal management '!A74=\"\",\"\",'[2]Coal management '!D74)","v":"poor visibility"},{"$f":"IF('[2]Coal management '!A74=\"\",\"\",'[2]Coal management '!F74)","v":"Collision with moving machinery ,equipment, structures and other vehicles"},{"$f":"IF('[2]Coal management '!A74=\"\",\"\",'[2]Coal management '!G74)","v":"Safety "},{"$f":"IF('[2]Coal management '!A74=\"\",\"\",'[2]Coal management '!L74)","v":"Daily"},{"$f":"IF('[2]Coal management '!A74=\"\",\"\",'[2]Coal management '!M74)","v":"fatality, serious injury requiring medical treatment , MVA, property damage"},{"$f":"IF('[2]Coal management '!A74=\"\",\"\",'[2]Coal management '!N74)","v":"Continiuos assessment of working area, and re-routing of traffic, Work stoppage"},{"$f":"IF('[2]Coal management '!A74=\"\",\"\",'[2]Coal management '!O74)","v":4},{"$f":"IF('[2]Coal management '!A74=\"\",\"\",'[2]Coal management '!P74)","v":"B"},{"$f":"IF('[2]Coal management '!A74=\"\",\"\",'[2]Coal management '!Q74)","v":"III"},{"$f":"IF('[2]Coal management '!A74=\"\",\"\",'[2]Coal management '!T74)","v":"Job observation"},{"$f":"IF('[2]Coal management '!A74=\"\",\"\",'[2]Coal management '!U74)","v":"Responsible manager"}]
[{"$f":"IF('[2]Coal management '!A75=\"\",\"\",'[2]Coal management '!A75)","v":"walking around the ash dump"},{"$f":"IF('[2]Coal management '!A75=\"\",\"\",'[2]Coal management '!D75)","v":"Walking on the roads and in between  the facilities of the ash plant"},{"$f":"IF('[2]Coal management '!A75=\"\",\"\",'[2]Coal management '!F75)","v":"Bitten by snakes, wild animals and bees "},{"$f":"IF('[2]Coal management '!A75=\"\",\"\",'[2]Coal management '!G75)","v":"Safety "},{"$f":"IF('[2]Coal management '!A75=\"\",\"\",'[2]Coal management '!L75)","v":"Daily"},{"$f":"IF('[2]Coal management '!A75=\"\",\"\",'[2]Coal management '!M75)","v":"Temporary disablement"},{"$f":"IF('[2]Coal management '!A75=\"\",\"\",'[2]Coal management '!N75)","v":"Awareness/communication\n\n"},{"$f":"IF('[2]Coal management '!A75=\"\",\"\",'[2]Coal management '!O75)","v":4},{"$f":"IF('[2]Coal management '!A75=\"\",\"\",'[2]Coal management '!P75)","v":"B"},{"$f":"IF('[2]Coal management '!A75=\"\",\"\",'[2]Coal management '!Q75)","v":"III"},{"$f":"IF('[2]Coal management '!A75=\"\",\"\",'[2]Coal management '!T75)","v":"  Incident reporting, Medical Surveillance Procedure 32-285, Tool Box Talks."},{"$f":"IF('[2]Coal management '!A75=\"\",\"\",'[2]Coal management '!U75)","v":"Responsible manager"}]
[{"$f":"IF('[2]Coal management '!A76=\"\",\"\",'[2]Coal management '!A76)","v":"walking around the ash dump"},{"$f":"IF('[2]Coal management '!A76=\"\",\"\",'[2]Coal management '!D76)","v":"running conveyor"},{"$f":"IF('[2]Coal management '!A76=\"\",\"\",'[2]Coal management '!F76)","v":"cought by moving conveyor"},{"$f":"IF('[2]Coal management '!A76=\"\",\"\",'[2]Coal management '!G76)","v":"Safety "},{"$f":"IF('[2]Coal management '!A76=\"\",\"\",'[2]Coal management '!L76)","v":"Daily"},{"$f":"IF('[2]Coal management '!A76=\"\",\"\",'[2]Coal management '!M76)","v":"Serious injury requiring medical treatment "},{"$f":"IF('[2]Coal management '!A76=\"\",\"\",'[2]Coal management '!N76)","v":"Warning signs, No loose clothing/hair, PPE(overalls,3-point anchor hard hat, gloves)"},{"$f":"IF('[2]Coal management '!A76=\"\",\"\",'[2]Coal management '!O76)","v":4},{"$f":"IF('[2]Coal management '!A76=\"\",\"\",'[2]Coal management '!P76)","v":"A"},{"$f":"IF('[2]Coal management '!A76=\"\",\"\",'[2]Coal management '!Q76)","v":"III"},{"$f":"IF('[2]Coal management '!A76=\"\",\"\",'[2]Coal management '!T76)","v":"LAR System, Planned Task Observation, SMAT, Defects Reporting"},{"$f":"IF('[2]Coal management '!A76=\"\",\"\",'[2]Coal management '!U76)","v":"Responsible manager"}]
[{"$f":"IF('[2]Coal management '!A77=\"\",\"\",'[2]Coal management '!A77)","v":"walking around the ash dump"},{"$f":"IF('[2]Coal management '!A77=\"\",\"\",'[2]Coal management '!D77)","v":"excessive dust"},{"$f":"IF('[2]Coal management '!A77=\"\",\"\",'[2]Coal management '!F77)","v":"Struck by, bump into "},{"$f":"IF('[2]Coal management '!A77=\"\",\"\",'[2]Coal management '!G77)","v":"Safety "},{"$f":"IF('[2]Coal management '!A77=\"\",\"\",'[2]Coal management '!L77)","v":"Daily"},{"$f":"IF('[2]Coal management '!A77=\"\",\"\",'[2]Coal management '!M77)","v":"Serious injury requiring medical treatment "},{"$f":"IF('[2]Coal management '!A77=\"\",\"\",'[2]Coal management '!N77)","v":"Dust suppression at intervals, PPE(dust mask, goggles), strobe lights, vehicle lights on"},{"$f":"IF('[2]Coal management '!A77=\"\",\"\",'[2]Coal management '!O77)","v":1},{"$f":"IF('[2]Coal management '!A77=\"\",\"\",'[2]Coal management '!P77)","v":"A"},{"$f":"IF('[2]Coal management '!A77=\"\",\"\",'[2]Coal management '!Q77)","v":"IV"},{"$f":"IF('[2]Coal management '!A77=\"\",\"\",'[2]Coal management '!T77)","v":"Plant Inspections, Medical Surveillance Procedure 32-285,  Deffects Reporting, Tool Box Talks"},{"$f":"IF('[2]Coal management '!A77=\"\",\"\",'[2]Coal management '!U77)","v":"Responsible manager"}]
[{"$f":"IF('[2]Coal management '!A78=\"\",\"\",'[2]Coal management '!A78)","v":"walking around the ash dump"},{"$f":"IF('[2]Coal management '!A78=\"\",\"\",'[2]Coal management '!D78)","v":"Moving machinery"},{"$f":"IF('[2]Coal management '!A78=\"\",\"\",'[2]Coal management '!F78)","v":"bumped by moving machine"},{"$f":"IF('[2]Coal management '!A78=\"\",\"\",'[2]Coal management '!G78)","v":"Safety "},{"$f":"IF('[2]Coal management '!A78=\"\",\"\",'[2]Coal management '!L78)","v":"Daily"},{"$f":"IF('[2]Coal management '!A78=\"\",\"\",'[2]Coal management '!M78)","v":"fatality, medical treatment case"},{"$f":"IF('[2]Coal management '!A78=\"\",\"\",'[2]Coal management '!N78)","v":"5m following distance, 2m clearence from machines"},{"$f":"IF('[2]Coal management '!A78=\"\",\"\",'[2]Coal management '!O78)","v":2},{"$f":"IF('[2]Coal management '!A78=\"\",\"\",'[2]Coal management '!P78)","v":"B"},{"$f":"IF('[2]Coal management '!A78=\"\",\"\",'[2]Coal management '!Q78)","v":"IV"},{"$f":"IF('[2]Coal management '!A78=\"\",\"\",'[2]Coal management '!T78)","v":"Job observation"},{"$f":"IF('[2]Coal management '!A78=\"\",\"\",'[2]Coal management '!U78)","v":"Responsible manager"}]
[{"$f":"IF('[2]Coal management '!A79=\"\",\"\",'[2]Coal management '!A79)","v":"inspection of yellow plant"},{"$f":"IF('[2]Coal management '!A79=\"\",\"\",'[2]Coal management '!D79)","v":"descending/ascending the machine"},{"$f":"IF('[2]Coal management '!A79=\"\",\"\",'[2]Coal management '!F79)","v":"slip, trip and fall"},{"$f":"IF('[2]Coal management '!A79=\"\",\"\",'[2]Coal management '!G79)","v":"Safety "},{"$f":"IF('[2]Coal management '!A79=\"\",\"\",'[2]Coal management '!L79)","v":"Daily"},{"$f":"IF('[2]Coal management '!A79=\"\",\"\",'[2]Coal management '!M79)","v":"Minor Injuries requiring Medical treatment "},{"$f":"IF('[2]Coal management '!A79=\"\",\"\",'[2]Coal management '!N79)","v":"Pre-job brief, pre-job inspection, Warning signs"},{"$f":"IF('[2]Coal management '!A79=\"\",\"\",'[2]Coal management '!O79)","v":2},{"$f":"IF('[2]Coal management '!A79=\"\",\"\",'[2]Coal management '!P79)","v":"B"},{"$f":"IF('[2]Coal management '!A79=\"\",\"\",'[2]Coal management '!Q79)","v":"IV"},{"$f":"IF('[2]Coal management '!A79=\"\",\"\",'[2]Coal management '!T79)","v":"Plant Inspections, Planned Task Observation, Defects Reporting, PTW/LAR System"},{"$f":"IF('[2]Coal management '!A79=\"\",\"\",'[2]Coal management '!U79)","v":"Responsible manager"}]
[{"$f":"IF('[2]Coal management '!A80=\"\",\"\",'[2]Coal management '!A80)","v":"inspection of yellow plant"},{"$f":"IF('[2]Coal management '!A80=\"\",\"\",'[2]Coal management '!D80)","v":"inspection of yellow plant while the ignition is on"},{"$f":"IF('[2]Coal management '!A80=\"\",\"\",'[2]Coal management '!F80)","v":"inhalation of diesel fumes"},{"$f":"IF('[2]Coal management '!A80=\"\",\"\",'[2]Coal management '!G80)","v":"Health "},{"$f":"IF('[2]Coal management '!A80=\"\",\"\",'[2]Coal management '!L80)","v":"Daily"},{"$f":"IF('[2]Coal management '!A80=\"\",\"\",'[2]Coal management '!M80)","v":"Medical treatment case, temporary discomfort "},{"$f":"IF('[2]Coal management '!A80=\"\",\"\",'[2]Coal management '!N80)","v":"Pre-job brief, pre-job inspection, Warning signs, Stop blocks"},{"$f":"IF('[2]Coal management '!A80=\"\",\"\",'[2]Coal management '!O80)","v":4},{"$f":"IF('[2]Coal management '!A80=\"\",\"\",'[2]Coal management '!P80)","v":"B"},{"$f":"IF('[2]Coal management '!A80=\"\",\"\",'[2]Coal management '!Q80)","v":"III"},{"$f":"IF('[2]Coal management '!A80=\"\",\"\",'[2]Coal management '!T80)","v":"Job observation, incident reporting, toolbox talks"},{"$f":"IF('[2]Coal management '!A80=\"\",\"\",'[2]Coal management '!U80)","v":"Responsible manager"}]
[{"$f":"IF('[2]Coal management '!A81=\"\",\"\",'[2]Coal management '!A81)","v":"inspection of yellow plant"},{"$f":"IF('[2]Coal management '!A81=\"\",\"\",'[2]Coal management '!D81)","v":"inspection of yellow plant while the ignition is on"},{"$f":"IF('[2]Coal management '!A81=\"\",\"\",'[2]Coal management '!F81)","v":"burns from machine hot components"},{"$f":"IF('[2]Coal management '!A81=\"\",\"\",'[2]Coal management '!G81)","v":"Safety "},{"$f":"IF('[2]Coal management '!A81=\"\",\"\",'[2]Coal management '!L81)","v":"Daily"},{"$f":"IF('[2]Coal management '!A81=\"\",\"\",'[2]Coal management '!M81)","v":"Medical treatment case, temporary discomfort "},{"$f":"IF('[2]Coal management '!A81=\"\",\"\",'[2]Coal management '!N81)","v":"Pre-job brief, pre-job inspection, Warning signs, Stop blocks"},{"$f":"IF('[2]Coal management '!A81=\"\",\"\",'[2]Coal management '!O81)","v":4},{"$f":"IF('[2]Coal management '!A81=\"\",\"\",'[2]Coal management '!P81)","v":"A"},{"$f":"IF('[2]Coal management '!A81=\"\",\"\",'[2]Coal management '!Q81)","v":"III"},{"$f":"IF('[2]Coal management '!A81=\"\",\"\",'[2]Coal management '!T81)","v":"Job observation, incident reporting, toolbox talks"},{"$f":"IF('[2]Coal management '!A81=\"\",\"\",'[2]Coal management '!U81)","v":"Responsible manager"}]
[{"$f":"IF('[2]Coal management '!A82=\"\",\"\",'[2]Coal management '!A82)","v":"inspection of yellow plant"},{"$f":"IF('[2]Coal management '!A82=\"\",\"\",'[2]Coal management '!D82)","v":"inspection of yellow plant while the ignition is on"},{"$f":"IF('[2]Coal management '!A82=\"\",\"\",'[2]Coal management '!F82)","v":"Rollin of the machine resulting in to an incident"},{"$f":"IF('[2]Coal management '!A82=\"\",\"\",'[2]Coal management '!G82)","v":"Safety "},{"$f":"IF('[2]Coal management '!A82=\"\",\"\",'[2]Coal management '!L82)","v":"Daily"},{"$f":"IF('[2]Coal management '!A82=\"\",\"\",'[2]Coal management '!M82)","v":"fatality, serious injury requiring medical treatment , MVA"},{"$f":"IF('[2]Coal management '!A82=\"\",\"\",'[2]Coal management '!N82)","v":"Pre-job brief, pre-job inspection, Warning signs, Stop blocks"},{"$f":"IF('[2]Coal management '!A82=\"\",\"\",'[2]Coal management '!O82)","v":1},{"$f":"IF('[2]Coal management '!A82=\"\",\"\",'[2]Coal management '!P82)","v":"A"},{"$f":"IF('[2]Coal management '!A82=\"\",\"\",'[2]Coal management '!Q82)","v":"IV"},{"$f":"IF('[2]Coal management '!A82=\"\",\"\",'[2]Coal management '!T82)","v":"Job observation"},{"$f":"IF('[2]Coal management '!A82=\"\",\"\",'[2]Coal management '!U82)","v":"Responsible manager"}]
[{"$f":"IF('[2]Coal management '!A83=\"\",\"\",'[2]Coal management '!A83)","v":"Coal"},{"$f":"IF('[2]Coal management '!A83=\"\",\"\",'[2]Coal management '!D83)","v":0},{"$f":"IF('[2]Coal management '!A83=\"\",\"\",'[2]Coal management '!F83)","v":0},{"$f":"IF('[2]Coal management '!A83=\"\",\"\",'[2]Coal management '!G83)","v":0},{"$f":"IF('[2]Coal management '!A83=\"\",\"\",'[2]Coal management '!L83)","v":0},{"$f":"IF('[2]Coal management '!A83=\"\",\"\",'[2]Coal management '!M83)","v":0},{"$f":"IF('[2]Coal management '!A83=\"\",\"\",'[2]Coal management '!N83)","v":0},{"$f":"IF('[2]Coal management '!A83=\"\",\"\",'[2]Coal management '!O83)","v":0},{"$f":"IF('[2]Coal management '!A83=\"\",\"\",'[2]Coal management '!P83)","v":0},{"$f":"IF('[2]Coal management '!A83=\"\",\"\",'[2]Coal management '!Q83)","v":0},{"$f":"IF('[2]Coal management '!A83=\"\",\"\",'[2]Coal management '!T83)","v":0},{"$f":"IF('[2]Coal management '!A83=\"\",\"\",'[2]Coal management '!U83)","v":0}]
[{"$f":"IF('[2]Coal management '!A84=\"\",\"\",'[2]Coal management '!A84)","v":"constructing of coal stockpile"},{"$f":"IF('[2]Coal management '!A84=\"\",\"\",'[2]Coal management '!D84)","v":"moving machinery"},{"$f":"IF('[2]Coal management '!A84=\"\",\"\",'[2]Coal management '!F84)","v":"collision"},{"$f":"IF('[2]Coal management '!A84=\"\",\"\",'[2]Coal management '!G84)","v":"Safety "},{"$f":"IF('[2]Coal management '!A84=\"\",\"\",'[2]Coal management '!L84)","v":"Daily"},{"$f":"IF('[2]Coal management '!A84=\"\",\"\",'[2]Coal management '!M84)","v":"fatality, serious injury requiring medical treatment , MVA, property damage"},{"$f":"IF('[2]Coal management '!A84=\"\",\"\",'[2]Coal management '!N84)","v":"ME"},{"$f":"IF('[2]Coal management '!A84=\"\",\"\",'[2]Coal management '!O84)","v":3},{"$f":"IF('[2]Coal management '!A84=\"\",\"\",'[2]Coal management '!P84)","v":"A"},{"$f":"IF('[2]Coal management '!A84=\"\",\"\",'[2]Coal management '!Q84)","v":"IV"},{"$f":"IF('[2]Coal management '!A84=\"\",\"\",'[2]Coal management '!T84)","v":"Job observation, incident reporting, toolbox talks"},{"$f":"IF('[2]Coal management '!A84=\"\",\"\",'[2]Coal management '!U84)","v":"Responsible manager"}]
[{"$f":"IF('[2]Coal management '!A85=\"\",\"\",'[2]Coal management '!A85)","v":"constructing of coal stockpile"},{"$f":"IF('[2]Coal management '!A85=\"\",\"\",'[2]Coal management '!D85)","v":"coal dust"},{"$f":"IF('[2]Coal management '!A85=\"\",\"\",'[2]Coal management '!F85)","v":"inhalation of coal dust"},{"$f":"IF('[2]Coal management '!A85=\"\",\"\",'[2]Coal management '!G85)","v":"Health "},{"$f":"IF('[2]Coal management '!A85=\"\",\"\",'[2]Coal management '!L85)","v":"Daily"},{"$f":"IF('[2]Coal management '!A85=\"\",\"\",'[2]Coal management '!M85)","v":"Lung disease, silicosis"},{"$f":"IF('[2]Coal management '!A85=\"\",\"\",'[2]Coal management '!N85)","v":"Toolbox talk, PPE(dust mask)"},{"$f":"IF('[2]Coal management '!A85=\"\",\"\",'[2]Coal management '!O85)","v":3},{"$f":"IF('[2]Coal management '!A85=\"\",\"\",'[2]Coal management '!P85)","v":"B"},{"$f":"IF('[2]Coal management '!A85=\"\",\"\",'[2]Coal management '!Q85)","v":"III"},{"$f":"IF('[2]Coal management '!A85=\"\",\"\",'[2]Coal management '!T85)","v":"Plant Inspections, Medical Surveillance Procedure 32-285,  Deffects Reporting, Tool Box Talks"},{"$f":"IF('[2]Coal management '!A85=\"\",\"\",'[2]Coal management '!U85)","v":"Responsible manager"}]
[{"$f":"IF('[2]Coal management '!A86=\"\",\"\",'[2]Coal management '!A86)","v":"constructing of coal stockpile"},{"$f":"IF('[2]Coal management '!A86=\"\",\"\",'[2]Coal management '!D86)","v":"poor visibility due to coal dust"},{"$f":"IF('[2]Coal management '!A86=\"\",\"\",'[2]Coal management '!F86)","v":"run over by the trucks"},{"$f":"IF('[2]Coal management '!A86=\"\",\"\",'[2]Coal management '!G86)","v":"Safety "},{"$f":"IF('[2]Coal management '!A86=\"\",\"\",'[2]Coal management '!L86)","v":"Daily"},{"$f":"IF('[2]Coal management '!A86=\"\",\"\",'[2]Coal management '!M86)","v":"fatality, serious injury requiring medical treatment "},{"$f":"IF('[2]Coal management '!A86=\"\",\"\",'[2]Coal management '!N86)","v":"Dust suppression at intervals, PPE(dust mask, goggles)"},{"$f":"IF('[2]Coal management '!A86=\"\",\"\",'[2]Coal management '!O86)","v":3},{"$f":"IF('[2]Coal management '!A86=\"\",\"\",'[2]Coal management '!P86)","v":"B"},{"$f":"IF('[2]Coal management '!A86=\"\",\"\",'[2]Coal management '!Q86)","v":"III"},{"$f":"IF('[2]Coal management '!A86=\"\",\"\",'[2]Coal management '!T86)","v":"Job observation"},{"$f":"IF('[2]Coal management '!A86=\"\",\"\",'[2]Coal management '!U86)","v":"Responsible manager"}]
[{"$f":"IF('[2]Coal management '!A87=\"\",\"\",'[2]Coal management '!A87)","v":"constructing of coal stockpile"},{"$f":"IF('[2]Coal management '!A87=\"\",\"\",'[2]Coal management '!D87)","v":"other moving machinery"},{"$f":"IF('[2]Coal management '!A87=\"\",\"\",'[2]Coal management '!F87)","v":"collisions"},{"$f":"IF('[2]Coal management '!A87=\"\",\"\",'[2]Coal management '!G87)","v":"Safety "},{"$f":"IF('[2]Coal management '!A87=\"\",\"\",'[2]Coal management '!L87)","v":"Daily"},{"$f":"IF('[2]Coal management '!A87=\"\",\"\",'[2]Coal management '!M87)","v":"fatality, serious injury requiring medical treatment , MVA, property damage"},{"$f":"IF('[2]Coal management '!A87=\"\",\"\",'[2]Coal management '!N87)","v":"5m following distance, 2m clearence from machines"},{"$f":"IF('[2]Coal management '!A87=\"\",\"\",'[2]Coal management '!O87)","v":3},{"$f":"IF('[2]Coal management '!A87=\"\",\"\",'[2]Coal management '!P87)","v":"B"},{"$f":"IF('[2]Coal management '!A87=\"\",\"\",'[2]Coal management '!Q87)","v":"III"},{"$f":"IF('[2]Coal management '!A87=\"\",\"\",'[2]Coal management '!T87)","v":"Job observation, toolbox talks, incident reporting"},{"$f":"IF('[2]Coal management '!A87=\"\",\"\",'[2]Coal management '!U87)","v":"Responsible manager"}]
[{"$f":"IF('[2]Coal management '!A88=\"\",\"\",'[2]Coal management '!A88)","v":"constructing of coal stockpile"},{"$f":"IF('[2]Coal management '!A88=\"\",\"\",'[2]Coal management '!D88)","v":"noise from the moving machinery"},{"$f":"IF('[2]Coal management '!A88=\"\",\"\",'[2]Coal management '!F88)","v":"NIHL"},{"$f":"IF('[2]Coal management '!A88=\"\",\"\",'[2]Coal management '!G88)","v":"Health "},{"$f":"IF('[2]Coal management '!A88=\"\",\"\",'[2]Coal management '!L88)","v":"Daily"},{"$f":"IF('[2]Coal management '!A88=\"\",\"\",'[2]Coal management '!M88)","v":"Noise induced Hearing Loss, Occupational disease with non reversible consequence "},{"$f":"IF('[2]Coal management '!A88=\"\",\"\",'[2]Coal management '!N88)","v":"Safety signs, PPE(hearing protection)"},{"$f":"IF('[2]Coal management '!A88=\"\",\"\",'[2]Coal management '!O88)","v":3},{"$f":"IF('[2]Coal management '!A88=\"\",\"\",'[2]Coal management '!P88)","v":"B"},{"$f":"IF('[2]Coal management '!A88=\"\",\"\",'[2]Coal management '!Q88)","v":"III"},{"$f":"IF('[2]Coal management '!A88=\"\",\"\",'[2]Coal management '!T88)","v":" noise survey, Plant Inspections,  Medical Surveillance Procedure 32-285, Deffects Reporting,tool box talks "},{"$f":"IF('[2]Coal management '!A88=\"\",\"\",'[2]Coal management '!U88)","v":"Responsible manager"}]
[{"$f":"IF('[2]Coal management '!A89=\"\",\"\",'[2]Coal management '!A89)","v":"constructing of coal stockpile"},{"$f":"IF('[2]Coal management '!A89=\"\",\"\",'[2]Coal management '!D89)","v":"Diesel fumes from the moving machinery"},{"$f":"IF('[2]Coal management '!A89=\"\",\"\",'[2]Coal management '!F89)","v":"inhalation of the fumes"},{"$f":"IF('[2]Coal management '!A89=\"\",\"\",'[2]Coal management '!G89)","v":"Health "},{"$f":"IF('[2]Coal management '!A89=\"\",\"\",'[2]Coal management '!L89)","v":"Daily"},{"$f":"IF('[2]Coal management '!A89=\"\",\"\",'[2]Coal management '!M89)","v":"Medical treatment case, temporary discomfort "},{"$f":"IF('[2]Coal management '!A89=\"\",\"\",'[2]Coal management '!N89)","v":"Pre-job brief, pre-job inspection, Warning signs, Stop blocks"},{"$f":"IF('[2]Coal management '!A89=\"\",\"\",'[2]Coal management '!O89)","v":1},{"$f":"IF('[2]Coal management '!A89=\"\",\"\",'[2]Coal management '!P89)","v":"A"},{"$f":"IF('[2]Coal management '!A89=\"\",\"\",'[2]Coal management '!Q89)","v":"IV"},{"$f":"IF('[2]Coal management '!A89=\"\",\"\",'[2]Coal management '!T89)","v":"Toolbox talks, supervision, planned task observation"},{"$f":"IF('[2]Coal management '!A89=\"\",\"\",'[2]Coal management '!U89)","v":"Responsible manager"}]
[{"$f":"IF('[2]Coal management '!A90=\"\",\"\",'[2]Coal management '!A90)","v":"constructing of coal stockpile"},{"$f":"IF('[2]Coal management '!A90=\"\",\"\",'[2]Coal management '!D90)","v":"congestion"},{"$f":"IF('[2]Coal management '!A90=\"\",\"\",'[2]Coal management '!F90)","v":"collisions"},{"$f":"IF('[2]Coal management '!A90=\"\",\"\",'[2]Coal management '!G90)","v":"Safety "},{"$f":"IF('[2]Coal management '!A90=\"\",\"\",'[2]Coal management '!L90)","v":"Daily"},{"$f":"IF('[2]Coal management '!A90=\"\",\"\",'[2]Coal management '!M90)","v":"fatality, serious injury requiring medical treatment , MVA, property damage"},{"$f":"IF('[2]Coal management '!A90=\"\",\"\",'[2]Coal management '!N90)","v":"5m following distance, 2m clearence from machines"},{"$f":"IF('[2]Coal management '!A90=\"\",\"\",'[2]Coal management '!O90)","v":2},{"$f":"IF('[2]Coal management '!A90=\"\",\"\",'[2]Coal management '!P90)","v":"B"},{"$f":"IF('[2]Coal management '!A90=\"\",\"\",'[2]Coal management '!Q90)","v":"IV"},{"$f":"IF('[2]Coal management '!A90=\"\",\"\",'[2]Coal management '!T90)","v":"Job observation, toolbox talks, incident reporting"},{"$f":"IF('[2]Coal management '!A90=\"\",\"\",'[2]Coal management '!U90)","v":"Responsible manager"}]
[{"$f":"IF('[2]Coal management '!A91=\"\",\"\",'[2]Coal management '!A91)","v":"constructing of coal stockpile"},{"$f":"IF('[2]Coal management '!A91=\"\",\"\",'[2]Coal management '!D91)","v":"over suppresion"},{"$f":"IF('[2]Coal management '!A91=\"\",\"\",'[2]Coal management '!F91)","v":"Overturning"},{"$f":"IF('[2]Coal management '!A91=\"\",\"\",'[2]Coal management '!G91)","v":"Safety "},{"$f":"IF('[2]Coal management '!A91=\"\",\"\",'[2]Coal management '!L91)","v":"Daily"},{"$f":"IF('[2]Coal management '!A91=\"\",\"\",'[2]Coal management '!M91)","v":"fatality, serious injury requiring medical treatment , MVA, property damage"},{"$f":"IF('[2]Coal management '!A91=\"\",\"\",'[2]Coal management '!N91)","v":"Pre-job brief, pre-job inspection"},{"$f":"IF('[2]Coal management '!A91=\"\",\"\",'[2]Coal management '!O91)","v":4},{"$f":"IF('[2]Coal management '!A91=\"\",\"\",'[2]Coal management '!P91)","v":"B"},{"$f":"IF('[2]Coal management '!A91=\"\",\"\",'[2]Coal management '!Q91)","v":"III"},{"$f":"IF('[2]Coal management '!A91=\"\",\"\",'[2]Coal management '!T91)","v":"Toolbox talks, supervision, planned task observation"},{"$f":"IF('[2]Coal management '!A91=\"\",\"\",'[2]Coal management '!U91)","v":"Responsible manager"}]
[{"$f":"IF('[2]Coal management '!A92=\"\",\"\",'[2]Coal management '!A92)","v":"driving at the coal stockyard"},{"$f":"IF('[2]Coal management '!A92=\"\",\"\",'[2]Coal management '!D92)","v":"excessive coal dust"},{"$f":"IF('[2]Coal management '!A92=\"\",\"\",'[2]Coal management '!F92)","v":"Collision with moving machinery ,equipment, structures and other vehicles"},{"$f":"IF('[2]Coal management '!A92=\"\",\"\",'[2]Coal management '!G92)","v":"Safety "},{"$f":"IF('[2]Coal management '!A92=\"\",\"\",'[2]Coal management '!L92)","v":"Daily"},{"$f":"IF('[2]Coal management '!A92=\"\",\"\",'[2]Coal management '!M92)","v":"fatality, serious injury requiring medical treatment , MVA, property damage"},{"$f":"IF('[2]Coal management '!A92=\"\",\"\",'[2]Coal management '!N92)","v":"Dust suppression at intervals, PPE(dust mask, goggles), strobe lights, vehicle lights on"},{"$f":"IF('[2]Coal management '!A92=\"\",\"\",'[2]Coal management '!O92)","v":2},{"$f":"IF('[2]Coal management '!A92=\"\",\"\",'[2]Coal management '!P92)","v":"B"},{"$f":"IF('[2]Coal management '!A92=\"\",\"\",'[2]Coal management '!Q92)","v":"IV"},{"$f":"IF('[2]Coal management '!A92=\"\",\"\",'[2]Coal management '!T92)","v":"Job observation, Periodic medical screening"},{"$f":"IF('[2]Coal management '!A92=\"\",\"\",'[2]Coal management '!U92)","v":"Responsible manager"}]
[{"$f":"IF('[2]Coal management '!A93=\"\",\"\",'[2]Coal management '!A93)","v":"driving at the coal stockyard"},{"$f":"IF('[2]Coal management '!A93=\"\",\"\",'[2]Coal management '!D93)","v":"Moving machinery"},{"$f":"IF('[2]Coal management '!A93=\"\",\"\",'[2]Coal management '!F93)","v":"Collision with moving machinery ,equipment, structures and other vehicles and personel"},{"$f":"IF('[2]Coal management '!A93=\"\",\"\",'[2]Coal management '!G93)","v":"Safety "},{"$f":"IF('[2]Coal management '!A93=\"\",\"\",'[2]Coal management '!L93)","v":"Daily"},{"$f":"IF('[2]Coal management '!A93=\"\",\"\",'[2]Coal management '!M93)","v":"fatality, serious injury requiring medical treatment , MVA, property damage"},{"$f":"IF('[2]Coal management '!A93=\"\",\"\",'[2]Coal management '!N93)","v":"5m following distance, 2m clearence from machines"},{"$f":"IF('[2]Coal management '!A93=\"\",\"\",'[2]Coal management '!O93)","v":4},{"$f":"IF('[2]Coal management '!A93=\"\",\"\",'[2]Coal management '!P93)","v":"B"},{"$f":"IF('[2]Coal management '!A93=\"\",\"\",'[2]Coal management '!Q93)","v":"III"},{"$f":"IF('[2]Coal management '!A93=\"\",\"\",'[2]Coal management '!T93)","v":"Job observation"},{"$f":"IF('[2]Coal management '!A93=\"\",\"\",'[2]Coal management '!U93)","v":"Responsible manager"}]
[{"$f":"IF('[2]Coal management '!A94=\"\",\"\",'[2]Coal management '!A94)","v":"driving at the coal stockyard"},{"$f":"IF('[2]Coal management '!A94=\"\",\"\",'[2]Coal management '!D94)","v":"wet, slipery surfaces"},{"$f":"IF('[2]Coal management '!A94=\"\",\"\",'[2]Coal management '!F94)","v":"Overturning"},{"$f":"IF('[2]Coal management '!A94=\"\",\"\",'[2]Coal management '!G94)","v":"Safety "},{"$f":"IF('[2]Coal management '!A94=\"\",\"\",'[2]Coal management '!L94)","v":"Daily"},{"$f":"IF('[2]Coal management '!A94=\"\",\"\",'[2]Coal management '!M94)","v":"fatality, serious injury requiring medical treatment , MVA"},{"$f":"IF('[2]Coal management '!A94=\"\",\"\",'[2]Coal management '!N94)","v":"Continiuos assessment of working area, and re-routing of traffic, Work stoppage, 20km/hr speed limit"},{"$f":"IF('[2]Coal management '!A94=\"\",\"\",'[2]Coal management '!O94)","v":4},{"$f":"IF('[2]Coal management '!A94=\"\",\"\",'[2]Coal management '!P94)","v":"B"},{"$f":"IF('[2]Coal management '!A94=\"\",\"\",'[2]Coal management '!Q94)","v":"III"},{"$f":"IF('[2]Coal management '!A94=\"\",\"\",'[2]Coal management '!T94)","v":"Job observation, toolbox talks"},{"$f":"IF('[2]Coal management '!A94=\"\",\"\",'[2]Coal management '!U94)","v":"Responsible manager"}]
[{"$f":"IF('[2]Coal management '!A95=\"\",\"\",'[2]Coal management '!A95)","v":"driving at the coal stockyard"},{"$f":"IF('[2]Coal management '!A95=\"\",\"\",'[2]Coal management '!D95)","v":"poor visibility"},{"$f":"IF('[2]Coal management '!A95=\"\",\"\",'[2]Coal management '!F95)","v":"Collision with moving machinery ,equipment, structures and other vehicles"},{"$f":"IF('[2]Coal management '!A95=\"\",\"\",'[2]Coal management '!G95)","v":"Safety "},{"$f":"IF('[2]Coal management '!A95=\"\",\"\",'[2]Coal management '!L95)","v":"Daily"},{"$f":"IF('[2]Coal management '!A95=\"\",\"\",'[2]Coal management '!M95)","v":"fatality, serious injury requiring medical treatment , MVA, property damage"},{"$f":"IF('[2]Coal management '!A95=\"\",\"\",'[2]Coal management '!N95)","v":"Dust suppression at intervals, PPE(dust mask, goggles), strobe lights, vehicle lights on"},{"$f":"IF('[2]Coal management '!A95=\"\",\"\",'[2]Coal management '!O95)","v":4},{"$f":"IF('[2]Coal management '!A95=\"\",\"\",'[2]Coal management '!P95)","v":"A"},{"$f":"IF('[2]Coal management '!A95=\"\",\"\",'[2]Coal management '!Q95)","v":"III"},{"$f":"IF('[2]Coal management '!A95=\"\",\"\",'[2]Coal management '!T95)","v":"Job observation"},{"$f":"IF('[2]Coal management '!A95=\"\",\"\",'[2]Coal management '!U95)","v":"Responsible manager"}]
[{"$f":"IF('[2]Coal management '!A96=\"\",\"\",'[2]Coal management '!A96)","v":"coal stacking"},{"$f":"IF('[2]Coal management '!A96=\"\",\"\",'[2]Coal management '!D96)","v":"Ascending/Descending the stacker"},{"$f":"IF('[2]Coal management '!A96=\"\",\"\",'[2]Coal management '!F96)","v":"slip,trip and fall"},{"$f":"IF('[2]Coal management '!A96=\"\",\"\",'[2]Coal management '!G96)","v":"Safety "},{"$f":"IF('[2]Coal management '!A96=\"\",\"\",'[2]Coal management '!L96)","v":"Daily"},{"$f":"IF('[2]Coal management '!A96=\"\",\"\",'[2]Coal management '!M96)","v":"Serious injury requiring medical treatment "},{"$f":"IF('[2]Coal management '!A96=\"\",\"\",'[2]Coal management '!N96)","v":"Pre-job brief, pre-job inspection, 3-point contact"},{"$f":"IF('[2]Coal management '!A96=\"\",\"\",'[2]Coal management '!O96)","v":1},{"$f":"IF('[2]Coal management '!A96=\"\",\"\",'[2]Coal management '!P96)","v":"A"},{"$f":"IF('[2]Coal management '!A96=\"\",\"\",'[2]Coal management '!Q96)","v":"IV"},{"$f":"IF('[2]Coal management '!A96=\"\",\"\",'[2]Coal management '!T96)","v":"Job observation"},{"$f":"IF('[2]Coal management '!A96=\"\",\"\",'[2]Coal management '!U96)","v":"Responsible manager"}]
[{"$f":"IF('[2]Coal management '!A97=\"\",\"\",'[2]Coal management '!A97)","v":"coal stacking"},{"$f":"IF('[2]Coal management '!A97=\"\",\"\",'[2]Coal management '!D97)","v":"Employees working in the vicinity"},{"$f":"IF('[2]Coal management '!A97=\"\",\"\",'[2]Coal management '!F97)","v":"Employees runover by the stacker"},{"$f":"IF('[2]Coal management '!A97=\"\",\"\",'[2]Coal management '!G97)","v":"Safety "},{"$f":"IF('[2]Coal management '!A97=\"\",\"\",'[2]Coal management '!L97)","v":"Daily"},{"$f":"IF('[2]Coal management '!A97=\"\",\"\",'[2]Coal management '!M97)","v":"fatality, serious injury requiring medical treatment , MVA"},{"$f":"IF('[2]Coal management '!A97=\"\",\"\",'[2]Coal management '!N97)","v":"Vigilance and observation"},{"$f":"IF('[2]Coal management '!A97=\"\",\"\",'[2]Coal management '!O97)","v":2},{"$f":"IF('[2]Coal management '!A97=\"\",\"\",'[2]Coal management '!P97)","v":"B"},{"$f":"IF('[2]Coal management '!A97=\"\",\"\",'[2]Coal management '!Q97)","v":"IV"},{"$f":"IF('[2]Coal management '!A97=\"\",\"\",'[2]Coal management '!T97)","v":"Job observation, toolbox talks, incident reporting"},{"$f":"IF('[2]Coal management '!A97=\"\",\"\",'[2]Coal management '!U97)","v":"Responsible manager"}]
[{"$f":"IF('[2]Coal management '!A98=\"\",\"\",'[2]Coal management '!A98)","v":"offloading of coal ( ADT, tipper truck, coal import truck)"},{"$f":"IF('[2]Coal management '!A98=\"\",\"\",'[2]Coal management '!D98)","v":"spotter visibility"},{"$f":"IF('[2]Coal management '!A98=\"\",\"\",'[2]Coal management '!F98)","v":"burried by coal"},{"$f":"IF('[2]Coal management '!A98=\"\",\"\",'[2]Coal management '!G98)","v":"Safety "},{"$f":"IF('[2]Coal management '!A98=\"\",\"\",'[2]Coal management '!L98)","v":"Daily"},{"$f":"IF('[2]Coal management '!A98=\"\",\"\",'[2]Coal management '!M98)","v":"fatality"},{"$f":"IF('[2]Coal management '!A98=\"\",\"\",'[2]Coal management '!N98)","v":"Radio/cellphone contact, Pre-job brief, pre-job instpection, PPE(reflector jacket)"},{"$f":"IF('[2]Coal management '!A98=\"\",\"\",'[2]Coal management '!O98)","v":2},{"$f":"IF('[2]Coal management '!A98=\"\",\"\",'[2]Coal management '!P98)","v":"B"},{"$f":"IF('[2]Coal management '!A98=\"\",\"\",'[2]Coal management '!Q98)","v":"IV"},{"$f":"IF('[2]Coal management '!A98=\"\",\"\",'[2]Coal management '!T98)","v":"Job observation"},{"$f":"IF('[2]Coal management '!A98=\"\",\"\",'[2]Coal management '!U98)","v":"Responsible manager"}]
[{"$f":"IF('[2]Coal management '!A99=\"\",\"\",'[2]Coal management '!A99)","v":"offloading of coal ( ADT, tipper truck, coal import truck)"},{"$f":"IF('[2]Coal management '!A99=\"\",\"\",'[2]Coal management '!D99)","v":"coal dust"},{"$f":"IF('[2]Coal management '!A99=\"\",\"\",'[2]Coal management '!F99)","v":"inhalation of coal dust"},{"$f":"IF('[2]Coal management '!A99=\"\",\"\",'[2]Coal management '!G99)","v":"Health "},{"$f":"IF('[2]Coal management '!A99=\"\",\"\",'[2]Coal management '!L99)","v":"Daily"},{"$f":"IF('[2]Coal management '!A99=\"\",\"\",'[2]Coal management '!M99)","v":"Lung disease, silicosis"},{"$f":"IF('[2]Coal management '!A99=\"\",\"\",'[2]Coal management '!N99)","v":"PPE(dust mask), safety signs"},{"$f":"IF('[2]Coal management '!A99=\"\",\"\",'[2]Coal management '!O99)","v":4},{"$f":"IF('[2]Coal management '!A99=\"\",\"\",'[2]Coal management '!P99)","v":"B"},{"$f":"IF('[2]Coal management '!A99=\"\",\"\",'[2]Coal management '!Q99)","v":"III"},{"$f":"IF('[2]Coal management '!A99=\"\",\"\",'[2]Coal management '!T99)","v":"Plant Inspections, Medical Surveillance Procedure 32-285,  Deffects Reporting, Tool Box Talks"},{"$f":"IF('[2]Coal management '!A99=\"\",\"\",'[2]Coal management '!U99)","v":"Responsible manager"}]
["walking around the ash dump",{"$f":"IF('[2]Coal management '!A100=\"\",\"\",'[2]Coal management '!D100)","v":"poor visibility due to coal dust"},{"$f":"IF('[2]Coal management '!A100=\"\",\"\",'[2]Coal management '!F100)","v":"run over by the trucks"},{"$f":"IF('[2]Coal management '!A100=\"\",\"\",'[2]Coal management '!G100)","v":"Safety "},{"$f":"IF('[2]Coal management '!A100=\"\",\"\",'[2]Coal management '!L100)","v":"Daily"},{"$f":"IF('[2]Coal management '!A100=\"\",\"\",'[2]Coal management '!M100)","v":"fatality, serious injury requiring medical treatment , MVA"},{"$f":"IF('[2]Coal management '!A100=\"\",\"\",'[2]Coal management '!N100)","v":"Pre-job brief, pre-job inspection, Warning signs, PPE(reflector jacket)"},{"$f":"IF('[2]Coal management '!A100=\"\",\"\",'[2]Coal management '!O100)","v":4},{"$f":"IF('[2]Coal management '!A100=\"\",\"\",'[2]Coal management '!P100)","v":"A"},{"$f":"IF('[2]Coal management '!A100=\"\",\"\",'[2]Coal management '!Q100)","v":"III"},{"$f":"IF('[2]Coal management '!A100=\"\",\"\",'[2]Coal management '!T100)","v":"Plant Inspections, Medical Surveillance Procedure 32-285,  Deffects Reporting, Tool Box Talks"},{"$f":"IF('[2]Coal management '!A100=\"\",\"\",'[2]Coal management '!U100)","v":"Responsible manager"}]
[{"$f":"IF('[2]Coal management '!A101=\"\",\"\",'[2]Coal management '!A101)","v":"offloading of coal ( ADT, tipper truck, coal import truck)"},{"$f":"IF('[2]Coal management '!A101=\"\",\"\",'[2]Coal management '!D101)","v":"other moving machinery"},{"$f":"IF('[2]Coal management '!A101=\"\",\"\",'[2]Coal management '!F101)","v":"collisions"},{"$f":"IF('[2]Coal management '!A101=\"\",\"\",'[2]Coal management '!G101)","v":"Safety "},{"$f":"IF('[2]Coal management '!A101=\"\",\"\",'[2]Coal management '!L101)","v":"Daily"},{"$f":"IF('[2]Coal management '!A101=\"\",\"\",'[2]Coal management '!M101)","v":"fatality, serious injury requiring medical treatment , MVA"},{"$f":"IF('[2]Coal management '!A101=\"\",\"\",'[2]Coal management '!N101)","v":"5m following distance, 2m clearence from machines"},{"$f":"IF('[2]Coal management '!A101=\"\",\"\",'[2]Coal management '!O101)","v":1},{"$f":"IF('[2]Coal management '!A101=\"\",\"\",'[2]Coal management '!P101)","v":"A"},{"$f":"IF('[2]Coal management '!A101=\"\",\"\",'[2]Coal management '!Q101)","v":"IV"},{"$f":"IF('[2]Coal management '!A101=\"\",\"\",'[2]Coal management '!T101)","v":"Job observation, toolbox talks, incident reporting"},{"$f":"IF('[2]Coal management '!A101=\"\",\"\",'[2]Coal management '!U101)","v":"Responsible manager"}]
[{"$f":"IF('[2]Coal management '!A102=\"\",\"\",'[2]Coal management '!A102)","v":"Weighing the truck on the weigh bridge"},{"$f":"IF('[2]Coal management '!A102=\"\",\"\",'[2]Coal management '!D102)","v":"Truck driver loses vehicle control,"},{"$f":"IF('[2]Coal management '!A102=\"\",\"\",'[2]Coal management '!F102)","v":"truck fallover the weighbridge office "},{"$f":"IF('[2]Coal management '!A102=\"\",\"\",'[2]Coal management '!G102)","v":"Safety "},{"$f":"IF('[2]Coal management '!A102=\"\",\"\",'[2]Coal management '!L102)","v":"Daily"},{"$f":"IF('[2]Coal management '!A102=\"\",\"\",'[2]Coal management '!M102)","v":"fatality, serious injury requiring medical treatment , MVA"},{"$f":"IF('[2]Coal management '!A102=\"\",\"\",'[2]Coal management '!N102)","v":"Traffic management procedure, Pre-job brief, pre-job inspection"},{"$f":"IF('[2]Coal management '!A102=\"\",\"\",'[2]Coal management '!O102)","v":2},{"$f":"IF('[2]Coal management '!A102=\"\",\"\",'[2]Coal management '!P102)","v":"B"},{"$f":"IF('[2]Coal management '!A102=\"\",\"\",'[2]Coal management '!Q102)","v":"IV"},{"$f":"IF('[2]Coal management '!A102=\"\",\"\",'[2]Coal management '!T102)","v":"Job observation, toolbox talks, incident reporting"},{"$f":"IF('[2]Coal management '!A102=\"\",\"\",'[2]Coal management '!U102)","v":"Responsible manager"}]
[{"$f":"IF('[2]Coal management '!A103=\"\",\"\",'[2]Coal management '!A103)","v":"Weighing the truck on the weigh bridge"},{"$f":"IF('[2]Coal management '!A103=\"\",\"\",'[2]Coal management '!D103)","v":"Truck driver loses vehicle control,"},{"$f":"IF('[2]Coal management '!A103=\"\",\"\",'[2]Coal management '!F103)","v":"truck bumping over the guardrails"},{"$f":"IF('[2]Coal management '!A103=\"\",\"\",'[2]Coal management '!G103)","v":"Safety "},{"$f":"IF('[2]Coal management '!A103=\"\",\"\",'[2]Coal management '!L103)","v":"Daily"},{"$f":"IF('[2]Coal management '!A103=\"\",\"\",'[2]Coal management '!M103)","v":"fatality, serious injury requiring medical treatment , MVA"},{"$f":"IF('[2]Coal management '!A103=\"\",\"\",'[2]Coal management '!N103)","v":"Guiderails"},{"$f":"IF('[2]Coal management '!A103=\"\",\"\",'[2]Coal management '!O103)","v":4},{"$f":"IF('[2]Coal management '!A103=\"\",\"\",'[2]Coal management '!P103)","v":"B"},{"$f":"IF('[2]Coal management '!A103=\"\",\"\",'[2]Coal management '!Q103)","v":"III"},{"$f":"IF('[2]Coal management '!A103=\"\",\"\",'[2]Coal management '!T103)","v":"Job observation, toolbox talks, incident reporting"},{"$f":"IF('[2]Coal management '!A103=\"\",\"\",'[2]Coal management '!U103)","v":"Responsible manager"}]
[{"$f":"IF('[2]Coal management '!A104=\"\",\"\",'[2]Coal management '!A104)","v":"Weighing the truck on the weigh bridge"},{"$f":"IF('[2]Coal management '!A104=\"\",\"\",'[2]Coal management '!D104)","v":"Ergonomics"},{"$f":"IF('[2]Coal management '!A104=\"\",\"\",'[2]Coal management '!F104)","v":"Musco-skeletal injuries, back injuries"},{"$f":"IF('[2]Coal management '!A104=\"\",\"\",'[2]Coal management '!G104)","v":"Safety "},{"$f":"IF('[2]Coal management '!A104=\"\",\"\",'[2]Coal management '!L104)","v":"Daily"},{"$f":"IF('[2]Coal management '!A104=\"\",\"\",'[2]Coal management '!M104)","v":"Minor Injuries requiring Medical treatment "},{"$f":"IF('[2]Coal management '!A104=\"\",\"\",'[2]Coal management '!N104)","v":"Rest periods"},{"$f":"IF('[2]Coal management '!A104=\"\",\"\",'[2]Coal management '!O104)","v":4},{"$f":"IF('[2]Coal management '!A104=\"\",\"\",'[2]Coal management '!P104)","v":"A"},{"$f":"IF('[2]Coal management '!A104=\"\",\"\",'[2]Coal management '!Q104)","v":"III"},{"$f":"IF('[2]Coal management '!A104=\"\",\"\",'[2]Coal management '!T104)","v":"Ergonomic Surveys, Planned Task Observations"},{"$f":"IF('[2]Coal management '!A104=\"\",\"\",'[2]Coal management '!U104)","v":"Responsible manager"}]
[{"$f":"IF('[2]Coal management '!A105=\"\",\"\",'[2]Coal management '!A105)","v":"Weighing the truck on the weigh bridge"},{"$f":"IF('[2]Coal management '!A105=\"\",\"\",'[2]Coal management '!D105)","v":"noise from the trucks"},{"$f":"IF('[2]Coal management '!A105=\"\",\"\",'[2]Coal management '!F105)","v":"NIHL"},{"$f":"IF('[2]Coal management '!A105=\"\",\"\",'[2]Coal management '!G105)","v":"Health "},{"$f":"IF('[2]Coal management '!A105=\"\",\"\",'[2]Coal management '!L105)","v":"Daily"},{"$f":"IF('[2]Coal management '!A105=\"\",\"\",'[2]Coal management '!M105)","v":"Noise induced Hearing Loss, Occupational disease with non reversible consequence "},{"$f":"IF('[2]Coal management '!A105=\"\",\"\",'[2]Coal management '!N105)","v":"Safety signs, PPE(hearing protection)"},{"$f":"IF('[2]Coal management '!A105=\"\",\"\",'[2]Coal management '!O105)","v":1},{"$f":"IF('[2]Coal management '!A105=\"\",\"\",'[2]Coal management '!P105)","v":"A"},{"$f":"IF('[2]Coal management '!A105=\"\",\"\",'[2]Coal management '!Q105)","v":"IV"},{"$f":"IF('[2]Coal management '!A105=\"\",\"\",'[2]Coal management '!T105)","v":" noise survey, Plant Inspections,  Medical Surveillance Procedure 32-285, Deffects Reporting,tool box talks "},{"$f":"IF('[2]Coal management '!A105=\"\",\"\",'[2]Coal management '!U105)","v":"Responsible manager"}]
[{"$f":"IF('[2]Coal management '!A106=\"\",\"\",'[2]Coal management '!A106)","v":"Weighing the truck on the weigh bridge"},{"$f":"IF('[2]Coal management '!A106=\"\",\"\",'[2]Coal management '!D106)","v":"Diesel fumes from the trucks"},{"$f":"IF('[2]Coal management '!A106=\"\",\"\",'[2]Coal management '!F106)","v":"inhalation of the fumes"},{"$f":"IF('[2]Coal management '!A106=\"\",\"\",'[2]Coal management '!G106)","v":"Health "},{"$f":"IF('[2]Coal management '!A106=\"\",\"\",'[2]Coal management '!L106)","v":"Daily"},{"$f":"IF('[2]Coal management '!A106=\"\",\"\",'[2]Coal management '!M106)","v":"Medical treatment case, temporary discomfort "},{"$f":"IF('[2]Coal management '!A106=\"\",\"\",'[2]Coal management '!N106)","v":"Pre-job brief, pre-job inspection, Warning signs, PPE(dust mask)"},{"$f":"IF('[2]Coal management '!A106=\"\",\"\",'[2]Coal management '!O106)","v":2},{"$f":"IF('[2]Coal management '!A106=\"\",\"\",'[2]Coal management '!P106)","v":"B"},{"$f":"IF('[2]Coal management '!A106=\"\",\"\",'[2]Coal management '!Q106)","v":"IV"},{"$f":"IF('[2]Coal management '!A106=\"\",\"\",'[2]Coal management '!T106)","v":"Job observation, Periodic medical screening"},{"$f":"IF('[2]Coal management '!A106=\"\",\"\",'[2]Coal management '!U106)","v":"Responsible manager"}]
[{"$f":"IF('[2]Coal management '!A107=\"\",\"\",'[2]Coal management '!A107)","v":"Spotting"},{"$f":"IF('[2]Coal management '!A107=\"\",\"\",'[2]Coal management '!D107)","v":"Adverse weather conditions "},{"$f":"IF('[2]Coal management '!A107=\"\",\"\",'[2]Coal management '!F107)","v":"cold stress"},{"$f":"IF('[2]Coal management '!A107=\"\",\"\",'[2]Coal management '!G107)","v":"Health "},{"$f":"IF('[2]Coal management '!A107=\"\",\"\",'[2]Coal management '!L107)","v":"Daily"},{"$f":"IF('[2]Coal management '!A107=\"\",\"\",'[2]Coal management '!M107)","v":"Long term health complications"},{"$f":"IF('[2]Coal management '!A107=\"\",\"\",'[2]Coal management '!N107)","v":"Appropreate clothing, rest periods"},{"$f":"IF('[2]Coal management '!A107=\"\",\"\",'[2]Coal management '!O107)","v":4},{"$f":"IF('[2]Coal management '!A107=\"\",\"\",'[2]Coal management '!P107)","v":"B"},{"$f":"IF('[2]Coal management '!A107=\"\",\"\",'[2]Coal management '!Q107)","v":"III"},{"$f":"IF('[2]Coal management '!A107=\"\",\"\",'[2]Coal management '!T107)","v":"Job observation, Periodic medical screening"},{"$f":"IF('[2]Coal management '!A107=\"\",\"\",'[2]Coal management '!U107)","v":"Responsible manager"}]
[{"$f":"IF('[2]Coal management '!A108=\"\",\"\",'[2]Coal management '!A108)","v":"Spotting"},{"$f":"IF('[2]Coal management '!A108=\"\",\"\",'[2]Coal management '!D108)","v":"Falling coal"},{"$f":"IF('[2]Coal management '!A108=\"\",\"\",'[2]Coal management '!F108)","v":"burried by coal"},{"$f":"IF('[2]Coal management '!A108=\"\",\"\",'[2]Coal management '!G108)","v":"Safety "},{"$f":"IF('[2]Coal management '!A108=\"\",\"\",'[2]Coal management '!L108)","v":"Daily"},{"$f":"IF('[2]Coal management '!A108=\"\",\"\",'[2]Coal management '!M108)","v":"fatality"},{"$f":"IF('[2]Coal management '!A108=\"\",\"\",'[2]Coal management '!N108)","v":"Radio/cellphone contact, Pre-job brief, pre-job instpection, machine checksheets"},{"$f":"IF('[2]Coal management '!A108=\"\",\"\",'[2]Coal management '!O108)","v":4},{"$f":"IF('[2]Coal management '!A108=\"\",\"\",'[2]Coal management '!P108)","v":"A"},{"$f":"IF('[2]Coal management '!A108=\"\",\"\",'[2]Coal management '!Q108)","v":"III"},{"$f":"IF('[2]Coal management '!A108=\"\",\"\",'[2]Coal management '!T108)","v":"Job observation, toolbox talks"},{"$f":"IF('[2]Coal management '!A108=\"\",\"\",'[2]Coal management '!U108)","v":"Responsible manager"}]
[{"$f":"IF('[2]Coal management '!A109=\"\",\"\",'[2]Coal management '!A109)","v":"Spotting"},{"$f":"IF('[2]Coal management '!A109=\"\",\"\",'[2]Coal management '!D109)","v":"coal dust"},{"$f":"IF('[2]Coal management '!A109=\"\",\"\",'[2]Coal management '!F109)","v":"inhalation of coal dust"},{"$f":"IF('[2]Coal management '!A109=\"\",\"\",'[2]Coal management '!G109)","v":"Health "},{"$f":"IF('[2]Coal management '!A109=\"\",\"\",'[2]Coal management '!L109)","v":"Daily"},{"$f":"IF('[2]Coal management '!A109=\"\",\"\",'[2]Coal management '!M109)","v":"Lung disease, silicosis"},{"$f":"IF('[2]Coal management '!A109=\"\",\"\",'[2]Coal management '!N109)","v":"Pre-job brief, pre-job inspection, Warning signs, PPE(dust mask)"},{"$f":"IF('[2]Coal management '!A109=\"\",\"\",'[2]Coal management '!O109)","v":1},{"$f":"IF('[2]Coal management '!A109=\"\",\"\",'[2]Coal management '!P109)","v":"A"},{"$f":"IF('[2]Coal management '!A109=\"\",\"\",'[2]Coal management '!Q109)","v":"IV"},{"$f":"IF('[2]Coal management '!A109=\"\",\"\",'[2]Coal management '!T109)","v":"Plant Inspections, Medical Surveillance Procedure 32-285,  Deffects Reporting, Tool Box Talks"},{"$f":"IF('[2]Coal management '!A109=\"\",\"\",'[2]Coal management '!U109)","v":"Responsible manager"}]
[{"$f":"IF('[2]Coal management '!A110=\"\",\"\",'[2]Coal management '!A110)","v":"Spotting"},{"$f":"IF('[2]Coal management '!A110=\"\",\"\",'[2]Coal management '!D110)","v":"poor visibility due to coal dust"},{"$f":"IF('[2]Coal management '!A110=\"\",\"\",'[2]Coal management '!F110)","v":"run over by the trucks"},{"$f":"IF('[2]Coal management '!A110=\"\",\"\",'[2]Coal management '!G110)","v":"Safety "},{"$f":"IF('[2]Coal management '!A110=\"\",\"\",'[2]Coal management '!L110)","v":"Daily"},{"$f":"IF('[2]Coal management '!A110=\"\",\"\",'[2]Coal management '!M110)","v":"fatality, serious injury requiring medical treatment , MVA"},{"$f":"IF('[2]Coal management '!A110=\"\",\"\",'[2]Coal management '!N110)","v":"Pre-job brief, pre-job inspection, Warning signs, PPE(reflector jacket)"},{"$f":"IF('[2]Coal management '!A110=\"\",\"\",'[2]Coal management '!O110)","v":3},{"$f":"IF('[2]Coal management '!A110=\"\",\"\",'[2]Coal management '!P110)","v":"B"},{"$f":"IF('[2]Coal management '!A110=\"\",\"\",'[2]Coal management '!Q110)","v":"III"},{"$f":"IF('[2]Coal management '!A110=\"\",\"\",'[2]Coal management '!T110)","v":"Plant Inspections, Medical Surveillance Procedure 32-285,  Deffects Reporting, Tool Box Talks"},{"$f":"IF('[2]Coal management '!A110=\"\",\"\",'[2]Coal management '!U110)","v":"Responsible manager"}]
[{"$f":"IF('[2]Coal management '!A111=\"\",\"\",'[2]Coal management '!A111)","v":"Spotting"},{"$f":"IF('[2]Coal management '!A111=\"\",\"\",'[2]Coal management '!D111)","v":"Adverse weather conditions "},{"$f":"IF('[2]Coal management '!A111=\"\",\"\",'[2]Coal management '!F111)","v":"Heat stress "},{"$f":"IF('[2]Coal management '!A111=\"\",\"\",'[2]Coal management '!G111)","v":"Health "},{"$f":"IF('[2]Coal management '!A111=\"\",\"\",'[2]Coal management '!L111)","v":"Daily"},{"$f":"IF('[2]Coal management '!A111=\"\",\"\",'[2]Coal management '!M111)","v":"Dehydration, Medical treatment case  "},{"$f":"IF('[2]Coal management '!A111=\"\",\"\",'[2]Coal management '!N111)","v":"Appropreate clothing, rest periods"},{"$f":"IF('[2]Coal management '!A111=\"\",\"\",'[2]Coal management '!O111)","v":3},{"$f":"IF('[2]Coal management '!A111=\"\",\"\",'[2]Coal management '!P111)","v":"B"},{"$f":"IF('[2]Coal management '!A111=\"\",\"\",'[2]Coal management '!Q111)","v":"III"},{"$f":"IF('[2]Coal management '!A111=\"\",\"\",'[2]Coal management '!T111)","v":"Job observation, Periodic medical screening"},{"$f":"IF('[2]Coal management '!A111=\"\",\"\",'[2]Coal management '!U111)","v":"Responsible manager"}]
[{"$f":"IF('[2]Coal management '!A112=\"\",\"\",'[2]Coal management '!A112)","v":"Spotting"},{"$f":"IF('[2]Coal management '!A112=\"\",\"\",'[2]Coal management '!D112)","v":"Diesel fumes from the trucks"},{"$f":"IF('[2]Coal management '!A112=\"\",\"\",'[2]Coal management '!F112)","v":"inhalation of the fumes"},{"$f":"IF('[2]Coal management '!A112=\"\",\"\",'[2]Coal management '!G112)","v":"Health "},{"$f":"IF('[2]Coal management '!A112=\"\",\"\",'[2]Coal management '!L112)","v":"Daily"},{"$f":"IF('[2]Coal management '!A112=\"\",\"\",'[2]Coal management '!M112)","v":"Medical treatment case, temporary discomfort "},{"$f":"IF('[2]Coal management '!A112=\"\",\"\",'[2]Coal management '!N112)","v":"Pre-job brief, pre-job inspection, Warning signs, Stop blocks"},{"$f":"IF('[2]Coal management '!A112=\"\",\"\",'[2]Coal management '!O112)","v":2},{"$f":"IF('[2]Coal management '!A112=\"\",\"\",'[2]Coal management '!P112)","v":"A"},{"$f":"IF('[2]Coal management '!A112=\"\",\"\",'[2]Coal management '!Q112)","v":"IV"},{"$f":"IF('[2]Coal management '!A112=\"\",\"\",'[2]Coal management '!T112)","v":"Planned Task Observations,SMAT, Medical Surveillance"},{"$f":"IF('[2]Coal management '!A112=\"\",\"\",'[2]Coal management '!U112)","v":"Responsible manager"}]
[{"$f":"IF('[2]Coal management '!A113=\"\",\"\",'[2]Coal management '!A113)","v":"Spotting"},{"$f":"IF('[2]Coal management '!A113=\"\",\"\",'[2]Coal management '!D113)","v":"standing for a long time"},{"$f":"IF('[2]Coal management '!A113=\"\",\"\",'[2]Coal management '!F113)","v":"Fatigue"},{"$f":"IF('[2]Coal management '!A113=\"\",\"\",'[2]Coal management '!G113)","v":"Health "},{"$f":"IF('[2]Coal management '!A113=\"\",\"\",'[2]Coal management '!L113)","v":"Daily"},{"$f":"IF('[2]Coal management '!A113=\"\",\"\",'[2]Coal management '!M113)","v":"Minor Injuries requiring Medical treatment "},{"$f":"IF('[2]Coal management '!A113=\"\",\"\",'[2]Coal management '!N113)","v":"Pre-job brief, Rest periods"},{"$f":"IF('[2]Coal management '!A113=\"\",\"\",'[2]Coal management '!O113)","v":4},{"$f":"IF('[2]Coal management '!A113=\"\",\"\",'[2]Coal management '!P113)","v":"A"},{"$f":"IF('[2]Coal management '!A113=\"\",\"\",'[2]Coal management '!Q113)","v":"III"},{"$f":"IF('[2]Coal management '!A113=\"\",\"\",'[2]Coal management '!T113)","v":"Toolbox talks, supervision, planned task observation"},{"$f":"IF('[2]Coal management '!A113=\"\",\"\",'[2]Coal management '!U113)","v":"Responsible manager"}]
[{"$f":"IF('[2]Coal management '!A114=\"\",\"\",'[2]Coal management '!A114)","v":"coal feeding :Front end loader, Dozer mobilising coal into the mobile feeder"},{"$f":"IF('[2]Coal management '!A114=\"\",\"\",'[2]Coal management '!D114)","v":"No demacation of the feeder"},{"$f":"IF('[2]Coal management '!A114=\"\",\"\",'[2]Coal management '!F114)","v":"Front end loader/ Dozer bumping the structure"},{"$f":"IF('[2]Coal management '!A114=\"\",\"\",'[2]Coal management '!G114)","v":"Safety "},{"$f":"IF('[2]Coal management '!A114=\"\",\"\",'[2]Coal management '!L114)","v":"Daily"},{"$f":"IF('[2]Coal management '!A114=\"\",\"\",'[2]Coal management '!M114)","v":"fatality, serious injury requiring medical treatment , MVA"},{"$f":"IF('[2]Coal management '!A114=\"\",\"\",'[2]Coal management '!N114)","v":"Pre-job brief, pre-job inspection, Warning signs, Barricading"},{"$f":"IF('[2]Coal management '!A114=\"\",\"\",'[2]Coal management '!O114)","v":3},{"$f":"IF('[2]Coal management '!A114=\"\",\"\",'[2]Coal management '!P114)","v":"A"},{"$f":"IF('[2]Coal management '!A114=\"\",\"\",'[2]Coal management '!Q114)","v":"IV"},{"$f":"IF('[2]Coal management '!A114=\"\",\"\",'[2]Coal management '!T114)","v":"Plant Inspections, Medical Surveillance Procedure 32-285,  incident Reporting, Tool Box Talks"},{"$f":"IF('[2]Coal management '!A114=\"\",\"\",'[2]Coal management '!U114)","v":"Responsible manager"}]
[{"$f":"IF('[2]Coal management '!A115=\"\",\"\",'[2]Coal management '!A115)","v":"coal feeding :Front end loader, Dozer mobilising coal into the mobile feeder"},{"$f":"IF('[2]Coal management '!A115=\"\",\"\",'[2]Coal management '!D115)","v":"inadequate securing of mobile feeder cable"},{"$f":"IF('[2]Coal management '!A115=\"\",\"\",'[2]Coal management '!F115)","v":"electrocution"},{"$f":"IF('[2]Coal management '!A115=\"\",\"\",'[2]Coal management '!G115)","v":"Safety "},{"$f":"IF('[2]Coal management '!A115=\"\",\"\",'[2]Coal management '!L115)","v":"Daily"},{"$f":"IF('[2]Coal management '!A115=\"\",\"\",'[2]Coal management '!M115)","v":"Fatality, serious injury requiring medical treatment "},{"$f":"IF('[2]Coal management '!A115=\"\",\"\",'[2]Coal management '!N115)","v":"Barricading of cables"},{"$f":"IF('[2]Coal management '!A115=\"\",\"\",'[2]Coal management '!O115)","v":3},{"$f":"IF('[2]Coal management '!A115=\"\",\"\",'[2]Coal management '!P115)","v":"B"},{"$f":"IF('[2]Coal management '!A115=\"\",\"\",'[2]Coal management '!Q115)","v":"III"},{"$f":"IF('[2]Coal management '!A115=\"\",\"\",'[2]Coal management '!T115)","v":"Equipment inspection system"},{"$f":"IF('[2]Coal management '!A115=\"\",\"\",'[2]Coal management '!U115)","v":"Responsible manager"}]
[{"$f":"IF('[2]Coal management '!A116=\"\",\"\",'[2]Coal management '!A116)","v":"coal feeding :Front end loader, Dozer mobilising coal into the mobile feeder"},{"$f":"IF('[2]Coal management '!A116=\"\",\"\",'[2]Coal management '!D116)","v":"congestion"},{"$f":"IF('[2]Coal management '!A116=\"\",\"\",'[2]Coal management '!F116)","v":"Collision  between machinery and structures result in operator getting injured"},{"$f":"IF('[2]Coal management '!A116=\"\",\"\",'[2]Coal management '!G116)","v":"Safety "},{"$f":"IF('[2]Coal management '!A116=\"\",\"\",'[2]Coal management '!L116)","v":"Daily"},{"$f":"IF('[2]Coal management '!A116=\"\",\"\",'[2]Coal management '!M116)","v":"MVA, fatality"},{"$f":"IF('[2]Coal management '!A116=\"\",\"\",'[2]Coal management '!N116)","v":"5m following distance, 2m clearence from machines"},{"$f":"IF('[2]Coal management '!A116=\"\",\"\",'[2]Coal management '!O116)","v":3},{"$f":"IF('[2]Coal management '!A116=\"\",\"\",'[2]Coal management '!P116)","v":"B"},{"$f":"IF('[2]Coal management '!A116=\"\",\"\",'[2]Coal management '!Q116)","v":"III"},{"$f":"IF('[2]Coal management '!A116=\"\",\"\",'[2]Coal management '!T116)","v":"Plant Inspections, Medical Surveillance Procedure 32-285,  , Tool Box Talks"},{"$f":"IF('[2]Coal management '!A116=\"\",\"\",'[2]Coal management '!U116)","v":"Responsible manager"}]
[{"$f":"IF('[2]Coal management '!A117=\"\",\"\",'[2]Coal management '!A117)","v":"General administrative work - computer work "},{"$f":"IF('[2]Coal management '!A117=\"\",\"\",'[2]Coal management '!D117)","v":"Work station design/ergonomics"},{"$f":"IF('[2]Coal management '!A117=\"\",\"\",'[2]Coal management '!F117)","v":"Fatique/musculo- skeletal disorders"},{"$f":"IF('[2]Coal management '!A117=\"\",\"\",'[2]Coal management '!G117)","v":"Health"},{"$f":"IF('[2]Coal management '!A117=\"\",\"\",'[2]Coal management '!L117)","v":"Daily"},{"$f":"IF('[2]Coal management '!A117=\"\",\"\",'[2]Coal management '!M117)","v":"Permanent disability"},{"$f":"IF('[2]Coal management '!A117=\"\",\"\",'[2]Coal management '!N117)","v":"Annual medicals \nErgomomic assessment"},{"$f":"IF('[2]Coal management '!A117=\"\",\"\",'[2]Coal management '!O117)","v":3},{"$f":"IF('[2]Coal management '!A117=\"\",\"\",'[2]Coal management '!P117)","v":"B"},{"$f":"IF('[2]Coal management '!A117=\"\",\"\",'[2]Coal management '!Q117)","v":"III"},{"$f":"IF('[2]Coal management '!A117=\"\",\"\",'[2]Coal management '!T117)","v":" Medical Surveillance Procedure 32-285, Ergonomic Surveys, Office Inspection, Equipment Inspection, Tool Box Talks."},{"$f":"IF('[2]Coal management '!A117=\"\",\"\",'[2]Coal management '!U117)","v":"Responsible manager"}]
[{"$f":"IF('[2]Coal management '!A118=\"\",\"\",'[2]Coal management '!A118)","v":"General administrative work - computer work "},{"$f":"IF('[2]Coal management '!A118=\"\",\"\",'[2]Coal management '!D118)","v":"Computer light"},{"$f":"IF('[2]Coal management '!A118=\"\",\"\",'[2]Coal management '!F118)","v":"Fatigue \nEye strain"},{"$f":"IF('[2]Coal management '!A118=\"\",\"\",'[2]Coal management '!G118)","v":"Health"},{"$f":"IF('[2]Coal management '!A118=\"\",\"\",'[2]Coal management '!L118)","v":"Daily"},{"$f":"IF('[2]Coal management '!A118=\"\",\"\",'[2]Coal management '!M118)","v":"Loss of concentration\nPoor sight \nHeadaches  "},{"$f":"IF('[2]Coal management '!A118=\"\",\"\",'[2]Coal management '!N118)","v":"Annual medicals \nRegular eye test"},{"$f":"IF('[2]Coal management '!A118=\"\",\"\",'[2]Coal management '!O118)","v":3},{"$f":"IF('[2]Coal management '!A118=\"\",\"\",'[2]Coal management '!P118)","v":"B"},{"$f":"IF('[2]Coal management '!A118=\"\",\"\",'[2]Coal management '!Q118)","v":"III"},{"$f":"IF('[2]Coal management '!A118=\"\",\"\",'[2]Coal management '!T118)","v":"Medical Surveillance Procedure 32-285, Ergonomic Surveys, Office Inspection, Equipment Inspection, Tool Box Talks."},{"$f":"IF('[2]Coal management '!A118=\"\",\"\",'[2]Coal management '!U118)","v":"Responsible manager"}]
[{"$f":"IF('[2]Coal management '!A119=\"\",\"\",'[2]Coal management '!A119)","v":"General administrative work - computer work "},{"$f":"IF('[2]Coal management '!A119=\"\",\"\",'[2]Coal management '!D119)","v":"Poor Ventilation"},{"$f":"IF('[2]Coal management '!A119=\"\",\"\",'[2]Coal management '!F119)","v":"Fatigue/bacteria/ viruses "},{"$f":"IF('[2]Coal management '!A119=\"\",\"\",'[2]Coal management '!G119)","v":"Health"},{"$f":"IF('[2]Coal management '!A119=\"\",\"\",'[2]Coal management '!L119)","v":"Daily"},{"$f":"IF('[2]Coal management '!A119=\"\",\"\",'[2]Coal management '!M119)","v":"Temporary disability\nIllnesses/viral infections\n"},{"$f":"IF('[2]Coal management '!A119=\"\",\"\",'[2]Coal management '!N119)","v":"Equipment servicing\nAir qaulity analysis\nMedical surveillance "},{"$f":"IF('[2]Coal management '!A119=\"\",\"\",'[2]Coal management '!O119)","v":2},{"$f":"IF('[2]Coal management '!A119=\"\",\"\",'[2]Coal management '!P119)","v":"A"},{"$f":"IF('[2]Coal management '!A119=\"\",\"\",'[2]Coal management '!Q119)","v":"IV"},{"$f":"IF('[2]Coal management '!A119=\"\",\"\",'[2]Coal management '!T119)","v":"Medical Surveillance Procedure 32-285,  Ventilation Surveys, Deffects Reporting, Office Inspection, Equipment Inspection,  Tool Box Talks."},{"$f":"IF('[2]Coal management '!A119=\"\",\"\",'[2]Coal management '!U119)","v":"Responsible manager"}]
[{"$f":"IF('[2]Coal management '!A120=\"\",\"\",'[2]Coal management '!A120)","v":"General administrative work - computer work "},{"$f":"IF('[2]Coal management '!A120=\"\",\"\",'[2]Coal management '!D120)","v":"Poor Illumination"},{"$f":"IF('[2]Coal management '!A120=\"\",\"\",'[2]Coal management '!F120)","v":"Fatigue, eye strain"},{"$f":"IF('[2]Coal management '!A120=\"\",\"\",'[2]Coal management '!G120)","v":"Health"},{"$f":"IF('[2]Coal management '!A120=\"\",\"\",'[2]Coal management '!L120)","v":"Daily"},{"$f":"IF('[2]Coal management '!A120=\"\",\"\",'[2]Coal management '!M120)","v":"Loss of concentration\nPoor sight \nHeadaches  "},{"$f":"IF('[2]Coal management '!A120=\"\",\"\",'[2]Coal management '!N120)","v":"Work station design\nPerson job specifications\nTraining - ergonomics"},{"$f":"IF('[2]Coal management '!A120=\"\",\"\",'[2]Coal management '!O120)","v":3},{"$f":"IF('[2]Coal management '!A120=\"\",\"\",'[2]Coal management '!P120)","v":"B"},{"$f":"IF('[2]Coal management '!A120=\"\",\"\",'[2]Coal management '!Q120)","v":"III"},{"$f":"IF('[2]Coal management '!A120=\"\",\"\",'[2]Coal management '!T120)","v":" Medical Surveillance Procedure 32-285, illumination Surveys, Deffects Reporting, Office Inspection, Equipment Inspection, Audits, Tool Box Talks."},{"$f":"IF('[2]Coal management '!A120=\"\",\"\",'[2]Coal management '!U120)","v":"Responsible manager"}]
[{"$f":"IF('[2]Coal management '!A121=\"\",\"\",'[2]Coal management '!A121)","v":"General administrative work - computer work "},{"$f":"IF('[2]Coal management '!A121=\"\",\"\",'[2]Coal management '!D121)","v":"Work station design"},{"$f":"IF('[2]Coal management '!A121=\"\",\"\",'[2]Coal management '!F121)","v":"Slipping, tripping, falling"},{"$f":"IF('[2]Coal management '!A121=\"\",\"\",'[2]Coal management '!G121)","v":"Safety"},{"$f":"IF('[2]Coal management '!A121=\"\",\"\",'[2]Coal management '!L121)","v":"Daily"},{"$f":"IF('[2]Coal management '!A121=\"\",\"\",'[2]Coal management '!M121)","v":"Temporary disability\nDislocation, fracture"},{"$f":"IF('[2]Coal management '!A121=\"\",\"\",'[2]Coal management '!N121)","v":"Warning signs\nHousekeeping\nTraining - cleaning staff\nSafe work methods"},{"$f":"IF('[2]Coal management '!A121=\"\",\"\",'[2]Coal management '!O121)","v":3},{"$f":"IF('[2]Coal management '!A121=\"\",\"\",'[2]Coal management '!P121)","v":"A"},{"$f":"IF('[2]Coal management '!A121=\"\",\"\",'[2]Coal management '!Q121)","v":"IV"},{"$f":"IF('[2]Coal management '!A121=\"\",\"\",'[2]Coal management '!T121)","v":"Incident reporting, Medical Surveillance Procedure 32-285,  Office Inspection, Tool Box Talks."},{"$f":"IF('[2]Coal management '!A121=\"\",\"\",'[2]Coal management '!U121)","v":"Responsible manager"}]
[{"$f":"IF('[2]Coal management '!A122=\"\",\"\",'[2]Coal management '!A122)","v":"General administrative work - moving in and around the offices"},{"$f":"IF('[2]Coal management '!A122=\"\",\"\",'[2]Coal management '!D122)","v":"Wet, slippery  floor conditions "},{"$f":"IF('[2]Coal management '!A122=\"\",\"\",'[2]Coal management '!F122)","v":"Slipping, tripping, falling"},{"$f":"IF('[2]Coal management '!A122=\"\",\"\",'[2]Coal management '!G122)","v":"Safety"},{"$f":"IF('[2]Coal management '!A122=\"\",\"\",'[2]Coal management '!L122)","v":"Daily"},{"$f":"IF('[2]Coal management '!A122=\"\",\"\",'[2]Coal management '!M122)","v":"Temporary disability\nDislocation, fracture"},{"$f":"IF('[2]Coal management '!A122=\"\",\"\",'[2]Coal management '!N122)","v":"Warning signs\nHousekeeping\nTraining - cleaning staff\nSafe work methods"},{"$f":"IF('[2]Coal management '!A122=\"\",\"\",'[2]Coal management '!O122)","v":3},{"$f":"IF('[2]Coal management '!A122=\"\",\"\",'[2]Coal management '!P122)","v":"A"},{"$f":"IF('[2]Coal management '!A122=\"\",\"\",'[2]Coal management '!Q122)","v":"IV"},{"$f":"IF('[2]Coal management '!A122=\"\",\"\",'[2]Coal management '!T122)","v":" SMAT,  Incident reporting, Medical Surveillance Procedure 32-285, Office Inspection, Tool Box Talks."},{"$f":"IF('[2]Coal management '!A122=\"\",\"\",'[2]Coal management '!U122)","v":"Responsible manager"}]
[{"$f":"IF('[2]Coal management '!A123=\"\",\"\",'[2]Coal management '!A123)","v":"Driving to destination during work hours"},{"$f":"IF('[2]Coal management '!A123=\"\",\"\",'[2]Coal management '!D123)","v":"Exposure to vehicle movement on site"},{"$f":"IF('[2]Coal management '!A123=\"\",\"\",'[2]Coal management '!F123)","v":"Body trauma, contusion, fatality"},{"$f":"IF('[2]Coal management '!A123=\"\",\"\",'[2]Coal management '!G123)","v":"Safety"},{"$f":"IF('[2]Coal management '!A123=\"\",\"\",'[2]Coal management '!L123)","v":"Daily"},{"$f":"IF('[2]Coal management '!A123=\"\",\"\",'[2]Coal management '!M123)","v":"Permanent disability"},{"$f":"IF('[2]Coal management '!A123=\"\",\"\",'[2]Coal management '!N123)","v":"Vehicles - Highly visual colours  \nDesignated driving routes"},{"$f":"IF('[2]Coal management '!A123=\"\",\"\",'[2]Coal management '!O123)","v":3},{"$f":"IF('[2]Coal management '!A123=\"\",\"\",'[2]Coal management '!P123)","v":"A"},{"$f":"IF('[2]Coal management '!A123=\"\",\"\",'[2]Coal management '!Q123)","v":"IV"},{"$f":"IF('[2]Coal management '!A123=\"\",\"\",'[2]Coal management '!T123)","v":" SMAT,  Incident reporting, Medical Surveillance Procedure 32-285,Tool Box Talks."},{"$f":"IF('[2]Coal management '!A123=\"\",\"\",'[2]Coal management '!U123)","v":"Responsible manager"}]
[{"$f":"IF('[2]Coal management '!A124=\"\",\"\",'[2]Coal management '!A124)","v":"Going around the work place (going to the toilet, meetings, canteen, park home to park home)"},{"$f":"IF('[2]Coal management '!A124=\"\",\"\",'[2]Coal management '!D124)","v":"Insect bites and bee stings"},{"$f":"IF('[2]Coal management '!A124=\"\",\"\",'[2]Coal management '!F124)","v":"Inflamation and anaphylactic shock"},{"$f":"IF('[2]Coal management '!A124=\"\",\"\",'[2]Coal management '!G124)","v":"Safety"},{"$f":"IF('[2]Coal management '!A124=\"\",\"\",'[2]Coal management '!L124)","v":"Daily"},{"$f":"IF('[2]Coal management '!A124=\"\",\"\",'[2]Coal management '!M124)","v":"Temporary disablement"},{"$f":"IF('[2]Coal management '!A124=\"\",\"\",'[2]Coal management '!N124)","v":"Awareness/communication\nEmergency medical response\nPerson job specifications"},{"$f":"IF('[2]Coal management '!A124=\"\",\"\",'[2]Coal management '!O124)","v":3},{"$f":"IF('[2]Coal management '!A124=\"\",\"\",'[2]Coal management '!P124)","v":"B"},{"$f":"IF('[2]Coal management '!A124=\"\",\"\",'[2]Coal management '!Q124)","v":"III"},{"$f":"IF('[2]Coal management '!A124=\"\",\"\",'[2]Coal management '!T124)","v":" SMAT,  Incident reporting, Medical Surveillance Procedure 32-285,  Tool Box Talks."},{"$f":"IF('[2]Coal management '!A124=\"\",\"\",'[2]Coal management '!U124)","v":"Responsible manager"}]
[{"$f":"IF('[2]Coal management '!A125=\"\",\"\",'[2]Coal management '!A125)","v":"Going around the work place (going to the toilet, meetings, canteen, park home to park home)"},{"$f":"IF('[2]Coal management '!A125=\"\",\"\",'[2]Coal management '!D125)","v":"Animal (wild cats) and snake bites "},{"$f":"IF('[2]Coal management '!A125=\"\",\"\",'[2]Coal management '!F125)","v":"laceration wounds, viral infections, anaphylactic shock"},{"$f":"IF('[2]Coal management '!A125=\"\",\"\",'[2]Coal management '!G125)","v":"Safety"},{"$f":"IF('[2]Coal management '!A125=\"\",\"\",'[2]Coal management '!L125)","v":"Daily"},{"$f":"IF('[2]Coal management '!A125=\"\",\"\",'[2]Coal management '!M125)","v":"Temporary disablement"},{"$f":"IF('[2]Coal management '!A125=\"\",\"\",'[2]Coal management '!N125)","v":"Awareness/ communication\nVeld dress\nRemove animals\nEmergency medical response"},{"$f":"IF('[2]Coal management '!A125=\"\",\"\",'[2]Coal management '!O125)","v":3},{"$f":"IF('[2]Coal management '!A125=\"\",\"\",'[2]Coal management '!P125)","v":"B"},{"$f":"IF('[2]Coal management '!A125=\"\",\"\",'[2]Coal management '!Q125)","v":"III"},{"$f":"IF('[2]Coal management '!A125=\"\",\"\",'[2]Coal management '!T125)","v":"  Incident reporting, Medical Surveillance Procedure 32-285, Tool Box Talks."},{"$f":"IF('[2]Coal management '!A125=\"\",\"\",'[2]Coal management '!U125)","v":"Responsible manager"}]
[{"$f":"IF('[2]Coal management '!A126=\"\",\"\",'[2]Coal management '!A126)","v":"Going around the work place (going to the toilet, meetings, canteen, park home to park home)"},{"$f":"IF('[2]Coal management '!A126=\"\",\"\",'[2]Coal management '!D126)","v":"Natural elements (sunlight) and lightening"},{"$f":"IF('[2]Coal management '!A126=\"\",\"\",'[2]Coal management '!F126)","v":"Sun burn"},{"$f":"IF('[2]Coal management '!A126=\"\",\"\",'[2]Coal management '!G126)","v":"Safety"},{"$f":"IF('[2]Coal management '!A126=\"\",\"\",'[2]Coal management '!L126)","v":"Daily"},{"$f":"IF('[2]Coal management '!A126=\"\",\"\",'[2]Coal management '!M126)","v":"Temporary disablement"},{"$f":"IF('[2]Coal management '!A126=\"\",\"\",'[2]Coal management '!N126)","v":"Skin protection\nTraining - Occ health"},{"$f":"IF('[2]Coal management '!A126=\"\",\"\",'[2]Coal management '!O126)","v":3},{"$f":"IF('[2]Coal management '!A126=\"\",\"\",'[2]Coal management '!P126)","v":"B"},{"$f":"IF('[2]Coal management '!A126=\"\",\"\",'[2]Coal management '!Q126)","v":"III"},{"$f":"IF('[2]Coal management '!A126=\"\",\"\",'[2]Coal management '!T126)","v":" SMAT,  Incident reporting, Medical Surveillance Procedure 32-285, Tool Box Talks."},{"$f":"IF('[2]Coal management '!A126=\"\",\"\",'[2]Coal management '!U126)","v":"Responsible manager"}]
[{"$f":"IF('[2]Coal management '!A127=\"\",\"\",'[2]Coal management '!A127)","v":"conducting normal duties on a daily basis"},{"$f":"IF('[2]Coal management '!A127=\"\",\"\",'[2]Coal management '!D127)","v":" Poor organizational change management"},{"$f":"IF('[2]Coal management '!A127=\"\",\"\",'[2]Coal management '!F127)","v":"Work related stress"},{"$f":"IF('[2]Coal management '!A127=\"\",\"\",'[2]Coal management '!G127)","v":"Health"},{"$f":"IF('[2]Coal management '!A127=\"\",\"\",'[2]Coal management '!L127)","v":"Daily"},{"$f":"IF('[2]Coal management '!A127=\"\",\"\",'[2]Coal management '!M127)","v":"Depresion"},{"$f":"IF('[2]Coal management '!A127=\"\",\"\",'[2]Coal management '!N127)","v":"Making sure changes are communicated openly so everyone\nunderstands the effects they will have.\nMonitoring effects of changes on stress levels so staff have the\nchance to provide feedback."},{"$f":"IF('[2]Coal management '!A127=\"\",\"\",'[2]Coal management '!O127)","v":3},{"$f":"IF('[2]Coal management '!A127=\"\",\"\",'[2]Coal management '!P127)","v":"B"},{"$f":"IF('[2]Coal management '!A127=\"\",\"\",'[2]Coal management '!Q127)","v":"III"},{"$f":"IF('[2]Coal management '!A127=\"\",\"\",'[2]Coal management '!T127)","v":"work related stress training and awareness, tool box talks, "},{"$f":"IF('[2]Coal management '!A127=\"\",\"\",'[2]Coal management '!U127)","v":"Responsible manager"}]
[{"$f":"IF('[2]Coal management '!A128=\"\",\"\",'[2]Coal management '!A128)","v":"conducting normal duties on a daily basis"},{"$f":"IF('[2]Coal management '!A128=\"\",\"\",'[2]Coal management '!D128)","v":"poor work place relationships"},{"$f":"IF('[2]Coal management '!A128=\"\",\"\",'[2]Coal management '!F128)","v":"Work related stress"},{"$f":"IF('[2]Coal management '!A128=\"\",\"\",'[2]Coal management '!G128)","v":"Health"},{"$f":"IF('[2]Coal management '!A128=\"\",\"\",'[2]Coal management '!L128)","v":"Daily"},{"$f":"IF('[2]Coal management '!A128=\"\",\"\",'[2]Coal management '!M128)","v":"Depresion, headaches, anxiety"},{"$f":"IF('[2]Coal management '!A128=\"\",\"\",'[2]Coal management '!N128)","v":"Training managers in promoting a positive working culture, awareness of code of conduct policy"},{"$f":"IF('[2]Coal management '!A128=\"\",\"\",'[2]Coal management '!O128)","v":3},{"$f":"IF('[2]Coal management '!A128=\"\",\"\",'[2]Coal management '!P128)","v":"B"},{"$f":"IF('[2]Coal management '!A128=\"\",\"\",'[2]Coal management '!Q128)","v":"III"},{"$f":"IF('[2]Coal management '!A128=\"\",\"\",'[2]Coal management '!T128)","v":"work related stress training and awareness, tool box talks"},{"$f":"IF('[2]Coal management '!A128=\"\",\"\",'[2]Coal management '!U128)","v":"Responsible manager"}]
[{"$f":"IF('[2]Coal management '!A129=\"\",\"\",'[2]Coal management '!A129)","v":"conducting normal duties on a daily basis"},{"$f":"IF('[2]Coal management '!A129=\"\",\"\",'[2]Coal management '!D129)","v":"Job demands"},{"$f":"IF('[2]Coal management '!A129=\"\",\"\",'[2]Coal management '!F129)","v":"Risk of psychosocial injury to staff due to\nworkload pressures, unrealistic work\ndeadlines"},{"$f":"IF('[2]Coal management '!A129=\"\",\"\",'[2]Coal management '!G129)","v":"Health"},{"$f":"IF('[2]Coal management '!A129=\"\",\"\",'[2]Coal management '!L129)","v":"Daily"},{"$f":"IF('[2]Coal management '!A129=\"\",\"\",'[2]Coal management '!M129)","v":"Psychosocial injury"},{"$f":"IF('[2]Coal management '!A129=\"\",\"\",'[2]Coal management '!N129)","v":"Training managers in spotting early signs of stress\nProviding details of counselling services for staff, Jobs are designed to be within the capabilities of employees,People’s skills and abilities are matched to the job demands"},{"$f":"IF('[2]Coal management '!A129=\"\",\"\",'[2]Coal management '!O129)","v":3},{"$f":"IF('[2]Coal management '!A129=\"\",\"\",'[2]Coal management '!P129)","v":"B"},{"$f":"IF('[2]Coal management '!A129=\"\",\"\",'[2]Coal management '!Q129)","v":"III"},{"$f":"IF('[2]Coal management '!A129=\"\",\"\",'[2]Coal management '!T129)","v":"work related stress training and awareness, tool box talks"},{"$f":"IF('[2]Coal management '!A129=\"\",\"\",'[2]Coal management '!U129)","v":"Responsible manager"}]
[{"$f":"IF('[2]Coal management '!A130=\"\",\"\",'[2]Coal management '!A130)","v":"conducting normal duties on a daily basis"},{"$f":"IF('[2]Coal management '!A130=\"\",\"\",'[2]Coal management '!D130)","v":"poor work place relationships"},{"$f":"IF('[2]Coal management '!A130=\"\",\"\",'[2]Coal management '!F130)","v":"Work related stress"},{"$f":"IF('[2]Coal management '!A130=\"\",\"\",'[2]Coal management '!G130)","v":"Health"},{"$f":"IF('[2]Coal management '!A130=\"\",\"\",'[2]Coal management '!L130)","v":"Daily"},{"$f":"IF('[2]Coal management '!A130=\"\",\"\",'[2]Coal management '!M130)","v":"Depresion, headaches, anxiety"},{"$f":"IF('[2]Coal management '!A130=\"\",\"\",'[2]Coal management '!N130)","v":"Training managers in promoting a positive working culture"},{"$f":"IF('[2]Coal management '!A130=\"\",\"\",'[2]Coal management '!O130)","v":1},{"$f":"IF('[2]Coal management '!A130=\"\",\"\",'[2]Coal management '!P130)","v":"A"},{"$f":"IF('[2]Coal management '!A130=\"\",\"\",'[2]Coal management '!Q130)","v":"IV"},{"$f":"IF('[2]Coal management '!A130=\"\",\"\",'[2]Coal management '!T130)","v":"work related stress training and awareness, tool box talks"},{"$f":"IF('[2]Coal management '!A130=\"\",\"\",'[2]Coal management '!U130)","v":"Responsible manager"}]
[{"$f":"IF('[2]Coal management '!A131=\"\",\"\",'[2]Coal management '!A131)","v":"conducting normal duties on a daily basis"},{"$f":"IF('[2]Coal management '!A131=\"\",\"\",'[2]Coal management '!D131)","v":"Out brake of corona virus"},{"$f":"IF('[2]Coal management '!A131=\"\",\"\",'[2]Coal management '!F131)","v":"ill-health due to the corona virus global outbreak leading to business interruptions"},{"$f":"IF('[2]Coal management '!A131=\"\",\"\",'[2]Coal management '!G131)","v":"Health"},{"$f":"IF('[2]Coal management '!A131=\"\",\"\",'[2]Coal management '!L131)","v":"Daily"},{"$f":"IF('[2]Coal management '!A131=\"\",\"\",'[2]Coal management '!M131)","v":"Panic and fear ,Loss of productivity due to staff remaining home ( unavailability of critical Staff), Potential long illness and deaths (direct /indirect impact  on Eskom employees or families), Stigmatization, Financial impact"},{"$f":"IF('[2]Coal management '!A131=\"\",\"\",'[2]Coal management '!N131)","v":"Continuous Information sharing / awareness , Prohibition of large scale engagements, All international business travel (irrespective of the destination) is prohibited, Deactivation of biometric,  suspension of alcohol testing, Practice good personal hygiene"},{"$f":"IF('[2]Coal management '!A131=\"\",\"\",'[2]Coal management '!O131)","v":2},{"$f":"IF('[2]Coal management '!A131=\"\",\"\",'[2]Coal management '!P131)","v":"B"},{"$f":"IF('[2]Coal management '!A131=\"\",\"\",'[2]Coal management '!Q131)","v":"IV"},{"$f":"IF('[2]Coal management '!A131=\"\",\"\",'[2]Coal management '!T131)","v":"Continuous Information sharing / awareness, EAP, COVID-19 awareness discussion included as standard in all meeting agendas."},{"$f":"IF('[2]Coal management '!A131=\"\",\"\",'[2]Coal management '!U131)","v":"Responsible manager"}]
[{"$f":"IF('[2]Coal management '!A132=\"\",\"\",'[2]Coal management '!A132)","v":"General administrative work - computer work "},{"$f":"IF('[2]Coal management '!A132=\"\",\"\",'[2]Coal management '!D132)","v":"Work station design/ergonomics"},{"$f":"IF('[2]Coal management '!A132=\"\",\"\",'[2]Coal management '!F132)","v":"Fatique/musculo- skeletal disorders"},{"$f":"IF('[2]Coal management '!A132=\"\",\"\",'[2]Coal management '!G132)","v":"Health"},{"$f":"IF('[2]Coal management '!A132=\"\",\"\",'[2]Coal management '!L132)","v":"Daily"},{"$f":"IF('[2]Coal management '!A132=\"\",\"\",'[2]Coal management '!M132)","v":"Permanent disability"},{"$f":"IF('[2]Coal management '!A132=\"\",\"\",'[2]Coal management '!N132)","v":"Annual medicals \nErgomomic assessment"},{"$f":"IF('[2]Coal management '!A132=\"\",\"\",'[2]Coal management '!O132)","v":3},{"$f":"IF('[2]Coal management '!A132=\"\",\"\",'[2]Coal management '!P132)","v":" D "},{"$f":"IF('[2]Coal management '!A132=\"\",\"\",'[2]Coal management '!Q132)","v":"II"},{"$f":"IF('[2]Coal management '!A132=\"\",\"\",'[2]Coal management '!T132)","v":" Medical Surveillance Procedure 32-285, Ergonomic Surveys, Office Inspection, Equipment Inspection, Tool Box Talks."},{"$f":"IF('[2]Coal management '!A132=\"\",\"\",'[2]Coal management '!U132)","v":"Responsible manager"}]
[{"$f":"IF('[2]Coal management '!A133=\"\",\"\",'[2]Coal management '!A133)","v":"General administrative work - computer work "},{"$f":"IF('[2]Coal management '!A133=\"\",\"\",'[2]Coal management '!D133)","v":"Computer light"},{"$f":"IF('[2]Coal management '!A133=\"\",\"\",'[2]Coal management '!F133)","v":"Fatigue \nEye strain"},{"$f":"IF('[2]Coal management '!A133=\"\",\"\",'[2]Coal management '!G133)","v":"Health"},{"$f":"IF('[2]Coal management '!A133=\"\",\"\",'[2]Coal management '!L133)","v":"Daily"},{"$f":"IF('[2]Coal management '!A133=\"\",\"\",'[2]Coal management '!M133)","v":"Loss of concentration\nPoor sight \nHeadaches  "},{"$f":"IF('[2]Coal management '!A133=\"\",\"\",'[2]Coal management '!N133)","v":"Annual medicals \nRegular eye test"},{"$f":"IF('[2]Coal management '!A133=\"\",\"\",'[2]Coal management '!O133)","v":3},{"$f":"IF('[2]Coal management '!A133=\"\",\"\",'[2]Coal management '!P133)","v":" C "},{"$f":"IF('[2]Coal management '!A133=\"\",\"\",'[2]Coal management '!Q133)","v":"II"},{"$f":"IF('[2]Coal management '!A133=\"\",\"\",'[2]Coal management '!T133)","v":"Medical Surveillance Procedure 32-285, Ergonomic Surveys, Office Inspection, Equipment Inspection, Tool Box Talks."},{"$f":"IF('[2]Coal management '!A133=\"\",\"\",'[2]Coal management '!U133)","v":"Responsible manager"}]
[{"$f":"IF('[2]Coal management '!A134=\"\",\"\",'[2]Coal management '!A134)","v":"General administrative work - computer work "},{"$f":"IF('[2]Coal management '!A134=\"\",\"\",'[2]Coal management '!D134)","v":"Poor Ventilation"},{"$f":"IF('[2]Coal management '!A134=\"\",\"\",'[2]Coal management '!F134)","v":"Fatigue/bacteria/ viruses "},{"$f":"IF('[2]Coal management '!A134=\"\",\"\",'[2]Coal management '!G134)","v":"Health"},{"$f":"IF('[2]Coal management '!A134=\"\",\"\",'[2]Coal management '!L134)","v":"Daily"},{"$f":"IF('[2]Coal management '!A134=\"\",\"\",'[2]Coal management '!M134)","v":"Temporary disability\nIllnesses/viral infections\n"},{"$f":"IF('[2]Coal management '!A134=\"\",\"\",'[2]Coal management '!N134)","v":"Equipment servicing\nAir qaulity analysis\nMedical surveillance "},{"$f":"IF('[2]Coal management '!A134=\"\",\"\",'[2]Coal management '!O134)","v":2},{"$f":"IF('[2]Coal management '!A134=\"\",\"\",'[2]Coal management '!P134)","v":1},{"$f":"IF('[2]Coal management '!A134=\"\",\"\",'[2]Coal management '!Q134)","v":"IV"},{"$f":"IF('[2]Coal management '!A134=\"\",\"\",'[2]Coal management '!T134)","v":"Medical Surveillance Procedure 32-285,  Ventilation Surveys, Deffects Reporting, Office Inspection, Equipment Inspection,  Tool Box Talks."},{"$f":"IF('[2]Coal management '!A134=\"\",\"\",'[2]Coal management '!U134)","v":"Responsible manager"}]
[{"$f":"IF('[2]Coal management '!A135=\"\",\"\",'[2]Coal management '!A135)","v":"General administrative work - computer work "},{"$f":"IF('[2]Coal management '!A135=\"\",\"\",'[2]Coal management '!D135)","v":"Poor Illumination"},{"$f":"IF('[2]Coal management '!A135=\"\",\"\",'[2]Coal management '!F135)","v":"Fatigue, eye strain"},{"$f":"IF('[2]Coal management '!A135=\"\",\"\",'[2]Coal management '!G135)","v":"Health"},{"$f":"IF('[2]Coal management '!A135=\"\",\"\",'[2]Coal management '!L135)","v":"Daily"},{"$f":"IF('[2]Coal management '!A135=\"\",\"\",'[2]Coal management '!M135)","v":"Loss of concentration\nPoor sight \nHeadaches  "},{"$f":"IF('[2]Coal management '!A135=\"\",\"\",'[2]Coal management '!N135)","v":"Work station design\nPerson job specifications\nTraining - ergonomics"},{"$f":"IF('[2]Coal management '!A135=\"\",\"\",'[2]Coal management '!O135)","v":3},{"$f":"IF('[2]Coal management '!A135=\"\",\"\",'[2]Coal management '!P135)","v":2},{"$f":"IF('[2]Coal management '!A135=\"\",\"\",'[2]Coal management '!Q135)","v":"III"},{"$f":"IF('[2]Coal management '!A135=\"\",\"\",'[2]Coal management '!T135)","v":" Medical Surveillance Procedure 32-285, illumination Surveys, Deffects Reporting, Office Inspection, Equipment Inspection, Audits, Tool Box Talks."},{"$f":"IF('[2]Coal management '!A135=\"\",\"\",'[2]Coal management '!U135)","v":"Responsible manager"}]
[{"$f":"IF('[2]Coal management '!A136=\"\",\"\",'[2]Coal management '!A136)","v":"General administrative work - computer work "},{"$f":"IF('[2]Coal management '!A136=\"\",\"\",'[2]Coal management '!D136)","v":"Work station design"},{"$f":"IF('[2]Coal management '!A136=\"\",\"\",'[2]Coal management '!F136)","v":"Slipping, tripping, falling"},{"$f":"IF('[2]Coal management '!A136=\"\",\"\",'[2]Coal management '!G136)","v":"Safety"},{"$f":"IF('[2]Coal management '!A136=\"\",\"\",'[2]Coal management '!L136)","v":"Daily"},{"$f":"IF('[2]Coal management '!A136=\"\",\"\",'[2]Coal management '!M136)","v":"Temporary disability\nDislocation, fracture"},{"$f":"IF('[2]Coal management '!A136=\"\",\"\",'[2]Coal management '!N136)","v":"Warning signs\nHousekeeping\nTraining - cleaning staff\nSafe work methods"},{"$f":"IF('[2]Coal management '!A136=\"\",\"\",'[2]Coal management '!O136)","v":3},{"$f":"IF('[2]Coal management '!A136=\"\",\"\",'[2]Coal management '!P136)","v":1},{"$f":"IF('[2]Coal management '!A136=\"\",\"\",'[2]Coal management '!Q136)","v":"IV"},{"$f":"IF('[2]Coal management '!A136=\"\",\"\",'[2]Coal management '!T136)","v":"Incident reporting, Medical Surveillance Procedure 32-285,  Office Inspection, Tool Box Talks."},{"$f":"IF('[2]Coal management '!A136=\"\",\"\",'[2]Coal management '!U136)","v":"Responsible manager"}]
[{"$f":"IF('[2]Coal management '!A137=\"\",\"\",'[2]Coal management '!A137)","v":"General administrative work - moving in and around the offices"},{"$f":"IF('[2]Coal management '!A137=\"\",\"\",'[2]Coal management '!D137)","v":"Wet, slippery  floor conditions "},{"$f":"IF('[2]Coal management '!A137=\"\",\"\",'[2]Coal management '!F137)","v":"Slipping, tripping, falling"},{"$f":"IF('[2]Coal management '!A137=\"\",\"\",'[2]Coal management '!G137)","v":"Safety"},{"$f":"IF('[2]Coal management '!A137=\"\",\"\",'[2]Coal management '!L137)","v":"Daily"},{"$f":"IF('[2]Coal management '!A137=\"\",\"\",'[2]Coal management '!M137)","v":"Temporary disability\nDislocation, fracture"},{"$f":"IF('[2]Coal management '!A137=\"\",\"\",'[2]Coal management '!N137)","v":"Warning signs\nHousekeeping\nTraining - cleaning staff\nSafe work methods"},{"$f":"IF('[2]Coal management '!A137=\"\",\"\",'[2]Coal management '!O137)","v":4},{"$f":"IF('[2]Coal management '!A137=\"\",\"\",'[2]Coal management '!P137)","v":"B"},{"$f":"IF('[2]Coal management '!A137=\"\",\"\",'[2]Coal management '!Q137)","v":"III"},{"$f":"IF('[2]Coal management '!A137=\"\",\"\",'[2]Coal management '!T137)","v":" SMAT,  Incident reporting, Medical Surveillance Procedure 32-285, Office Inspection, Tool Box Talks."},{"$f":"IF('[2]Coal management '!A137=\"\",\"\",'[2]Coal management '!U137)","v":"Responsible manager"}]
[{"$f":"IF('[2]Coal management '!A138=\"\",\"\",'[2]Coal management '!A138)","v":"Driving to destination during work hours"},{"$f":"IF('[2]Coal management '!A138=\"\",\"\",'[2]Coal management '!D138)","v":"Exposure to vehicle movement on site"},{"$f":"IF('[2]Coal management '!A138=\"\",\"\",'[2]Coal management '!F138)","v":"Body trauma, contusion, fatality"},{"$f":"IF('[2]Coal management '!A138=\"\",\"\",'[2]Coal management '!G138)","v":"Safety"},{"$f":"IF('[2]Coal management '!A138=\"\",\"\",'[2]Coal management '!L138)","v":"Daily"},{"$f":"IF('[2]Coal management '!A138=\"\",\"\",'[2]Coal management '!M138)","v":"Permanent disability"},{"$f":"IF('[2]Coal management '!A138=\"\",\"\",'[2]Coal management '!N138)","v":"Vehicles - Highly visual colours  \nDesignated driving routes"},{"$f":"IF('[2]Coal management '!A138=\"\",\"\",'[2]Coal management '!O138)","v":4},{"$f":"IF('[2]Coal management '!A138=\"\",\"\",'[2]Coal management '!P138)","v":"A"},{"$f":"IF('[2]Coal management '!A138=\"\",\"\",'[2]Coal management '!Q138)","v":"III"},{"$f":"IF('[2]Coal management '!A138=\"\",\"\",'[2]Coal management '!T138)","v":" SMAT,  Incident reporting, Medical Surveillance Procedure 32-285,Tool Box Talks."},{"$f":"IF('[2]Coal management '!A138=\"\",\"\",'[2]Coal management '!U138)","v":"Responsible manager"}]
[{"$f":"IF('[2]Coal management '!A139=\"\",\"\",'[2]Coal management '!A139)","v":"Going around the work place (going to the toilet, meetings, canteen, park home to park home)"},{"$f":"IF('[2]Coal management '!A139=\"\",\"\",'[2]Coal management '!D139)","v":"Insect bites and bee stings"},{"$f":"IF('[2]Coal management '!A139=\"\",\"\",'[2]Coal management '!F139)","v":"Inflamation and anaphylactic shock"},{"$f":"IF('[2]Coal management '!A139=\"\",\"\",'[2]Coal management '!G139)","v":"Safety"},{"$f":"IF('[2]Coal management '!A139=\"\",\"\",'[2]Coal management '!L139)","v":"Daily"},{"$f":"IF('[2]Coal management '!A139=\"\",\"\",'[2]Coal management '!M139)","v":"Temporary disablement"},{"$f":"IF('[2]Coal management '!A139=\"\",\"\",'[2]Coal management '!N139)","v":"Awareness/communication\nEmergency medical response\nPerson job specifications"},{"$f":"IF('[2]Coal management '!A139=\"\",\"\",'[2]Coal management '!O139)","v":1},{"$f":"IF('[2]Coal management '!A139=\"\",\"\",'[2]Coal management '!P139)","v":"A"},{"$f":"IF('[2]Coal management '!A139=\"\",\"\",'[2]Coal management '!Q139)","v":"IV"},{"$f":"IF('[2]Coal management '!A139=\"\",\"\",'[2]Coal management '!T139)","v":" SMAT,  Incident reporting, Medical Surveillance Procedure 32-285,  Tool Box Talks."},{"$f":"IF('[2]Coal management '!A139=\"\",\"\",'[2]Coal management '!U139)","v":"Responsible manager"}]
[{"$f":"IF('[2]Coal management '!A140=\"\",\"\",'[2]Coal management '!A140)","v":"Going around the work place (going to the toilet, meetings, canteen, park home to park home)"},{"$f":"IF('[2]Coal management '!A140=\"\",\"\",'[2]Coal management '!D140)","v":"Animal (wild cats) and snake bites "},{"$f":"IF('[2]Coal management '!A140=\"\",\"\",'[2]Coal management '!F140)","v":"laceration wounds, viral infections, anaphylactic shock"},{"$f":"IF('[2]Coal management '!A140=\"\",\"\",'[2]Coal management '!G140)","v":"Safety"},{"$f":"IF('[2]Coal management '!A140=\"\",\"\",'[2]Coal management '!L140)","v":"Daily"},{"$f":"IF('[2]Coal management '!A140=\"\",\"\",'[2]Coal management '!M140)","v":"Temporary disablement"},{"$f":"IF('[2]Coal management '!A140=\"\",\"\",'[2]Coal management '!N140)","v":"Awareness/ communication\nVeld dress\nRemove animals\nEmergency medical response"},{"$f":"IF('[2]Coal management '!A140=\"\",\"\",'[2]Coal management '!O140)","v":2},{"$f":"IF('[2]Coal management '!A140=\"\",\"\",'[2]Coal management '!P140)","v":"B"},{"$f":"IF('[2]Coal management '!A140=\"\",\"\",'[2]Coal management '!Q140)","v":"IV"},{"$f":"IF('[2]Coal management '!A140=\"\",\"\",'[2]Coal management '!T140)","v":"  Incident reporting, Medical Surveillance Procedure 32-285, Tool Box Talks."},{"$f":"IF('[2]Coal management '!A140=\"\",\"\",'[2]Coal management '!U140)","v":"Responsible manager"}]
[{"$f":"IF('[2]Coal management '!A141=\"\",\"\",'[2]Coal management '!A141)","v":"Going around the work place (going to the toilet, meetings, canteen, park home to park home)"},{"$f":"IF('[2]Coal management '!A141=\"\",\"\",'[2]Coal management '!D141)","v":"Natural elements (sunlight) and lightening"},{"$f":"IF('[2]Coal management '!A141=\"\",\"\",'[2]Coal management '!F141)","v":"Sun burn"},{"$f":"IF('[2]Coal management '!A141=\"\",\"\",'[2]Coal management '!G141)","v":"Safety"},{"$f":"IF('[2]Coal management '!A141=\"\",\"\",'[2]Coal management '!L141)","v":"Daily"},{"$f":"IF('[2]Coal management '!A141=\"\",\"\",'[2]Coal management '!M141)","v":"Temporary disablement"},{"$f":"IF('[2]Coal management '!A141=\"\",\"\",'[2]Coal management '!N141)","v":"Skin protection\nTraining - Occ health"},{"$f":"IF('[2]Coal management '!A141=\"\",\"\",'[2]Coal management '!O141)","v":2},{"$f":"IF('[2]Coal management '!A141=\"\",\"\",'[2]Coal management '!P141)","v":"B"},{"$f":"IF('[2]Coal management '!A141=\"\",\"\",'[2]Coal management '!Q141)","v":"IV"},{"$f":"IF('[2]Coal management '!A141=\"\",\"\",'[2]Coal management '!T141)","v":" SMAT,  Incident reporting, Medical Surveillance Procedure 32-285, Tool Box Talks."},{"$f":"IF('[2]Coal management '!A141=\"\",\"\",'[2]Coal management '!U141)","v":"Responsible manager"}]
[{"$f":"IF('[2]Coal management '!A142=\"\",\"\",'[2]Coal management '!A142)","v":"conducting normal duties on a daily basis"},{"$f":"IF('[2]Coal management '!A142=\"\",\"\",'[2]Coal management '!D142)","v":" Poor organizational change management"},{"$f":"IF('[2]Coal management '!A142=\"\",\"\",'[2]Coal management '!F142)","v":"Work related stress"},{"$f":"IF('[2]Coal management '!A142=\"\",\"\",'[2]Coal management '!G142)","v":"Health"},{"$f":"IF('[2]Coal management '!A142=\"\",\"\",'[2]Coal management '!L142)","v":"Daily"},{"$f":"IF('[2]Coal management '!A142=\"\",\"\",'[2]Coal management '!M142)","v":"Depresion"},{"$f":"IF('[2]Coal management '!A142=\"\",\"\",'[2]Coal management '!N142)","v":"Making sure changes are communicated openly so everyone\nunderstands the effects they will have.\nMonitoring effects of changes on stress levels so staff have the\nchance to provide feedback."},{"$f":"IF('[2]Coal management '!A142=\"\",\"\",'[2]Coal management '!O142)","v":1},{"$f":"IF('[2]Coal management '!A142=\"\",\"\",'[2]Coal management '!P142)","v":"A"},{"$f":"IF('[2]Coal management '!A142=\"\",\"\",'[2]Coal management '!Q142)","v":"IV"},{"$f":"IF('[2]Coal management '!A142=\"\",\"\",'[2]Coal management '!T142)","v":"work related stress training and awareness, tool box talks, "},{"$f":"IF('[2]Coal management '!A142=\"\",\"\",'[2]Coal management '!U142)","v":"Responsible manager"}]
[{"$f":"IF('[2]Coal management '!A143=\"\",\"\",'[2]Coal management '!A143)","v":"conducting normal duties on a daily basis"},{"$f":"IF('[2]Coal management '!A143=\"\",\"\",'[2]Coal management '!D143)","v":"poor work place relationships"},{"$f":"IF('[2]Coal management '!A143=\"\",\"\",'[2]Coal management '!F143)","v":"Work related stress"},{"$f":"IF('[2]Coal management '!A143=\"\",\"\",'[2]Coal management '!G143)","v":"Health"},{"$f":"IF('[2]Coal management '!A143=\"\",\"\",'[2]Coal management '!L143)","v":"Daily"},{"$f":"IF('[2]Coal management '!A143=\"\",\"\",'[2]Coal management '!M143)","v":"Depresion, headaches, anxiety"},{"$f":"IF('[2]Coal management '!A143=\"\",\"\",'[2]Coal management '!N143)","v":"Training managers in promoting a positive working culture, awareness of code of conduct policy"},{"$f":"IF('[2]Coal management '!A143=\"\",\"\",'[2]Coal management '!O143)","v":2},{"$f":"IF('[2]Coal management '!A143=\"\",\"\",'[2]Coal management '!P143)","v":"B"},{"$f":"IF('[2]Coal management '!A143=\"\",\"\",'[2]Coal management '!Q143)","v":"IV"},{"$f":"IF('[2]Coal management '!A143=\"\",\"\",'[2]Coal management '!T143)","v":"work related stress training and awareness, tool box talks"},{"$f":"IF('[2]Coal management '!A143=\"\",\"\",'[2]Coal management '!U143)","v":"Responsible manager"}]
[{"$f":"IF('[2]Coal management '!A144=\"\",\"\",'[2]Coal management '!A144)","v":"conducting normal duties on a daily basis"},{"$f":"IF('[2]Coal management '!A144=\"\",\"\",'[2]Coal management '!D144)","v":"Job demands"},{"$f":"IF('[2]Coal management '!A144=\"\",\"\",'[2]Coal management '!F144)","v":"Risk of psychosocial injury to staff due to\nworkload pressures, unrealistic work\ndeadlines"},{"$f":"IF('[2]Coal management '!A144=\"\",\"\",'[2]Coal management '!G144)","v":"Health"},{"$f":"IF('[2]Coal management '!A144=\"\",\"\",'[2]Coal management '!L144)","v":"Daily"},{"$f":"IF('[2]Coal management '!A144=\"\",\"\",'[2]Coal management '!M144)","v":"Psychosocial injury"},{"$f":"IF('[2]Coal management '!A144=\"\",\"\",'[2]Coal management '!N144)","v":"Training managers in spotting early signs of stress\nProviding details of counselling services for staff, Jobs are designed to be within the capabilities of employees,People’s skills and abilities are matched to the job demands"},{"$f":"IF('[2]Coal management '!A144=\"\",\"\",'[2]Coal management '!O144)","v":2},{"$f":"IF('[2]Coal management '!A144=\"\",\"\",'[2]Coal management '!P144)","v":"B"},{"$f":"IF('[2]Coal management '!A144=\"\",\"\",'[2]Coal management '!Q144)","v":"IV"},{"$f":"IF('[2]Coal management '!A144=\"\",\"\",'[2]Coal management '!T144)","v":"work related stress training and awareness, tool box talks"},{"$f":"IF('[2]Coal management '!A144=\"\",\"\",'[2]Coal management '!U144)","v":"Responsible manager"}]
[{"$f":"IF('[2]Coal management '!A145=\"\",\"\",'[2]Coal management '!A145)","v":"conducting normal duties on a daily basis"},{"$f":"IF('[2]Coal management '!A145=\"\",\"\",'[2]Coal management '!D145)","v":"poor work place relationships"},{"$f":"IF('[2]Coal management '!A145=\"\",\"\",'[2]Coal management '!F145)","v":"Work related stress"},{"$f":"IF('[2]Coal management '!A145=\"\",\"\",'[2]Coal management '!G145)","v":"Health"},{"$f":"IF('[2]Coal management '!A145=\"\",\"\",'[2]Coal management '!L145)","v":"Daily"},{"$f":"IF('[2]Coal management '!A145=\"\",\"\",'[2]Coal management '!M145)","v":"Depresion, headaches, anxiety"},{"$f":"IF('[2]Coal management '!A145=\"\",\"\",'[2]Coal management '!N145)","v":"Training managers in promoting a positive working culture"},{"$f":"IF('[2]Coal management '!A145=\"\",\"\",'[2]Coal management '!O145)","v":2},{"$f":"IF('[2]Coal management '!A145=\"\",\"\",'[2]Coal management '!P145)","v":"B"},{"$f":"IF('[2]Coal management '!A145=\"\",\"\",'[2]Coal management '!Q145)","v":"IV"},{"$f":"IF('[2]Coal management '!A145=\"\",\"\",'[2]Coal management '!T145)","v":"work related stress training and awareness, tool box talks"},{"$f":"IF('[2]Coal management '!A145=\"\",\"\",'[2]Coal management '!U145)","v":"Responsible manager"}]
[{"$f":"IF('[2]Coal management '!A146=\"\",\"\",'[2]Coal management '!A146)","v":"conducting normal duties on a daily basis"},{"$f":"IF('[2]Coal management '!A146=\"\",\"\",'[2]Coal management '!D146)","v":"Out brake of corona virus"},{"$f":"IF('[2]Coal management '!A146=\"\",\"\",'[2]Coal management '!F146)","v":"ill-health due to the corona virus global outbreak leading to business interruptions"},{"$f":"IF('[2]Coal management '!A146=\"\",\"\",'[2]Coal management '!G146)","v":"Health"},{"$f":"IF('[2]Coal management '!A146=\"\",\"\",'[2]Coal management '!L146)","v":"Daily"},{"$f":"IF('[2]Coal management '!A146=\"\",\"\",'[2]Coal management '!M146)","v":"Panic and fear ,Loss of productivity due to staff remaining home ( unavailability of critical Staff), Potential long illness and deaths (direct /indirect impact  on Eskom employees or families), Stigmatization, Financial impact"},{"$f":"IF('[2]Coal management '!A146=\"\",\"\",'[2]Coal management '!N146)","v":"Continuous Information sharing / awareness , Prohibition of large scale engagements, All international business travel (irrespective of the destination) is prohibited, Deactivation of biometric,  suspension of alcohol testing, Practice good personal hygiene"},{"$f":"IF('[2]Coal management '!A146=\"\",\"\",'[2]Coal management '!O146)","v":1},{"$f":"IF('[2]Coal management '!A146=\"\",\"\",'[2]Coal management '!P146)","v":"A"},{"$f":"IF('[2]Coal management '!A146=\"\",\"\",'[2]Coal management '!Q146)","v":"IV"},{"$f":"IF('[2]Coal management '!A146=\"\",\"\",'[2]Coal management '!T146)","v":"Continuous Information sharing / awareness, EAP, COVID-19 awareness discussion included as standard in all meeting agendas."},{"$f":"IF('[2]Coal management '!A146=\"\",\"\",'[2]Coal management '!U146)","v":"Responsible manager"}]
[{"$f":"IF('[2]Coal management '!A147=\"\",\"\",'[2]Coal management '!A147)","v":""},{"$f":"IF('[2]Coal management '!A147=\"\",\"\",'[2]Coal management '!D147)","v":""},{"$f":"IF('[2]Coal management '!A147=\"\",\"\",'[2]Coal management '!F147)","v":""},{"$f":"IF('[2]Coal management '!A147=\"\",\"\",'[2]Coal management '!G147)","v":""},{"$f":"IF('[2]Coal management '!A147=\"\",\"\",'[2]Coal management '!L147)","v":""},{"$f":"IF('[2]Coal management '!A147=\"\",\"\",'[2]Coal management '!M147)","v":""},{"$f":"IF('[2]Coal management '!A147=\"\",\"\",'[2]Coal management '!N147)","v":""},{"$f":"IF('[2]Coal management '!A147=\"\",\"\",'[2]Coal management '!O147)","v":""},{"$f":"IF('[2]Coal management '!A147=\"\",\"\",'[2]Coal management '!P147)","v":""},{"$f":"IF('[2]Coal management '!A147=\"\",\"\",'[2]Coal management '!Q147)","v":""},{"$f":"IF('[2]Coal management '!A147=\"\",\"\",'[2]Coal management '!T147)","v":""},{"$f":"IF('[2]Coal management '!A147=\"\",\"\",'[2]Coal management '!U147)","v":""}]
[{"$f":"IF('[2]Coal management '!A148=\"\",\"\",'[2]Coal management '!A148)","v":""},{"$f":"IF('[2]Coal management '!A148=\"\",\"\",'[2]Coal management '!D148)","v":""},{"$f":"IF('[2]Coal management '!A148=\"\",\"\",'[2]Coal management '!F148)","v":""},{"$f":"IF('[2]Coal management '!A148=\"\",\"\",'[2]Coal management '!G148)","v":""},{"$f":"IF('[2]Coal management '!A148=\"\",\"\",'[2]Coal management '!L148)","v":""},{"$f":"IF('[2]Coal management '!A148=\"\",\"\",'[2]Coal management '!M148)","v":""},{"$f":"IF('[2]Coal management '!A148=\"\",\"\",'[2]Coal management '!N148)","v":""},{"$f":"IF('[2]Coal management '!A148=\"\",\"\",'[2]Coal management '!O148)","v":""},{"$f":"IF('[2]Coal management '!A148=\"\",\"\",'[2]Coal management '!P148)","v":""},{"$f":"IF('[2]Coal management '!A148=\"\",\"\",'[2]Coal management '!Q148)","v":""},{"$f":"IF('[2]Coal management '!A148=\"\",\"\",'[2]Coal management '!T148)","v":""},{"$f":"IF('[2]Coal management '!A148=\"\",\"\",'[2]Coal management '!U148)","v":""}]
[{"$f":"IF('[2]Coal management '!A149=\"\",\"\",'[2]Coal management '!A149)","v":""},{"$f":"IF('[2]Coal management '!A149=\"\",\"\",'[2]Coal management '!D149)","v":""},{"$f":"IF('[2]Coal management '!A149=\"\",\"\",'[2]Coal management '!F149)","v":""},{"$f":"IF('[2]Coal management '!A149=\"\",\"\",'[2]Coal management '!G149)","v":""},{"$f":"IF('[2]Coal management '!A149=\"\",\"\",'[2]Coal management '!L149)","v":""},{"$f":"IF('[2]Coal management '!A149=\"\",\"\",'[2]Coal management '!M149)","v":""},{"$f":"IF('[2]Coal management '!A149=\"\",\"\",'[2]Coal management '!N149)","v":""},{"$f":"IF('[2]Coal management '!A149=\"\",\"\",'[2]Coal management '!O149)","v":""},{"$f":"IF('[2]Coal management '!A149=\"\",\"\",'[2]Coal management '!P149)","v":""},{"$f":"IF('[2]Coal management '!A149=\"\",\"\",'[2]Coal management '!Q149)","v":""},{"$f":"IF('[2]Coal management '!A149=\"\",\"\",'[2]Coal management '!T149)","v":""},{"$f":"IF('[2]Coal management '!A149=\"\",\"\",'[2]Coal management '!U149)","v":""}]
[{"$f":"IF('[2]Coal management '!A150=\"\",\"\",'[2]Coal management '!A150)","v":""},{"$f":"IF('[2]Coal management '!A150=\"\",\"\",'[2]Coal management '!D150)","v":""},{"$f":"IF('[2]Coal management '!A150=\"\",\"\",'[2]Coal management '!F150)","v":""},{"$f":"IF('[2]Coal management '!A150=\"\",\"\",'[2]Coal management '!G150)","v":""},{"$f":"IF('[2]Coal management '!A150=\"\",\"\",'[2]Coal management '!L150)","v":""},{"$f":"IF('[2]Coal management '!A150=\"\",\"\",'[2]Coal management '!M150)","v":""},{"$f":"IF('[2]Coal management '!A150=\"\",\"\",'[2]Coal management '!N150)","v":""},{"$f":"IF('[2]Coal management '!A150=\"\",\"\",'[2]Coal management '!O150)","v":""},{"$f":"IF('[2]Coal management '!A150=\"\",\"\",'[2]Coal management '!P150)","v":""},{"$f":"IF('[2]Coal management '!A150=\"\",\"\",'[2]Coal management '!Q150)","v":""},{"$f":"IF('[2]Coal management '!A150=\"\",\"\",'[2]Coal management '!T150)","v":""},{"$f":"IF('[2]Coal management '!A150=\"\",\"\",'[2]Coal management '!U150)","v":""}]
[{"$f":"IF('[2]Coal management '!A151=\"\",\"\",'[2]Coal management '!A151)","v":""},{"$f":"IF('[2]Coal management '!A151=\"\",\"\",'[2]Coal management '!D151)","v":""},{"$f":"IF('[2]Coal management '!A151=\"\",\"\",'[2]Coal management '!F151)","v":""},{"$f":"IF('[2]Coal management '!A151=\"\",\"\",'[2]Coal management '!G151)","v":""},{"$f":"IF('[2]Coal management '!A151=\"\",\"\",'[2]Coal management '!L151)","v":""},{"$f":"IF('[2]Coal management '!A151=\"\",\"\",'[2]Coal management '!M151)","v":""},{"$f":"IF('[2]Coal management '!A151=\"\",\"\",'[2]Coal management '!N151)","v":""},{"$f":"IF('[2]Coal management '!A151=\"\",\"\",'[2]Coal management '!O151)","v":""},{"$f":"IF('[2]Coal management '!A151=\"\",\"\",'[2]Coal management '!P151)","v":""},{"$f":"IF('[2]Coal management '!A151=\"\",\"\",'[2]Coal management '!Q151)","v":""},{"$f":"IF('[2]Coal management '!A151=\"\",\"\",'[2]Coal management '!T151)","v":""},{"$f":"IF('[2]Coal management '!A151=\"\",\"\",'[2]Coal management '!U151)","v":""}]
[{"$f":"IF('[2]Coal management '!A152=\"\",\"\",'[2]Coal management '!A152)","v":""},{"$f":"IF('[2]Coal management '!A152=\"\",\"\",'[2]Coal management '!D152)","v":""},{"$f":"IF('[2]Coal management '!A152=\"\",\"\",'[2]Coal management '!F152)","v":""},{"$f":"IF('[2]Coal management '!A152=\"\",\"\",'[2]Coal management '!G152)","v":""},{"$f":"IF('[2]Coal management '!A152=\"\",\"\",'[2]Coal management '!L152)","v":""},{"$f":"IF('[2]Coal management '!A152=\"\",\"\",'[2]Coal management '!M152)","v":""},{"$f":"IF('[2]Coal management '!A152=\"\",\"\",'[2]Coal management '!N152)","v":""},{"$f":"IF('[2]Coal management '!A152=\"\",\"\",'[2]Coal management '!O152)","v":""},{"$f":"IF('[2]Coal management '!A152=\"\",\"\",'[2]Coal management '!P152)","v":""},{"$f":"IF('[2]Coal management '!A152=\"\",\"\",'[2]Coal management '!Q152)","v":""},{"$f":"IF('[2]Coal management '!A152=\"\",\"\",'[2]Coal management '!T152)","v":""},{"$f":"IF('[2]Coal management '!A152=\"\",\"\",'[2]Coal management '!U152)","v":""}]
[{"$f":"IF('[2]Coal management '!A153=\"\",\"\",'[2]Coal management '!A153)","v":""},{"$f":"IF('[2]Coal management '!A153=\"\",\"\",'[2]Coal management '!D153)","v":""},{"$f":"IF('[2]Coal management '!A153=\"\",\"\",'[2]Coal management '!F153)","v":""},{"$f":"IF('[2]Coal management '!A153=\"\",\"\",'[2]Coal management '!G153)","v":""},{"$f":"IF('[2]Coal management '!A153=\"\",\"\",'[2]Coal management '!L153)","v":""},{"$f":"IF('[2]Coal management '!A153=\"\",\"\",'[2]Coal management '!M153)","v":""},{"$f":"IF('[2]Coal management '!A153=\"\",\"\",'[2]Coal management '!N153)","v":""},{"$f":"IF('[2]Coal management '!A153=\"\",\"\",'[2]Coal management '!O153)","v":""},{"$f":"IF('[2]Coal management '!A153=\"\",\"\",'[2]Coal management '!P153)","v":""},{"$f":"IF('[2]Coal management '!A153=\"\",\"\",'[2]Coal management '!Q153)","v":""},{"$f":"IF('[2]Coal management '!A153=\"\",\"\",'[2]Coal management '!T153)","v":""},{"$f":"IF('[2]Coal management '!A153=\"\",\"\",'[2]Coal management '!U153)","v":""}]
[{"$f":"IF('[2]Coal management '!A154=\"\",\"\",'[2]Coal management '!A154)","v":""},{"$f":"IF('[2]Coal management '!A154=\"\",\"\",'[2]Coal management '!D154)","v":""},{"$f":"IF('[2]Coal management '!A154=\"\",\"\",'[2]Coal management '!F154)","v":""},{"$f":"IF('[2]Coal management '!A154=\"\",\"\",'[2]Coal management '!G154)","v":""},{"$f":"IF('[2]Coal management '!A154=\"\",\"\",'[2]Coal management '!L154)","v":""},{"$f":"IF('[2]Coal management '!A154=\"\",\"\",'[2]Coal management '!M154)","v":""},{"$f":"IF('[2]Coal management '!A154=\"\",\"\",'[2]Coal management '!N154)","v":""},{"$f":"IF('[2]Coal management '!A154=\"\",\"\",'[2]Coal management '!O154)","v":""},{"$f":"IF('[2]Coal management '!A154=\"\",\"\",'[2]Coal management '!P154)","v":""},{"$f":"IF('[2]Coal management '!A154=\"\",\"\",'[2]Coal management '!Q154)","v":""},{"$f":"IF('[2]Coal management '!A154=\"\",\"\",'[2]Coal management '!T154)","v":""},{"$f":"IF('[2]Coal management '!A154=\"\",\"\",'[2]Coal management '!U154)","v":""}]
[{"$f":"IF('[2]Coal management '!A155=\"\",\"\",'[2]Coal management '!A155)","v":""},{"$f":"IF('[2]Coal management '!A155=\"\",\"\",'[2]Coal management '!D155)","v":""},{"$f":"IF('[2]Coal management '!A155=\"\",\"\",'[2]Coal management '!F155)","v":""},{"$f":"IF('[2]Coal management '!A155=\"\",\"\",'[2]Coal management '!G155)","v":""},{"$f":"IF('[2]Coal management '!A155=\"\",\"\",'[2]Coal management '!L155)","v":""},{"$f":"IF('[2]Coal management '!A155=\"\",\"\",'[2]Coal management '!M155)","v":""},{"$f":"IF('[2]Coal management '!A155=\"\",\"\",'[2]Coal management '!N155)","v":""},{"$f":"IF('[2]Coal management '!A155=\"\",\"\",'[2]Coal management '!O155)","v":""},{"$f":"IF('[2]Coal management '!A155=\"\",\"\",'[2]Coal management '!P155)","v":""},{"$f":"IF('[2]Coal management '!A155=\"\",\"\",'[2]Coal management '!Q155)","v":""},{"$f":"IF('[2]Coal management '!A155=\"\",\"\",'[2]Coal management '!T155)","v":""},{"$f":"IF('[2]Coal management '!A155=\"\",\"\",'[2]Coal management '!U155)","v":""}]
[{"$f":"IF('[2]Coal management '!A156=\"\",\"\",'[2]Coal management '!A156)","v":""},{"$f":"IF('[2]Coal management '!A156=\"\",\"\",'[2]Coal management '!D156)","v":""},{"$f":"IF('[2]Coal management '!A156=\"\",\"\",'[2]Coal management '!F156)","v":""},{"$f":"IF('[2]Coal management '!A156=\"\",\"\",'[2]Coal management '!G156)","v":""},{"$f":"IF('[2]Coal management '!A156=\"\",\"\",'[2]Coal management '!L156)","v":""},{"$f":"IF('[2]Coal management '!A156=\"\",\"\",'[2]Coal management '!M156)","v":""},{"$f":"IF('[2]Coal management '!A156=\"\",\"\",'[2]Coal management '!N156)","v":""},{"$f":"IF('[2]Coal management '!A156=\"\",\"\",'[2]Coal management '!O156)","v":""},{"$f":"IF('[2]Coal management '!A156=\"\",\"\",'[2]Coal management '!P156)","v":""},{"$f":"IF('[2]Coal management '!A156=\"\",\"\",'[2]Coal management '!Q156)","v":""},{"$f":"IF('[2]Coal management '!A156=\"\",\"\",'[2]Coal management '!T156)","v":""},{"$f":"IF('[2]Coal management '!A156=\"\",\"\",'[2]Coal management '!U156)","v":""}]
[{"$f":"IF('[2]Coal management '!A157=\"\",\"\",'[2]Coal management '!A157)","v":""},{"$f":"IF('[2]Coal management '!A157=\"\",\"\",'[2]Coal management '!D157)","v":""},{"$f":"IF('[2]Coal management '!A157=\"\",\"\",'[2]Coal management '!F157)","v":""},{"$f":"IF('[2]Coal management '!A157=\"\",\"\",'[2]Coal management '!G157)","v":""},{"$f":"IF('[2]Coal management '!A157=\"\",\"\",'[2]Coal management '!L157)","v":""},{"$f":"IF('[2]Coal management '!A157=\"\",\"\",'[2]Coal management '!M157)","v":""},{"$f":"IF('[2]Coal management '!A157=\"\",\"\",'[2]Coal management '!N157)","v":""},{"$f":"IF('[2]Coal management '!A157=\"\",\"\",'[2]Coal management '!O157)","v":""},{"$f":"IF('[2]Coal management '!A157=\"\",\"\",'[2]Coal management '!P157)","v":""},{"$f":"IF('[2]Coal management '!A157=\"\",\"\",'[2]Coal management '!Q157)","v":""},{"$f":"IF('[2]Coal management '!A157=\"\",\"\",'[2]Coal management '!T157)","v":""},{"$f":"IF('[2]Coal management '!A157=\"\",\"\",'[2]Coal management '!U157)","v":""}]
[{"$f":"IF('[2]Coal management '!A158=\"\",\"\",'[2]Coal management '!A158)","v":""},{"$f":"IF('[2]Coal management '!A158=\"\",\"\",'[2]Coal management '!D158)","v":""},{"$f":"IF('[2]Coal management '!A158=\"\",\"\",'[2]Coal management '!F158)","v":""},{"$f":"IF('[2]Coal management '!A158=\"\",\"\",'[2]Coal management '!G158)","v":""},{"$f":"IF('[2]Coal management '!A158=\"\",\"\",'[2]Coal management '!L158)","v":""},{"$f":"IF('[2]Coal management '!A158=\"\",\"\",'[2]Coal management '!M158)","v":""},{"$f":"IF('[2]Coal management '!A158=\"\",\"\",'[2]Coal management '!N158)","v":""},{"$f":"IF('[2]Coal management '!A158=\"\",\"\",'[2]Coal management '!O158)","v":""},{"$f":"IF('[2]Coal management '!A158=\"\",\"\",'[2]Coal management '!P158)","v":""},{"$f":"IF('[2]Coal management '!A158=\"\",\"\",'[2]Coal management '!Q158)","v":""},{"$f":"IF('[2]Coal management '!A158=\"\",\"\",'[2]Coal management '!T158)","v":""},{"$f":"IF('[2]Coal management '!A158=\"\",\"\",'[2]Coal management '!U158)","v":""}]
[{"$f":"IF('[2]Coal management '!A159=\"\",\"\",'[2]Coal management '!A159)","v":""},{"$f":"IF('[2]Coal management '!A159=\"\",\"\",'[2]Coal management '!D159)","v":""},{"$f":"IF('[2]Coal management '!A159=\"\",\"\",'[2]Coal management '!F159)","v":""},{"$f":"IF('[2]Coal management '!A159=\"\",\"\",'[2]Coal management '!G159)","v":""},{"$f":"IF('[2]Coal management '!A159=\"\",\"\",'[2]Coal management '!L159)","v":""},{"$f":"IF('[2]Coal management '!A159=\"\",\"\",'[2]Coal management '!M159)","v":""},{"$f":"IF('[2]Coal management '!A159=\"\",\"\",'[2]Coal management '!N159)","v":""},{"$f":"IF('[2]Coal management '!A159=\"\",\"\",'[2]Coal management '!O159)","v":""},{"$f":"IF('[2]Coal management '!A159=\"\",\"\",'[2]Coal management '!P159)","v":""},{"$f":"IF('[2]Coal management '!A159=\"\",\"\",'[2]Coal management '!Q159)","v":""},{"$f":"IF('[2]Coal management '!A159=\"\",\"\",'[2]Coal management '!T159)","v":""},{"$f":"IF('[2]Coal management '!A159=\"\",\"\",'[2]Coal management '!U159)","v":""}]
[{"$f":"IF('[2]Coal management '!A160=\"\",\"\",'[2]Coal management '!A160)","v":""},{"$f":"IF('[2]Coal management '!A160=\"\",\"\",'[2]Coal management '!D160)","v":""},{"$f":"IF('[2]Coal management '!A160=\"\",\"\",'[2]Coal management '!F160)","v":""},{"$f":"IF('[2]Coal management '!A160=\"\",\"\",'[2]Coal management '!G160)","v":""},{"$f":"IF('[2]Coal management '!A160=\"\",\"\",'[2]Coal management '!L160)","v":""},{"$f":"IF('[2]Coal management '!A160=\"\",\"\",'[2]Coal management '!M160)","v":""},{"$f":"IF('[2]Coal management '!A160=\"\",\"\",'[2]Coal management '!N160)","v":""},{"$f":"IF('[2]Coal management '!A160=\"\",\"\",'[2]Coal management '!O160)","v":""},{"$f":"IF('[2]Coal management '!A160=\"\",\"\",'[2]Coal management '!P160)","v":""},{"$f":"IF('[2]Coal management '!A160=\"\",\"\",'[2]Coal management '!Q160)","v":""},{"$f":"IF('[2]Coal management '!A160=\"\",\"\",'[2]Coal management '!T160)","v":""},{"$f":"IF('[2]Coal management '!A160=\"\",\"\",'[2]Coal management '!U160)","v":""}]
[{"$f":"IF('[2]Coal management '!A161=\"\",\"\",'[2]Coal management '!A161)","v":""},{"$f":"IF('[2]Coal management '!A161=\"\",\"\",'[2]Coal management '!D161)","v":""},{"$f":"IF('[2]Coal management '!A161=\"\",\"\",'[2]Coal management '!F161)","v":""},{"$f":"IF('[2]Coal management '!A161=\"\",\"\",'[2]Coal management '!G161)","v":""},{"$f":"IF('[2]Coal management '!A161=\"\",\"\",'[2]Coal management '!L161)","v":""},{"$f":"IF('[2]Coal management '!A161=\"\",\"\",'[2]Coal management '!M161)","v":""},{"$f":"IF('[2]Coal management '!A161=\"\",\"\",'[2]Coal management '!N161)","v":""},{"$f":"IF('[2]Coal management '!A161=\"\",\"\",'[2]Coal management '!O161)","v":""},{"$f":"IF('[2]Coal management '!A161=\"\",\"\",'[2]Coal management '!P161)","v":""},{"$f":"IF('[2]Coal management '!A161=\"\",\"\",'[2]Coal management '!Q161)","v":""},{"$f":"IF('[2]Coal management '!A161=\"\",\"\",'[2]Coal management '!T161)","v":""},{"$f":"IF('[2]Coal management '!A161=\"\",\"\",'[2]Coal management '!U161)","v":""}]
[{"$f":"IF('[2]Coal management '!A162=\"\",\"\",'[2]Coal management '!A162)","v":""},{"$f":"IF('[2]Coal management '!A162=\"\",\"\",'[2]Coal management '!D162)","v":""},{"$f":"IF('[2]Coal management '!A162=\"\",\"\",'[2]Coal management '!F162)","v":""},{"$f":"IF('[2]Coal management '!A162=\"\",\"\",'[2]Coal management '!G162)","v":""},{"$f":"IF('[2]Coal management '!A162=\"\",\"\",'[2]Coal management '!L162)","v":""},{"$f":"IF('[2]Coal management '!A162=\"\",\"\",'[2]Coal management '!M162)","v":""},{"$f":"IF('[2]Coal management '!A162=\"\",\"\",'[2]Coal management '!N162)","v":""},{"$f":"IF('[2]Coal management '!A162=\"\",\"\",'[2]Coal management '!O162)","v":""},{"$f":"IF('[2]Coal management '!A162=\"\",\"\",'[2]Coal management '!P162)","v":""},{"$f":"IF('[2]Coal management '!A162=\"\",\"\",'[2]Coal management '!Q162)","v":""},{"$f":"IF('[2]Coal management '!A162=\"\",\"\",'[2]Coal management '!T162)","v":""},{"$f":"IF('[2]Coal management '!A162=\"\",\"\",'[2]Coal management '!U162)","v":""}]
[{"$f":"IF('[2]Coal management '!A163=\"\",\"\",'[2]Coal management '!A163)","v":""},{"$f":"IF('[2]Coal management '!A163=\"\",\"\",'[2]Coal management '!D163)","v":""},{"$f":"IF('[2]Coal management '!A163=\"\",\"\",'[2]Coal management '!F163)","v":""},{"$f":"IF('[2]Coal management '!A163=\"\",\"\",'[2]Coal management '!G163)","v":""},{"$f":"IF('[2]Coal management '!A163=\"\",\"\",'[2]Coal management '!L163)","v":""},{"$f":"IF('[2]Coal management '!A163=\"\",\"\",'[2]Coal management '!M163)","v":""},{"$f":"IF('[2]Coal management '!A163=\"\",\"\",'[2]Coal management '!N163)","v":""},{"$f":"IF('[2]Coal management '!A163=\"\",\"\",'[2]Coal management '!O163)","v":""},{"$f":"IF('[2]Coal management '!A163=\"\",\"\",'[2]Coal management '!P163)","v":""},{"$f":"IF('[2]Coal management '!A163=\"\",\"\",'[2]Coal management '!Q163)","v":""},{"$f":"IF('[2]Coal management '!A163=\"\",\"\",'[2]Coal management '!T163)","v":""},{"$f":"IF('[2]Coal management '!A163=\"\",\"\",'[2]Coal management '!U163)","v":""}]
[{"$f":"IF('[2]Coal management '!A164=\"\",\"\",'[2]Coal management '!A164)","v":""},{"$f":"IF('[2]Coal management '!A164=\"\",\"\",'[2]Coal management '!D164)","v":""},{"$f":"IF('[2]Coal management '!A164=\"\",\"\",'[2]Coal management '!F164)","v":""},{"$f":"IF('[2]Coal management '!A164=\"\",\"\",'[2]Coal management '!G164)","v":""},{"$f":"IF('[2]Coal management '!A164=\"\",\"\",'[2]Coal management '!L164)","v":""},{"$f":"IF('[2]Coal management '!A164=\"\",\"\",'[2]Coal management '!M164)","v":""},{"$f":"IF('[2]Coal management '!A164=\"\",\"\",'[2]Coal management '!N164)","v":""},{"$f":"IF('[2]Coal management '!A164=\"\",\"\",'[2]Coal management '!O164)","v":""},{"$f":"IF('[2]Coal management '!A164=\"\",\"\",'[2]Coal management '!P164)","v":""},{"$f":"IF('[2]Coal management '!A164=\"\",\"\",'[2]Coal management '!Q164)","v":""},{"$f":"IF('[2]Coal management '!A164=\"\",\"\",'[2]Coal management '!T164)","v":""},{"$f":"IF('[2]Coal management '!A164=\"\",\"\",'[2]Coal management '!U164)","v":""}]
[{"$f":"IF('[2]Coal management '!A165=\"\",\"\",'[2]Coal management '!A165)","v":""},{"$f":"IF('[2]Coal management '!A165=\"\",\"\",'[2]Coal management '!D165)","v":""},{"$f":"IF('[2]Coal management '!A165=\"\",\"\",'[2]Coal management '!F165)","v":""},{"$f":"IF('[2]Coal management '!A165=\"\",\"\",'[2]Coal management '!G165)","v":""},{"$f":"IF('[2]Coal management '!A165=\"\",\"\",'[2]Coal management '!L165)","v":""},{"$f":"IF('[2]Coal management '!A165=\"\",\"\",'[2]Coal management '!M165)","v":""},{"$f":"IF('[2]Coal management '!A165=\"\",\"\",'[2]Coal management '!N165)","v":""},{"$f":"IF('[2]Coal management '!A165=\"\",\"\",'[2]Coal management '!O165)","v":""},{"$f":"IF('[2]Coal management '!A165=\"\",\"\",'[2]Coal management '!P165)","v":""},{"$f":"IF('[2]Coal management '!A165=\"\",\"\",'[2]Coal management '!Q165)","v":""},{"$f":"IF('[2]Coal management '!A165=\"\",\"\",'[2]Coal management '!T165)","v":""},{"$f":"IF('[2]Coal management '!A165=\"\",\"\",'[2]Coal management '!U165)","v":""}]
[{"$f":"IF('[2]Coal management '!A166=\"\",\"\",'[2]Coal management '!A166)","v":""},{"$f":"IF('[2]Coal management '!A166=\"\",\"\",'[2]Coal management '!D166)","v":""},{"$f":"IF('[2]Coal management '!A166=\"\",\"\",'[2]Coal management '!F166)","v":""},{"$f":"IF('[2]Coal management '!A166=\"\",\"\",'[2]Coal management '!G166)","v":""},{"$f":"IF('[2]Coal management '!A166=\"\",\"\",'[2]Coal management '!L166)","v":""},{"$f":"IF('[2]Coal management '!A166=\"\",\"\",'[2]Coal management '!M166)","v":""},{"$f":"IF('[2]Coal management '!A166=\"\",\"\",'[2]Coal management '!N166)","v":""},{"$f":"IF('[2]Coal management '!A166=\"\",\"\",'[2]Coal management '!O166)","v":""},{"$f":"IF('[2]Coal management '!A166=\"\",\"\",'[2]Coal management '!P166)","v":""},{"$f":"IF('[2]Coal management '!A166=\"\",\"\",'[2]Coal management '!Q166)","v":""},{"$f":"IF('[2]Coal management '!A166=\"\",\"\",'[2]Coal management '!T166)","v":""},{"$f":"IF('[2]Coal management '!A166=\"\",\"\",'[2]Coal management '!U166)","v":""}]
[{"$f":"IF('[2]Coal management '!A167=\"\",\"\",'[2]Coal management '!A167)","v":""},{"$f":"IF('[2]Coal management '!A167=\"\",\"\",'[2]Coal management '!D167)","v":""},{"$f":"IF('[2]Coal management '!A167=\"\",\"\",'[2]Coal management '!F167)","v":""},{"$f":"IF('[2]Coal management '!A167=\"\",\"\",'[2]Coal management '!G167)","v":""},{"$f":"IF('[2]Coal management '!A167=\"\",\"\",'[2]Coal management '!L167)","v":""},{"$f":"IF('[2]Coal management '!A167=\"\",\"\",'[2]Coal management '!M167)","v":""},{"$f":"IF('[2]Coal management '!A167=\"\",\"\",'[2]Coal management '!N167)","v":""},{"$f":"IF('[2]Coal management '!A167=\"\",\"\",'[2]Coal management '!O167)","v":""},{"$f":"IF('[2]Coal management '!A167=\"\",\"\",'[2]Coal management '!P167)","v":""},{"$f":"IF('[2]Coal management '!A167=\"\",\"\",'[2]Coal management '!Q167)","v":""},{"$f":"IF('[2]Coal management '!A167=\"\",\"\",'[2]Coal management '!T167)","v":""},{"$f":"IF('[2]Coal management '!A167=\"\",\"\",'[2]Coal management '!U167)","v":""}]
[{"$f":"IF(#REF!=\"\",\"\",#REF!)","v":{"$error":"#REF!"}},{"$f":"IF(#REF!=\"\",\"\",#REF!)","v":{"$error":"#REF!"}},{"$f":"IF(#REF!=\"\",\"\",#REF!)","v":{"$error":"#REF!"}},null,{"$f":"IF(#REF!=\"\",\"\",#REF!)","v":{"$error":"#REF!"}},{"$f":"IF(#REF!=\"\",\"\",#REF!)","v":{"$error":"#REF!"}},{"$nulls":4},{"$f":"IF(#REF!=\"\",\"\",#REF!)","v":{"$error":"#REF!"}},{"$f":"IF(#REF!=\"\",\"\",#REF!)","v":{"$error":"#REF!"}}]
[{"$f":"IF(#REF!=\"\",\"\",#REF!)","v":{"$error":"#REF!"}},{"$f":"IF(#REF!=\"\",\"\",#REF!)","v":{"$error":"#REF!"}},{"$f":"IF(#REF!=\"\",\"\",#REF!)","v":{"$error":"#REF!"}},null,{"$f":"IF(#REF!=\"\",\"\",#REF!)","v":{"$error":"#REF!"}},{"$f":"IF(#REF!=\"\",\"\",#REF!)","v":{"$error":"#REF!"}},{"$nulls":4},{"$f":"IF(#REF!=\"\",\"\",#REF!)","v":{"$error":"#REF!"}},{"$f":"IF(#REF!=\"\",\"\",#REF!)","v":{"$error":"#REF!"}}]
[{"$f":"IF(#REF!=\"\",\"\",#REF!)","v":{"$error":"#REF!"}},{"$f":"IF(#REF!=\"\",\"\",#REF!)","v":{"$error":"#REF!"}},{"$f":"IF(#REF!=\"\",\"\",#REF!)","v":{"$error":"#REF!"}},null,{"$f":"IF(#REF!=\"\",\"\",#REF!)","v":{"$error":"#REF!"}},{"$f":"IF(#REF!=\"\",\"\",#REF!)","v":{"$error":"#REF!"}},{"$nulls":4},{"$f":"IF(#REF!=\"\",\"\",#REF!)","v":{"$error":"#REF!"}},{"$f":"IF(#REF!=\"\",\"\",#REF!)","v":{"$error":"#REF!"}}]
[{"$f":"IF(#REF!=\"\",\"\",#REF!)","v":{"$error":"#REF!"}},{"$f":"IF(#REF!=\"\",\"\",#REF!)","v":{"$error":"#REF!"}},{"$f":"IF(#REF!=\"\",\"\",#REF!)","v":{"$error":"#REF!"}},null,{"$f":"IF(#REF!=\"\",\"\",#REF!)","v":{"$error":"#REF!"}},{"$f":"IF(#REF!=\"\",\"\",#REF!)","v":{"$error":"#REF!"}},{"$nulls":4},{"$f":"IF(#REF!=\"\",\"\",#REF!)","v":{"$error":"#REF!"}},{"$f":"IF(#REF!=\"\",\"\",#REF!)","v":{"$error":"#REF!"}}]
[{"$f":"IF(#REF!=\"\",\"\",#REF!)","v":{"$error":"#REF!"}},{"$f":"IF(#REF!=\"\",\"\",#REF!)","v":{"$error":"#REF!"}},{"$f":"IF(#REF!=\"\",\"\",#REF!)","v":{"$error":"#REF!"}},null,{"$f":"IF(#REF!=\"\",\"\",#REF!)","v":{"$error":"#REF!"}},{"$f":"IF(#REF!=\"\",\"\",#REF!)","v":{"$error":"#REF!"}},{"$nulls":4},{"$f":"IF(#REF!=\"\",\"\",#REF!)","v":{"$error":"#REF!"}},{"$f":"IF(#REF!=\"\",\"\",#REF!)","v":{"$error":"#REF!"}}]
[{"$f":"IF(#REF!=\"\",\"\",#REF!)","v":{"$error":"#REF!"}},{"$f":"IF(#REF!=\"\",\"\",#REF!)","v":{"$error":"#REF!"}},{"$f":"IF(#REF!=\"\",\"\",#REF!)","v":{"$error":"#REF!"}},null,{"$f":"IF(#REF!=\"\",\"\",#REF!)","v":{"$error":"#REF!"}},{"$f":"IF(#REF!=\"\",\"\",#REF!)","v":{"$error":"#REF!"}},{"$nulls":4},{"$f":"IF(#REF!=\"\",\"\",#REF!)","v":{"$error":"#REF!"}},{"$f":"IF(#REF!=\"\",\"\",#REF!)","v":{"$error":"#REF!"}}]
[{"$f":"IF(#REF!=\"\",\"\",#REF!)","v":{"$error":"#REF!"}},{"$f":"IF(#REF!=\"\",\"\",#REF!)","v":{"$error":"#REF!"}},{"$f":"IF(#REF!=\"\",\"\",#REF!)","v":{"$error":"#REF!"}},null,{"$f":"IF(#REF!=\"\",\"\",#REF!)","v":{"$error":"#REF!"}},{"$f":"IF(#REF!=\"\",\"\",#REF!)","v":{"$error":"#REF!"}},{"$nulls":4},{"$f":"IF(#REF!=\"\",\"\",#REF!)","v":{"$error":"#REF!"}},{"$f":"IF(#REF!=\"\",\"\",#REF!)","v":{"$error":"#REF!"}}]

{"sheet":"Consequence rating","index":1,"n_rows":10,"n_cols":22,"rows_kept":10,"merged":[[8,7,13,7],[15,9,15,13]]}
[]
[null,null,"Consequence criteria "]
[null,"Consequence rating","Description",{"$nulls":13},"R","Safety",1,"A","Fully effective","I"]
[null,null,"Health and Safety",{"$nulls":13},"N","Health",2,"B","Mostly effective","II"]
[null,1,"No injuries or health effects(near misses)",{"$nulls":15},3,"C","Mostly ineffective","III"]
[null,2,"First-aid treatment case,  and temporary discomfort case",{"$nulls":15},4,"D","None","IV"]
[null,3,"Medical treatment case; occupational disease with reversible/non-permanent effect",{"$nulls":15},5,"E"]
[null,4,"Lost Time Injury. Irreversible health effects/occupational disease with permanent consequence ",{"$nulls":15},6]
[null,5,"Fatality or life threatening health effects"]
[null,6,"Multiple fatalities "]

{"sheet":"Likelihood rating","index":2,"n_rows":18,"n_cols":6,"rows_kept":18,"merged":[[1,0,1,5],[2,4,2,5],[4,1,6,1],[4,2,6,2],[4,4,6,4],[4,5,6,5],[7,1,9,1],[7,2,9,2],[7,4,9,4],[7,5,9,5],[10,1,11,1],[10,2,11,2],[10,4,11,4],[10,5,11,5],[12,1,14,1],[12,2,14,2],[12,4,14,4],[12,5,14,5],[15,1,17,1],[15,2,17,2],[15,4,17,4],[15,5,17,5]]}
[]
["Likelihood criteria"]
[null,"Score","Descriptor","Safety","Occupational hygiene"]
[{"$nulls":4},"Exposure","Probability of exceeding OEL"]
[null,"A","Highly unlikely","§  More than a “100 year event” ","Rare (once a year)","No exposure (or exposure < 10% of OEL)"]
[{"$nulls":3},"§  Exceptionally unlikely, even in the long-term future"]
[{"$nulls":3},"§  < 5% probability."]
[null,"B","Unlikely","§  Could occur in “years to decades”","Short periods of time, a few times per day/ intermittent (once in six months, three months, or a month)","Low exposure (< 50% of OEL)"]
[{"$nulls":3},"§  May occur but not anticipated"]
[{"$nulls":3},"§  ≥ 5% and < 20% probability."]
[null,"C","Possible","§  Could occur within “months to years”","Continuous for between one and two hours (often/ weekly)","Moderate exposure (chronic exposure > 50% of OEL or acute exposure ≥ OEL)"]
[{"$nulls":3},"§  May occur shortly but a distinct probability it will not, or ≥ 20% and < 70% probability."]
[null,"D","Likely","§  Could occur within “weeks to months”","Continuous for between two and four hours (frequent/daily)","High exposure (chronic exposure > OEL, or exposure exceeding OEL-STEL)"]
[{"$nulls":3},"§  Balance of probability will occur"]
[{"$nulls":3},"§  ≥ 70% and < 90% probability."]
[null,"E","Unavoidable","§  Could occur within “days to weeks”","Continuous for eight-hour shift","Very high exposure (chronic exposure > 2 x OEL or exposure exceeding OEL-C)"]
[{"$nulls":3},"§  Impact is imminent"]
[{"$nulls":3},"§  ≥ 90% probability."]

{"sheet":"Risk control effectiveness","index":3,"n_rows":8,"n_cols":3,"rows_kept":8,"merged":[[2,1,2,2]]}
[]
[]
[null,"RISK CONTROL EFFECTIVENESS GUIDE"]
[null,"             RCE","Guide"]
[null,"Fully effective","Nothing more to be done except review and monitor the existing controls. Controls are well designed for the risk, are largely preventive and address the root causes. Management believes that they are effective and reliable at all times. Reactive controls only support preventive controls."]
[null,"Mostly effective","Most controls are designed correctly and are in place and effective. Some more work to be done to improve operating effectiveness or management has doubts about operational effectiveness and reliability of the controls."]
[null,"Mostly ineffective","While the design of controls may be largely correct in that they treat most of the root causes of the risk, they are not currently operationally very effective. There may be an over-reliance on reactive controls, or some of the controls do not seem correctly designed in that they do not treat root causes."]
[null,"None","Virtually no credible control. Management has no confidence that any degree of control is being achieved."]

{"sheet":"Risk matrix","index":4,"n_rows":17,"n_cols":9,"rows_kept":17,"merged":[[1,4,1,8],[2,2,7,2],[9,4,9,8],[12,5,12,6],[13,5,13,6],[14,5,14,6],[15,5,15,6],[16,5,16,6]]}
[]
[{"$nulls":4},"RISK MATRIX"]
[null,null,"Consequences",6,"I","I","I","I","I"]
[{"$nulls":3},5,"II","II","II","I","I"]
[{"$nulls":3},4,"III","III","II","I","I"]
[{"$nulls":3},3,"IV","III","II","II","I"]
[{"$nulls":3},2,"IV","IV","III","II","II"]
[{"$nulls":3},1,"IV","IV","III","III","III"]
[{"$nulls":4},"A","B","C","D","E"]
[{"$nulls":4},"Likelihood"]
[]
[{"$nulls":7},","]
[{"$nulls":3},"Priority","Risk ranking","Action required"]
[{"$nulls":3},"I","Very high","Immediate action required."]
[{"$nulls":3},"II","High","Strong mandatory action required"]
[{"$nulls":3},"III","Medium","Action required, possibly at administrative level."]
[{"$nulls":3},"IV","Low","Minor or no action required."]